Service Area,Service Division,Expense Type,Expense Code,Detailed Expense Type,Payment Date,Transaction Number,Amount Exc VAT,Supplier Name
Adult and Health Services,Head of Adults,Third Party Payments 4THIRD,478151,Purchase of Care,01/04/2019,3571307-5,"2,120.52",MRS VALERIE BRENNAN.
Adult and Health Services,Head of Adults,Supplies and Services,384616,Miscellaneous Expenses,01/04/2019,3571337-1700035801,867.04,PROGRESS HOUSING ASSOCIATION LTD.
Adult and Health Services,Head of Adults,Supplies and Services,384616,Miscellaneous Expenses,01/04/2019,3571337-1700039562,867.04,PROGRESS HOUSING ASSOCIATION LTD.
Adult and Health Services,Head of Adults,Third Party Payments 4THIRD,479101,Purchase of Care,01/04/2019,3571395-1141229,"1,693.00",TEES ESK & WEAR VALLEYS NHS FOUNDATION TRUST.
Adult and Health Services,Commissioning inc Supporting People,Third Party Payments 4THIRD,479101,Purchase of Care,01/04/2019,3571395-1141241,"3,491.50",TEES ESK & WEAR VALLEYS NHS FOUNDATION TRUST.
Children and Young Peoples Services,Head of Early Help Inclusion & Vulnerable Children.,Premises,108135,Service Repairs and Maintenance,01/04/2019,3571080-286,"2,724.00",ARMSTRONG DECORATORS.
Children and Young Peoples Services,Head of Childrens Social Care,Third Party Payments 4THIRD,425021,Rendered by Voluntary Organisations,01/04/2019,3571085-L0001,"38,009.49",BDT CARE SOLUTIONS LTD.
Children and Young Peoples Services,Head of Childrens Social Care,Third Party Payments 4THIRD,440038,Other third party payments E440,01/04/2019,3571428-INV-0436,"1,167.42",WE CARE RECRUITMENT SOLUTIONS LTD.
Children and Young Peoples Services,Head of Childrens Social Care,Third Party Payments 4THIRD,440038,Other third party payments E440,01/04/2019,3571428-INV-0437,"5,851.24",WE CARE RECRUITMENT SOLUTIONS LTD.
Children and Young Peoples Services,Head of Childrens Social Care,Third Party Payments 4THIRD,425021,Rendered by Voluntary Organisations,01/04/2019,3571428-INV-0438,"4,820.57",WE CARE RECRUITMENT SOLUTIONS LTD.
Children and Young Peoples Services,Head of Childrens Social Care,Third Party Payments 4THIRD,425021,Rendered by Voluntary Organisations,01/04/2019,3571428-INV-0441,"2,348.46",WE CARE RECRUITMENT SOLUTIONS LTD.
Children and Young Peoples Services,Head of Childrens Social Care,Third Party Payments 4THIRD,425021,Rendered by Voluntary Organisations,01/04/2019,3571428-INV-0442,"2,558.55",WE CARE RECRUITMENT SOLUTIONS LTD.
Children and Young Peoples Services,Head of Childrens Social Care,Third Party Payments 4THIRD,425021,Rendered by Voluntary Organisations,01/04/2019,3571428-INV-0443,"6,023.66",WE CARE RECRUITMENT SOLUTIONS LTD.
Children and Young Peoples Services,Head of Childrens Social Care,Third Party Payments 4THIRD,425021,Rendered by Voluntary Organisations,01/04/2019,3571428-INV-0444,"5,917.63",WE CARE RECRUITMENT SOLUTIONS LTD.
Dedicated Schools Grant BG0015,DSG Early Years Block,Transfer Payments,510030,School Children,01/04/2019,3571057-13039,780.00,REDACTED - PAYMENT TO INDIVIDUAL
Dedicated Schools Grant BG0015,DSG Early Years Block,Transfer Payments,510030,School Children,01/04/2019,3571063-13042,548.44,REDACTED - PAYMENT TO INDIVIDUAL
Dedicated Schools Grant BG0015,DSG Early Years Block,Transfer Payments,510032,School Children,01/04/2019,3571067-12790,745.88,REDACTED - PAYMENT TO INDIVIDUAL
Dedicated Schools Grant BG0015,DSG Early Years Block,Transfer Payments,510030,School Children,01/04/2019,3571067-12955,"3,466.13",REDACTED - PAYMENT TO INDIVIDUAL
Dedicated Schools Grant BG0015,DSG Early Years Block,Transfer Payments,510030,School Children,01/04/2019,3571068-12956,563.06,REDACTED - PAYMENT TO INDIVIDUAL
Dedicated Schools Grant BG0015,DSG Early Years Block,Transfer Payments,510030,School Children,01/04/2019,3571073-13049,938.44,REDACTED - PAYMENT TO INDIVIDUAL
Dedicated Schools Grant BG0015,DSG Early Years Block,Transfer Payments,510030,School Children,01/04/2019,3571116-12970,570.38,REDACTED - PAYMENT TO INDIVIDUAL
Dedicated Schools Grant BG0015,DSG Early Years Block,Transfer Payments,510032,School Children,01/04/2019,3571117-12863,745.88,REDACTED - PAYMENT TO INDIVIDUAL
Dedicated Schools Grant BG0015,DSG Early Years Block,Transfer Payments,510030,School Children,01/04/2019,3571118-12972,"1,082.25",REDACTED - PAYMENT TO INDIVIDUAL
Dedicated Schools Grant BG0015,DSG Early Years Block,Transfer Payments,510032,School Children,01/04/2019,3571120-12799,"2,237.63",REDACTED - PAYMENT TO INDIVIDUAL
Dedicated Schools Grant BG0015,DSG Early Years Block,Transfer Payments,510030,School Children,01/04/2019,3571120-12973,"5,199.19",REDACTED - PAYMENT TO INDIVIDUAL
Dedicated Schools Grant BG0015,DSG Early Years Block,Transfer Payments,510030,School Children,01/04/2019,3571175-12984,599.63,REDACTED - PAYMENT TO INDIVIDUAL
Dedicated Schools Grant BG0015,DSG Early Years Block,Transfer Payments,510030,School Children,01/04/2019,3571189-12987,555.75,REDACTED - PAYMENT TO INDIVIDUAL
Dedicated Schools Grant BG0015,DSG Early Years Block,Transfer Payments,510030,School Children,01/04/2019,3571190-12988,"2,252.25",REDACTED - PAYMENT TO INDIVIDUAL
Dedicated Schools Grant BG0015,DSG Early Years Block,Transfer Payments,510030,School Children,01/04/2019,3571205-12997,"1,126.13",REDACTED - PAYMENT TO INDIVIDUAL
Dedicated Schools Grant BG0015,DSG Early Years Block,Transfer Payments,510030,School Children,01/04/2019,3571213-13115,575.58,REDACTED - PAYMENT TO INDIVIDUAL
Dedicated Schools Grant BG0015,DSG Early Years Block,Transfer Payments,510030,School Children,01/04/2019,3571226-13128,"1,155.38",REDACTED - PAYMENT TO INDIVIDUAL
Dedicated Schools Grant BG0015,DSG Early Years Block,Transfer Payments,510030,School Children,01/04/2019,3571245-13004,"1,111.50",REDACTED - PAYMENT TO INDIVIDUAL
Dedicated Schools Grant BG0015,DSG Early Years Block,Transfer Payments,510030,School Children,01/04/2019,3571251-13005,570.38,REDACTED - PAYMENT TO INDIVIDUAL
Dedicated Schools Grant BG0015,DSG Early Years Block,Transfer Payments,510030,School Children,01/04/2019,3571252-13140,529.10,REDACTED - PAYMENT TO INDIVIDUAL
Dedicated Schools Grant BG0015,DSG Early Years Block,Transfer Payments,510032,School Children,01/04/2019,3571266-12826,745.88,REDACTED - PAYMENT TO INDIVIDUAL
Dedicated Schools Grant BG0015,DSG Early Years Block,Transfer Payments,510030,School Children,01/04/2019,3571272-13012,585.00,REDACTED - PAYMENT TO INDIVIDUAL
Dedicated Schools Grant BG0015,DSG Early Years Block,Transfer Payments,510030,School Children,01/04/2019,3571276-13013,"3,422.25",REDACTED - PAYMENT TO INDIVIDUAL
Dedicated Schools Grant BG0015,DSG Early Years Block,Transfer Payments,510032,School Children,01/04/2019,3571278-12830,745.88,REDACTED - PAYMENT TO INDIVIDUAL
Dedicated Schools Grant BG0015,DSG Early Years Block,Transfer Payments,510032,School Children,01/04/2019,3571288-12798,745.88,REDACTED - PAYMENT TO INDIVIDUAL
Dedicated Schools Grant BG0015,DSG Early Years Block,Transfer Payments,510030,School Children,01/04/2019,3571288-12971,"1,111.50",REDACTED - PAYMENT TO INDIVIDUAL
Dedicated Schools Grant BG0015,DSG Early Years Block,Transfer Payments,510030,School Children,01/04/2019,3571299-13123,577.69,REDACTED - PAYMENT TO INDIVIDUAL
Dedicated Schools Grant BG0015,DSG Early Years Block,Transfer Payments,510030,School Children,01/04/2019,3571300-12999,"1,082.25",REDACTED - PAYMENT TO INDIVIDUAL
Dedicated Schools Grant BG0015,DSG Early Years Block,Transfer Payments,510030,School Children,01/04/2019,3571304-13015,"1,096.88",REDACTED - PAYMENT TO INDIVIDUAL
Dedicated Schools Grant BG0015,DSG Early Years Block,Transfer Payments,510030,School Children,01/04/2019,3571305-13183,570.38,REDACTED - PAYMENT TO INDIVIDUAL
Dedicated Schools Grant BG0015,DSG Early Years Block,Transfer Payments,510030,School Children,01/04/2019,3571339-13166,577.69,REDACTED - PAYMENT TO INDIVIDUAL
Dedicated Schools Grant BG0015,DSG Early Years Block,Transfer Payments,510032,School Children,01/04/2019,3571372-12833,"2,237.63",REDACTED - PAYMENT TO INDIVIDUAL
Dedicated Schools Grant BG0015,DSG Early Years Block,Transfer Payments,510030,School Children,01/04/2019,3571372-13021,"1,126.13",REDACTED - PAYMENT TO INDIVIDUAL
Dedicated Schools Grant BG0015,DSG Early Years Block,Transfer Payments,510030,School Children,01/04/2019,3571070-13046,"1,262.63",ANGELA PROCTOR..
Dedicated Schools Grant BG0015,DSG Early Years Block,Transfer Payments,510030,School Children,01/04/2019,3571071-12958,"2,193.75",ANGELA QUINN.
Dedicated Schools Grant BG0015,DSG Early Years Block,Transfer Payments,510030,School Children,01/04/2019,3571074-12959,825.83,ANN ROBSON.
Dedicated Schools Grant BG0015,DSG Early Years Block,Transfer Payments,510030,School Children,01/04/2019,3571075-13048,563.06,ANN SMITH T/A ANN`S ANGELS.
Dedicated Schools Grant BG0015,DSG Early Years Block,Transfer Payments,510032,School Children,01/04/2019,3571078-12852,745.88,ANNMARIE HURTON.
Dedicated Schools Grant BG0015,DSG Early Years Block,Transfer Payments,510032,School Children,01/04/2019,3571084-12854,"1,491.75",AYCLIFFE DAY NURSERY.
Dedicated Schools Grant BG0015,DSG Early Years Block,Transfer Payments,510030,School Children,01/04/2019,3571084-13052,"2,866.50",AYCLIFFE DAY NURSERY.
Dedicated Schools Grant BG0015,DSG Early Years Block,Transfer Payments,510032,School Children,01/04/2019,3571089-12855,"2,734.88",BISHOP AUCKLAND COLLEGE NURSERY.
Dedicated Schools Grant BG0015,DSG Early Years Block,Transfer Payments,510030,School Children,01/04/2019,3571089-13054,"12,636.00",BISHOP AUCKLAND COLLEGE NURSERY.
Dedicated Schools Grant BG0015,DSG Early Years Block,Transfer Payments,510030,School Children,01/04/2019,3571090-12960,"14,442.19",BISHOP IAN RAMSEY PRE SCHOOL.
Dedicated Schools Grant BG0015,DSG Early Years Block,Transfer Payments,510032,School Children,01/04/2019,3571092-12828,"7,458.75",BLUE SKY CHILDCARE.
Dedicated Schools Grant BG0015,DSG Early Years Block,Transfer Payments,510030,School Children,01/04/2019,3571092-13011,"24,224.85",BLUE SKY CHILDCARE.
Dedicated Schools Grant BG0015,DSG Early Years Block,Transfer Payments,510030,School Children,01/04/2019,3571093-12961,"13,410.00",BOW SCHOOL & NURSERY.
Dedicated Schools Grant BG0015,DSG Early Years Block,Transfer Payments,510032,School Children,01/04/2019,3571094-12791,745.88,BOWES PRE SCHOOL.
Dedicated Schools Grant BG0015,DSG Early Years Block,Transfer Payments,510030,School Children,01/04/2019,3571094-12962,"7,761.00",BOWES PRE SCHOOL.
Dedicated Schools Grant BG0015,DSG Early Years Block,Transfer Payments,510032,School Children,01/04/2019,3571095-12857,"6,961.50",BRIGHT STAR NURSERY.
Dedicated Schools Grant BG0015,DSG Early Years Block,Transfer Payments,510030,School Children,01/04/2019,3571095-13057,"16,965.00",BRIGHT STAR NURSERY.
Dedicated Schools Grant BG0015,DSG Early Years Block,Transfer Payments,510032,School Children,01/04/2019,3571099-12792,"8,204.63",BUDDIES CHILDCARE CENTRE.
Dedicated Schools Grant BG0015,DSG Early Years Block,Transfer Payments,510030,School Children,01/04/2019,3571099-12963,"22,186.13",BUDDIES CHILDCARE CENTRE.
Dedicated Schools Grant BG0015,DSG Early Years Block,Transfer Payments,510032,School Children,01/04/2019,3571100-12793,"11,188.13",BUSY BEARS LTD.
Dedicated Schools Grant BG0015,DSG Early Years Block,Transfer Payments,510030,School Children,01/04/2019,3571100-12964,"98,280.00",BUSY BEARS LTD.
Dedicated Schools Grant BG0015,DSG Early Years Block,Transfer Payments,510032,School Children,01/04/2019,3571433-12794,"7,458.75",BUSY BEES (DURHAM) LTD.
Dedicated Schools Grant BG0015,DSG Early Years Block,Transfer Payments,510030,School Children,01/04/2019,3571433-12965,"141,765.00",BUSY BEES (DURHAM) LTD.
Dedicated Schools Grant BG0015,DSG Early Years Block,Transfer Payments,510032,School Children,01/04/2019,3571101-12858,596.70,BUTTERFLIES DAY CARE.
Dedicated Schools Grant BG0015,DSG Early Years Block,Transfer Payments,510030,School Children,01/04/2019,3571101-13058,"1,170.00",BUTTERFLIES DAY CARE.
Dedicated Schools Grant BG0015,DSG Early Years Block,Transfer Payments,510032,School Children,01/04/2019,3571102-12859,"5,221.13",BYERLEY ROAD PRE SCHOOL.
Dedicated Schools Grant BG0015,DSG Early Years Block,Transfer Payments,510030,School Children,01/04/2019,3571102-13059,"8,794.50",BYERLEY ROAD PRE SCHOOL.
Dedicated Schools Grant BG0015,DSG Early Years Block,Transfer Payments,510030,School Children,01/04/2019,3571103-12966,"2,252.25",CAROL WOODHEAD.
Dedicated Schools Grant BG0015,DSG Early Years Block,Transfer Payments,510032,School Children,01/04/2019,3571104-12860,745.88,CAROLINE ORD..
Dedicated Schools Grant BG0015,DSG Early Years Block,Transfer Payments,510032,School Children,01/04/2019,3571108-12861,"3,232.13",CASTLE KINDERGARTEN LTD.
Dedicated Schools Grant BG0015,DSG Early Years Block,Transfer Payments,510030,School Children,01/04/2019,3571108-13064,"8,970.00",CASTLE KINDERGARTEN LTD.
Dedicated Schools Grant BG0015,DSG Early Years Block,Transfer Payments,510032,School Children,01/04/2019,3571109-12862,"2,159.85",CASTLE VIEW PRIVATE DAY NURSERY LTD.
Dedicated Schools Grant BG0015,DSG Early Years Block,Transfer Payments,510030,School Children,01/04/2019,3571109-13065,"45,320.00",CASTLE VIEW PRIVATE DAY NURSERY LTD.
Dedicated Schools Grant BG0015,DSG Early Years Block,Transfer Payments,510030,School Children,01/04/2019,3571114-13066,"15,023.94",CHILTON ACADEMY.
Dedicated Schools Grant BG0015,DSG Early Years Block,Transfer Payments,510030,School Children,01/04/2019,3571115-13027,"7,882.88",CHORISTER SCHOOL.
Dedicated Schools Grant BG0015,DSG Early Years Block,Transfer Payments,510030,School Children,01/04/2019,3571119-13067,513.50,CLARE SWARBRICK (CHILD MINDER).
Dedicated Schools Grant BG0015,DSG Early Years Block,Transfer Payments,510032,School Children,01/04/2019,3571121-12800,"5,221.13",CLEVER CLOGS DAY NURSERIES LTD.
Dedicated Schools Grant BG0015,DSG Early Years Block,Transfer Payments,510030,School Children,01/04/2019,3571121-12974,"47,775.00",CLEVER CLOGS DAY NURSERIES LTD.
Dedicated Schools Grant BG0015,DSG Early Years Block,Transfer Payments,510032,School Children,01/04/2019,3571122-12801,"8,950.50",CLEVER CLOGS DAY NURSERY (DURHAM) LTD.
Dedicated Schools Grant BG0015,DSG Early Years Block,Transfer Payments,510030,School Children,01/04/2019,3571122-12975,"61,812.56",CLEVER CLOGS DAY NURSERY (DURHAM) LTD.
Dedicated Schools Grant BG0015,DSG Early Years Block,Transfer Payments,510030,School Children,01/04/2019,3571123-12976,"11,992.50",CLEVES CROSS ACADEMY.
Dedicated Schools Grant BG0015,DSG Early Years Block,Transfer Payments,510030,School Children,01/04/2019,3571124-13068,"1,254.83",CONKERS LIFE LTD (NURSERY SCHOOL).
Dedicated Schools Grant BG0015,DSG Early Years Block,Transfer Payments,510032,School Children,01/04/2019,3571127-12813,"3,729.38",CORE CARE EVENWOOD LTD.
Dedicated Schools Grant BG0015,DSG Early Years Block,Transfer Payments,510030,School Children,01/04/2019,3571127-12991,"2,250.79",CORE CARE EVENWOOD LTD.
Dedicated Schools Grant BG0015,DSG Early Years Block,Transfer Payments,510032,School Children,01/04/2019,3571128-12814,"5,967.00",CORECARE FISHBURN LTD.
Dedicated Schools Grant BG0015,DSG Early Years Block,Transfer Payments,510030,School Children,01/04/2019,3571128-12992,"11,253.94",CORECARE FISHBURN LTD.
Dedicated Schools Grant BG0015,DSG Early Years Block,Transfer Payments,510032,School Children,01/04/2019,3571130-12802,"1,491.75",COTHERSTONE PRE SCHOOL PLAYGROUP.
Dedicated Schools Grant BG0015,DSG Early Years Block,Transfer Payments,510030,School Children,01/04/2019,3571130-12977,"4,185.44",COTHERSTONE PRE SCHOOL PLAYGROUP.
Dedicated Schools Grant BG0015,DSG Early Years Block,Transfer Payments,510032,School Children,01/04/2019,3571131-12866,"3,480.75",COUNDON & LEEHOLME EARLY YEARS CENTRE LTD.
Dedicated Schools Grant BG0015,DSG Early Years Block,Transfer Payments,510030,School Children,01/04/2019,3571131-13071,"8,092.50",COUNDON & LEEHOLME EARLY YEARS CENTRE LTD.
Dedicated Schools Grant BG0015,DSG Early Years Block,Transfer Payments,510032,School Children,01/04/2019,3571132-12867,"1,243.13",CRAGHEAD CHILDCARE CENTRE.
Dedicated Schools Grant BG0015,DSG Early Years Block,Transfer Payments,510032,School Children,01/04/2019,3571132-12868,"1,243.13",CRAGHEAD CHILDCARE CENTRE.
Dedicated Schools Grant BG0015,DSG Early Years Block,Transfer Payments,510030,School Children,01/04/2019,3571132-13072,"2,369.25",CRAGHEAD CHILDCARE CENTRE.
Dedicated Schools Grant BG0015,DSG Early Years Block,Transfer Payments,510030,School Children,01/04/2019,3571132-13073,"9,906.00",CRAGHEAD CHILDCARE CENTRE.
Dedicated Schools Grant BG0015,DSG Early Years Block,Transfer Payments,510032,School Children,01/04/2019,3571136-12869,"1,491.75",DAWN TILL DUSK CHILDCARE.
Dedicated Schools Grant BG0015,DSG Early Years Block,Transfer Payments,510032,School Children,01/04/2019,3571137-12846,"3,729.38",DAYPARK LTD T/A YELLOW WELLIES.
Dedicated Schools Grant BG0015,DSG Early Years Block,Transfer Payments,510030,School Children,01/04/2019,3571137-13038,"34,047.00",DAYPARK LTD T/A YELLOW WELLIES.
Dedicated Schools Grant BG0015,DSG Early Years Block,Transfer Payments,510032,School Children,01/04/2019,3571138-12845,"16,409.25",DAYPARK LTD T/A YELLOW WELLIES.
Dedicated Schools Grant BG0015,DSG Early Years Block,Transfer Payments,510030,School Children,01/04/2019,3571138-13037,"23,955.75",DAYPARK LTD T/A YELLOW WELLIES.
Dedicated Schools Grant BG0015,DSG Early Years Block,Transfer Payments,510032,School Children,01/04/2019,3571146-12804,"2,983.50",DO RE MI DAY NURSERY.
Dedicated Schools Grant BG0015,DSG Early Years Block,Transfer Payments,510030,School Children,01/04/2019,3571146-12979,"48,555.00",DO RE MI DAY NURSERY.
Dedicated Schools Grant BG0015,DSG Early Years Block,Transfer Payments,510032,School Children,01/04/2019,3571152-12875,"3,480.75",EARLY LEARNERS PRIVATE DAY NURSERY.
Dedicated Schools Grant BG0015,DSG Early Years Block,Transfer Payments,510030,School Children,01/04/2019,3571152-13086,987.19,EARLY LEARNERS PRIVATE DAY NURSERY.
Dedicated Schools Grant BG0015,DSG Early Years Block,Transfer Payments,510032,School Children,01/04/2019,3571153-12928,"1,243.13",EAST DURHAM COLLEGE.
Dedicated Schools Grant BG0015,DSG Early Years Block,Transfer Payments,510030,School Children,01/04/2019,3571153-13165,"6,825.00",EAST DURHAM COLLEGE.
Dedicated Schools Grant BG0015,DSG Early Years Block,Transfer Payments,510032,School Children,01/04/2019,3571155-12876,"3,232.13",EDEN GARDEN NURSERY.
Dedicated Schools Grant BG0015,DSG Early Years Block,Transfer Payments,510030,School Children,01/04/2019,3571155-13087,"12,012.00",EDEN GARDEN NURSERY.
Dedicated Schools Grant BG0015,DSG Early Years Block,Transfer Payments,510032,School Children,01/04/2019,3571160-12805,"14,171.63",EMERALDS LITTLE GEMS DAYCARE LTD.
Dedicated Schools Grant BG0015,DSG Early Years Block,Transfer Payments,510032,School Children,01/04/2019,3571160-12806,"35,802.00",EMERALDS LITTLE GEMS DAYCARE LTD.
Dedicated Schools Grant BG0015,DSG Early Years Block,Transfer Payments,510030,School Children,01/04/2019,3571160-12980,"16,489.69",EMERALDS LITTLE GEMS DAYCARE LTD.
Dedicated Schools Grant BG0015,DSG Early Years Block,Transfer Payments,510030,School Children,01/04/2019,3571160-12981,"65,958.75",EMERALDS LITTLE GEMS DAYCARE LTD.
Dedicated Schools Grant BG0015,DSG Early Years Block,Transfer Payments,510032,School Children,01/04/2019,3571161-12807,"8,950.50",EXPLORERS DAY CARE.
Dedicated Schools Grant BG0015,DSG Early Years Block,Transfer Payments,510030,School Children,01/04/2019,3571161-12982,"59,231.25",EXPLORERS DAY CARE.
Dedicated Schools Grant BG0015,DSG Early Years Block,Transfer Payments,510032,School Children,01/04/2019,3571164-12808,"5,221.13",FIRST STEPS NURSERY.
Dedicated Schools Grant BG0015,DSG Early Years Block,Transfer Payments,510030,School Children,01/04/2019,3571164-12983,"20,533.50",FIRST STEPS NURSERY.
Dedicated Schools Grant BG0015,DSG High Needs Block,Third Party Payments 4THIRD,425005,Rendered by Voluntary Organisations,01/04/2019,3571167-24509950,"3,465.00",FSHC ENGLAND LTD (FOUR SEASONS HEALTHCARE).
Dedicated Schools Grant BG0015,DSG Early Years Block,Transfer Payments,510032,School Children,01/04/2019,3571170-12881,"2,237.63",GIANT STEPS LTD.
Dedicated Schools Grant BG0015,DSG Early Years Block,Transfer Payments,510030,School Children,01/04/2019,3571170-13095,"10,076.63",GIANT STEPS LTD.
Dedicated Schools Grant BG0015,DSG Early Years Block,Transfer Payments,510032,School Children,01/04/2019,3571171-12883,"1,740.38",GIANT STEPS LTD.
Dedicated Schools Grant BG0015,DSG Early Years Block,Transfer Payments,510030,School Children,01/04/2019,3571171-13097,"10,193.63",GIANT STEPS LTD.
Dedicated Schools Grant BG0015,DSG Early Years Block,Transfer Payments,510032,School Children,01/04/2019,3571172-12882,"1,989.00",GIANT STEPS LTD.
Dedicated Schools Grant BG0015,DSG Early Years Block,Transfer Payments,510030,School Children,01/04/2019,3571172-13096,"10,442.25",GIANT STEPS LTD.
Dedicated Schools Grant BG0015,DSG Early Years Block,Transfer Payments,510030,School Children,01/04/2019,3571173-13098,"4,852.58",GIANT STEPS LTD.
Dedicated Schools Grant BG0015,DSG Early Years Block,Transfer Payments,510032,School Children,01/04/2019,3571178-12885,"2,933.78",GREEN LANE NURSERY & CHILDCARE CENTRE.
Dedicated Schools Grant BG0015,DSG Early Years Block,Transfer Payments,510030,School Children,01/04/2019,3571178-13101,"10,387.00",GREEN LANE NURSERY & CHILDCARE CENTRE.
Dedicated Schools Grant BG0015,DSG Early Years Block,Transfer Payments,510032,School Children,01/04/2019,3571182-12886,"3,729.38",HAPPY TIMES DAYCARE LTD.
Dedicated Schools Grant BG0015,DSG Early Years Block,Transfer Payments,510030,School Children,01/04/2019,3571182-13102,"2,369.25",HAPPY TIMES DAYCARE LTD.
Dedicated Schools Grant BG0015,DSG Early Years Block,Transfer Payments,510032,School Children,01/04/2019,3571183-12856,"4,475.25",HAPPYTIMES DAYCARE.
Dedicated Schools Grant BG0015,DSG Early Years Block,Transfer Payments,510030,School Children,01/04/2019,3571183-13055,"3,290.63",HAPPYTIMES DAYCARE.
Dedicated Schools Grant BG0015,DSG Early Years Block,Transfer Payments,510032,School Children,01/04/2019,3571184-12887,"1,243.13",HARTSIDE PRIMARY ACADEMY.
Dedicated Schools Grant BG0015,DSG Early Years Block,Transfer Payments,510030,School Children,01/04/2019,3571184-13103,"8,594.63",HARTSIDE PRIMARY ACADEMY.
Dedicated Schools Grant BG0015,DSG Early Years Block,Transfer Payments,510030,School Children,01/04/2019,3571185-13104,638.14,HAYLEY PENEYCAD.
Dedicated Schools Grant BG0015,DSG Early Years Block,Transfer Payments,510032,School Children,01/04/2019,3571186-12809,"2,237.63",HAYSTACKS NURSERY..
Dedicated Schools Grant BG0015,DSG Early Years Block,Transfer Payments,510030,School Children,01/04/2019,3571186-12985,"17,160.00",HAYSTACKS NURSERY..
Dedicated Schools Grant BG0015,DSG Early Years Block,Transfer Payments,510032,School Children,01/04/2019,3571187-12810,"3,729.38",HAZEL DENE CHILDCARE LTD.
Dedicated Schools Grant BG0015,DSG Early Years Block,Transfer Payments,510030,School Children,01/04/2019,3571187-12986,"8,884.69",HAZEL DENE CHILDCARE LTD.
Dedicated Schools Grant BG0015,DSG Early Years Block,Transfer Payments,510030,School Children,01/04/2019,3571191-13105,799.50,HELEN PROW.
Dedicated Schools Grant BG0015,DSG Early Years Block,Transfer Payments,510032,School Children,01/04/2019,3571193-12811,"5,221.13",HIPPITOTS LTD.
Dedicated Schools Grant BG0015,DSG Early Years Block,Transfer Payments,510030,School Children,01/04/2019,3571193-12989,"38,376.00",HIPPITOTS LTD.
Dedicated Schools Grant BG0015,DSG Early Years Block,Transfer Payments,510032,School Children,01/04/2019,3571197-12812,"10,442.25",HORDEN YOUTH & COMMUNITY CENTRE NURSERY.
Dedicated Schools Grant BG0015,DSG Early Years Block,Transfer Payments,510032,School Children,01/04/2019,3571198-12593,"4,896.00",HORDEN YOUTH & COMMUNITY CENTRE NURSERY.
Dedicated Schools Grant BG0015,DSG Early Years Block,Transfer Payments,510030,School Children,01/04/2019,3571198-12990,"14,566.50",HORDEN YOUTH & COMMUNITY CENTRE NURSERY.
Dedicated Schools Grant BG0015,DSG Early Years Block,Transfer Payments,510032,School Children,01/04/2019,3571199-12815,"11,934.00",HOUSE OF EDEN LTD.
Dedicated Schools Grant BG0015,DSG Early Years Block,Transfer Payments,510030,School Children,01/04/2019,3571199-12993,"35,377.88",HOUSE OF EDEN LTD.
Dedicated Schools Grant BG0015,DSG Early Years Block,Transfer Payments,510030,School Children,01/04/2019,3571200-13107,"6,786.00",HOWDEN LE WEAR PRE SCHOOL LTD.
Dedicated Schools Grant BG0015,DSG Early Years Block,Transfer Payments,510032,School Children,01/04/2019,3571201-12818,"15,663.38",HOWLETCH & SHOTTON CHILDCARE LTD.
Dedicated Schools Grant BG0015,DSG Early Years Block,Transfer Payments,510030,School Children,01/04/2019,3571201-12996,"15,400.13",HOWLETCH & SHOTTON CHILDCARE LTD.
Dedicated Schools Grant BG0015,DSG Early Years Block,Transfer Payments,510032,School Children,01/04/2019,3571202-12817,"23,122.13",HOWLETCH & SHOTTON CHILDCARE LTD.
Dedicated Schools Grant BG0015,DSG Early Years Block,Transfer Payments,510030,School Children,01/04/2019,3571202-12995,"6,435.00",HOWLETCH & SHOTTON CHILDCARE LTD.
Dedicated Schools Grant BG0015,DSG Early Years Block,Transfer Payments,510030,School Children,01/04/2019,3571207-12998,577.69,JACQUELINE KNOX.
Dedicated Schools Grant BG0015,DSG Early Years Block,Transfer Payments,510030,School Children,01/04/2019,3571208-13110,741.00,JAN AITCHISON.
Dedicated Schools Grant BG0015,DSG Early Years Block,Transfer Payments,510030,School Children,01/04/2019,3571212-13114,555.75,JAYNE EALES.
Dedicated Schools Grant BG0015,DSG Early Years Block,Transfer Payments,510032,School Children,01/04/2019,3571217-12870,"2,237.63",JOANNE HARDY T/A DAYBREAK NURSERY.
Dedicated Schools Grant BG0015,DSG Early Years Block,Transfer Payments,510030,School Children,01/04/2019,3571217-13075,"7,195.50",JOANNE HARDY T/A DAYBREAK NURSERY.
Dedicated Schools Grant BG0015,DSG Early Years Block,Transfer Payments,510030,School Children,01/04/2019,3571224-13125,789.75,JULIE MARIE GLASS.
Dedicated Schools Grant BG0015,DSG Early Years Block,Transfer Payments,510032,School Children,01/04/2019,3571228-12819,745.88,KEELIE GREEN.
Dedicated Schools Grant BG0015,DSG Early Years Block,Transfer Payments,510030,School Children,01/04/2019,3571228-13000,"5,630.63",KEELIE GREEN.
Dedicated Schools Grant BG0015,DSG Early Years Block,Transfer Payments,510032,School Children,01/04/2019,3571229-12901,"3,232.13",KELLOE PHOENIX CENTRE (CHILDCARE).
Dedicated Schools Grant BG0015,DSG Early Years Block,Transfer Payments,510030,School Children,01/04/2019,3571229-13129,"5,630.63",KELLOE PHOENIX CENTRE (CHILDCARE).
Dedicated Schools Grant BG0015,DSG Early Years Block,Transfer Payments,510032,School Children,01/04/2019,3571231-12820,745.88,KELLY PATTISON.
Dedicated Schools Grant BG0015,DSG Early Years Block,Transfer Payments,510030,School Children,01/04/2019,3571232-13131,"1,170.00",KERRY DODGSON.
Dedicated Schools Grant BG0015,DSG Early Years Block,Transfer Payments,510032,School Children,01/04/2019,3571233-12821,"2,983.50",KIDS 1ST NURSERIES DURHAM.
Dedicated Schools Grant BG0015,DSG Early Years Block,Transfer Payments,510030,School Children,01/04/2019,3571233-13001,"64,452.38",KIDS 1ST NURSERIES DURHAM.
Dedicated Schools Grant BG0015,DSG Early Years Block,Transfer Payments,510032,School Children,01/04/2019,3571234-12601,841.50,KIDZ VILLAGE LTD.
Dedicated Schools Grant BG0015,DSG Early Years Block,Transfer Payments,510030,School Children,01/04/2019,3571234-13002,"11,992.50",KIDZ VILLAGE LTD.
Dedicated Schools Grant BG0015,DSG Early Years Block,Transfer Payments,510032,School Children,01/04/2019,3571235-12822,"7,458.75",KIDZ VILLAGE LTD.
Dedicated Schools Grant BG0015,DSG Early Years Block,Transfer Payments,510032,School Children,01/04/2019,3571236-12903,"2,734.88",KIDZONE.
Dedicated Schools Grant BG0015,DSG Early Years Block,Transfer Payments,510030,School Children,01/04/2019,3571236-13132,"14,391.00",KIDZONE.
Dedicated Schools Grant BG0015,DSG Early Years Block,Transfer Payments,510030,School Children,01/04/2019,3571237-13133,"5,247.45",KIRK MERRINGTON PRE SCHOOL.
Dedicated Schools Grant BG0015,DSG Early Years Block,Transfer Payments,510030,School Children,01/04/2019,3571238-13134,"9,772.43",KIRKLANDS DAY NURSERY.
Dedicated Schools Grant BG0015,DSG Early Years Block,Transfer Payments,510030,School Children,01/04/2019,3571239-13003,"1,126.13",KIRSTIE HALL.
Dedicated Schools Grant BG0015,DSG Early Years Block,Transfer Payments,510032,School Children,01/04/2019,3571247-12908,"4,226.63",LEADGATE CHILD CENTRE LTD.
Dedicated Schools Grant BG0015,DSG Early Years Block,Transfer Payments,510030,School Children,01/04/2019,3571247-13137,"8,687.25",LEADGATE CHILD CENTRE LTD.
Dedicated Schools Grant BG0015,DSG Early Years Block,Transfer Payments,510032,School Children,01/04/2019,3571253-12910,"4,475.25",LITTLE ACORNS NORTH EAST LTD.
Dedicated Schools Grant BG0015,DSG Early Years Block,Transfer Payments,510030,School Children,01/04/2019,3571253-13141,"7,502.63",LITTLE ACORNS NORTH EAST LTD.
Dedicated Schools Grant BG0015,DSG Early Years Block,Transfer Payments,510032,School Children,01/04/2019,3571254-12911,994.50,LITTLE CUBS DAY NURSERY.
Dedicated Schools Grant BG0015,DSG Early Years Block,Transfer Payments,510030,School Children,01/04/2019,3571254-13142,"13,248.30",LITTLE CUBS DAY NURSERY.
Dedicated Schools Grant BG0015,DSG Early Years Block,Transfer Payments,510030,School Children,01/04/2019,3571255-13006,"5,265.00",LITTLE DUCKLINGS NURSERY.
Dedicated Schools Grant BG0015,DSG Early Years Block,Transfer Payments,510032,School Children,01/04/2019,3571256-12912,"3,099.53",LITTLE STARS EARLY YEARS.
Dedicated Schools Grant BG0015,DSG Early Years Block,Transfer Payments,510030,School Children,01/04/2019,3571256-13143,"4,954.95",LITTLE STARS EARLY YEARS.
Dedicated Schools Grant BG0015,DSG Early Years Block,Transfer Payments,510032,School Children,01/04/2019,3571257-12914,"3,480.75",LITTLE WAVES DAY NURSERY LTD.
Dedicated Schools Grant BG0015,DSG Early Years Block,Transfer Payments,510030,School Children,01/04/2019,3571258-13145,"14,590.88",LITTLE WAVES DAY NURSERY LTD.
Dedicated Schools Grant BG0015,DSG Early Years Block,Transfer Payments,510030,School Children,01/04/2019,3571261-13146,950.63,LORNA MARIE MOORE.
Dedicated Schools Grant BG0015,DSG Early Years Block,Transfer Payments,510030,School Children,01/04/2019,3571262-13147,938.44,LORRAINE FORSTER.
Dedicated Schools Grant BG0015,DSG Early Years Block,Transfer Payments,510032,School Children,01/04/2019,3571265-12825,745.88,LYNDA GILBERT.
Dedicated Schools Grant BG0015,DSG Early Years Block,Transfer Payments,510030,School Children,01/04/2019,3571265-13009,"4,621.50",LYNDA GILBERT.
Dedicated Schools Grant BG0015,DSG Early Years Block,Transfer Payments,510032,School Children,01/04/2019,3571267-12827,"1,491.75",LYNNE MCGUIGAN.
Dedicated Schools Grant BG0015,DSG Early Years Block,Transfer Payments,510030,School Children,01/04/2019,3571267-13010,"4,043.81",LYNNE MCGUIGAN.
Dedicated Schools Grant BG0015,DSG Early Years Block,Transfer Payments,510030,School Children,01/04/2019,3571281-13126,825.83,MISS JA MYERS T/A CHATTERBOX CHILDCARE.
Dedicated Schools Grant BG0015,DSG Early Years Block,Transfer Payments,510032,School Children,01/04/2019,3571283-12823,"8,204.63",MR D YOUNG T/A LITTLE TOTS ACADEMY.
Dedicated Schools Grant BG0015,DSG Early Years Block,Transfer Payments,510030,School Children,01/04/2019,3571283-13007,"10,976.06",MR D YOUNG T/A LITTLE TOTS ACADEMY.
Dedicated Schools Grant BG0015,DSG Early Years Block,Transfer Payments,510030,School Children,01/04/2019,3571284-12957,"1,733.06",MRS A MCARDLE.
Dedicated Schools Grant BG0015,DSG Early Years Block,Transfer Payments,510030,School Children,01/04/2019,3571294-13092,760.50,MRS EMMA HECKLES T/A CONSETT KIDS.
Dedicated Schools Grant BG0015,DSG Early Years Block,Transfer Payments,510032,School Children,01/04/2019,3571310-12921,"1,243.13",NATALIE WILE.
Dedicated Schools Grant BG0015,DSG Early Years Block,Transfer Payments,510030,School Children,01/04/2019,3571310-13155,"1,890.64",NATALIE WILE.
Dedicated Schools Grant BG0015,DSG Early Years Block,Transfer Payments,510032,School Children,01/04/2019,3571313-12922,"2,486.25",NELLIE`S DAY NURSERY LTD.
Dedicated Schools Grant BG0015,DSG Early Years Block,Transfer Payments,510030,School Children,01/04/2019,3571313-13156,"1,685.94",NELLIE`S DAY NURSERY LTD.
Dedicated Schools Grant BG0015,DSG Early Years Block,Transfer Payments,510032,School Children,01/04/2019,3571314-12923,"2,486.25",NEW BEGINNINGS (MOORSIDE) CO LTD.
Dedicated Schools Grant BG0015,DSG Early Years Block,Transfer Payments,510030,School Children,01/04/2019,3571314-13157,"8,035.95",NEW BEGINNINGS (MOORSIDE) CO LTD.
Dedicated Schools Grant BG0015,DSG Early Years Block,Transfer Payments,510030,School Children,01/04/2019,3571315-13016,563.06,NICOLA EMMA HOGG.
Dedicated Schools Grant BG0015,DSG Early Years Block,Transfer Payments,510032,School Children,01/04/2019,3571320-12926,"1,243.13",NORTHUMBRIAN TRUST DAY NURSERIES LTD.
Dedicated Schools Grant BG0015,DSG Early Years Block,Transfer Payments,510030,School Children,01/04/2019,3571320-13163,"4,621.50",NORTHUMBRIAN TRUST DAY NURSERIES LTD.
Dedicated Schools Grant BG0015,DSG Early Years Block,Transfer Payments,510032,School Children,01/04/2019,3571321-12925,"5,469.75",NURSERY TIME.
Dedicated Schools Grant BG0015,DSG Early Years Block,Transfer Payments,510030,School Children,01/04/2019,3571321-13158,"15,390.38",NURSERY TIME.
Dedicated Schools Grant BG0015,DSG Early Years Block,Transfer Payments,510030,School Children,01/04/2019,3571323-13159,"2,795.00",OLD BRIDGE NURSERY.
Dedicated Schools Grant BG0015,DSG Early Years Block,Transfer Payments,510030,School Children,01/04/2019,3571325-13160,"7,094.59",OUSTON PRIMARY SCHOOL (PART OF JIGSAW LEARNING TRUST).
Dedicated Schools Grant BG0015,DSG Early Years Block,Transfer Payments,510030,School Children,01/04/2019,3571328-13161,789.75,PAULA PARK.
Dedicated Schools Grant BG0015,DSG Early Years Block,Transfer Payments,510032,School Children,01/04/2019,3571335-12927,"2,486.25",PLAYDAY NURSERY.
Dedicated Schools Grant BG0015,DSG Early Years Block,Transfer Payments,510030,School Children,01/04/2019,3571335-13164,"13,228.31",PLAYDAY NURSERY.
Dedicated Schools Grant BG0015,DSG Early Years Block,Transfer Payments,510030,School Children,01/04/2019,3571340-13017,"6,381.38",RACHEL GRAY.
Dedicated Schools Grant BG0015,DSG Early Years Block,Transfer Payments,510032,School Children,01/04/2019,3571341-12929,"4,226.63",RAINBOW NURSERY LTD (MIDDLESTONE MOOR).
Dedicated Schools Grant BG0015,DSG Early Years Block,Transfer Payments,510030,School Children,01/04/2019,3571341-13167,"24,184.88",RAINBOW NURSERY LTD (MIDDLESTONE MOOR).
Dedicated Schools Grant BG0015,DSG Early Years Block,Transfer Payments,510030,School Children,01/04/2019,3571344-13170,"15,590.25",RIBBON ACADEMY TRUST.
Dedicated Schools Grant BG0015,DSG Early Years Block,Transfer Payments,510032,School Children,01/04/2019,3571345-12931,"6,812.33",RIBBON DAYCARE.
Dedicated Schools Grant BG0015,DSG Early Years Block,Transfer Payments,510030,School Children,01/04/2019,3571345-13171,"16,696.23",RIBBON DAYCARE.
Dedicated Schools Grant BG0015,DSG Early Years Block,Transfer Payments,510030,School Children,01/04/2019,3571350-13172,"2,627.63",ROOFTOPS NURSERY SCHOOL LTD.
Dedicated Schools Grant BG0015,DSG Early Years Block,Transfer Payments,510030,School Children,01/04/2019,3571355-13018,"21,586.50",SACRISTON ACADEMY - EARLY YEARS T/A PRIVATE NURSERY.
Dedicated Schools Grant BG0015,DSG Early Years Block,Transfer Payments,510030,School Children,01/04/2019,3571357-13173,987.19,SAMANTHA CHARLTON.
Dedicated Schools Grant BG0015,DSG Early Years Block,Transfer Payments,510032,School Children,01/04/2019,3571360-12832,745.88,SAPLINGS NATURE KINDERGARTEN & FOREST SCHOOL.
Dedicated Schools Grant BG0015,DSG Early Years Block,Transfer Payments,510030,School Children,01/04/2019,3571360-13020,"7,702.50",SAPLINGS NATURE KINDERGARTEN & FOREST SCHOOL.
Dedicated Schools Grant BG0015,DSG Early Years Block,Transfer Payments,510032,School Children,01/04/2019,3571361-12933,745.88,SARAH FARRELL.
Dedicated Schools Grant BG0015,DSG Early Years Block,Transfer Payments,510032,School Children,01/04/2019,3571365-12936,"2,486.25",SEAHAM HOUSE DAY NURSERY.
Dedicated Schools Grant BG0015,DSG Early Years Block,Transfer Payments,510030,School Children,01/04/2019,3571365-13179,"11,597.63",SEAHAM HOUSE DAY NURSERY.
Dedicated Schools Grant BG0015,DSG Early Years Block,Transfer Payments,510032,School Children,01/04/2019,3571366-12937,"2,486.25",SEASIDE LANE NURSERY.
Dedicated Schools Grant BG0015,DSG Early Years Block,Transfer Payments,510030,School Children,01/04/2019,3571366-13180,"2,961.56",SEASIDE LANE NURSERY.
Dedicated Schools Grant BG0015,DSG Early Years Block,Transfer Payments,510030,School Children,01/04/2019,3571370-13182,962.81,SHARON CLARKE.
Dedicated Schools Grant BG0015,DSG Early Years Block,Transfer Payments,510032,School Children,01/04/2019,3571373-12834,"5,221.13",SHOTLEY BRIDGE NURSERY SCHOOL LTD.
Dedicated Schools Grant BG0015,DSG Early Years Block,Transfer Payments,510030,School Children,01/04/2019,3571373-13023,"56,160.00",SHOTLEY BRIDGE NURSERY SCHOOL LTD.
Dedicated Schools Grant BG0015,DSG Early Years Block,Transfer Payments,510032,School Children,01/04/2019,3571376-12939,994.50,SMALL WORLD DAY NURSERY.
Dedicated Schools Grant BG0015,DSG Early Years Block,Transfer Payments,510030,School Children,01/04/2019,3571376-13184,"7,769.78",SMALL WORLD DAY NURSERY.
Dedicated Schools Grant BG0015,DSG Early Years Block,Transfer Payments,510032,School Children,01/04/2019,3571380-12913,994.50,ST BEDES PLAYGROUP.
Dedicated Schools Grant BG0015,DSG Early Years Block,Transfer Payments,510030,School Children,01/04/2019,3571380-13144,"3,536.33",ST BEDES PLAYGROUP.
Dedicated Schools Grant BG0015,DSG Early Years Block,Transfer Payments,510032,School Children,01/04/2019,3571381-12835,"10,143.90",ST OSWALD`S PRE SCHOOL LEARNING CENTRE.
Dedicated Schools Grant BG0015,DSG Early Years Block,Transfer Payments,510030,School Children,01/04/2019,3571381-13024,"30,415.25",ST OSWALD`S PRE SCHOOL LEARNING CENTRE.
Dedicated Schools Grant BG0015,DSG Early Years Block,Transfer Payments,510030,School Children,01/04/2019,3571383-13188,"11,466.00",STANLEY LEARNING PARTNERSHIP.
Dedicated Schools Grant BG0015,DSG Early Years Block,Transfer Payments,510030,School Children,01/04/2019,3571384-13190,"10,793.25",STEPHENSON WAY ACADEMY & NURSERY SCHOOL.
Dedicated Schools Grant BG0015,DSG Early Years Block,Transfer Payments,510030,School Children,01/04/2019,3571385-13191,"11,073.56",STEPPING STONES COOP NURSERY LTD.
Dedicated Schools Grant BG0015,DSG Early Years Block,Transfer Payments,510032,School Children,01/04/2019,3571386-12941,994.50,STEPPING STONES DAY NURSERY (DURHAM).
Dedicated Schools Grant BG0015,DSG Early Years Block,Transfer Payments,510030,School Children,01/04/2019,3571386-13192,"1,358.50",STEPPING STONES DAY NURSERY (DURHAM).
Dedicated Schools Grant BG0015,DSG Early Years Block,Transfer Payments,510032,School Children,01/04/2019,3571389-12943,"5,221.13",SUNSHINE DAY NURSERY LTD.
Dedicated Schools Grant BG0015,DSG Early Years Block,Transfer Payments,510030,School Children,01/04/2019,3571389-13194,"11,875.50",SUNSHINE DAY NURSERY LTD.
Dedicated Schools Grant BG0015,DSG Early Years Block,Transfer Payments,510032,School Children,01/04/2019,3571390-12945,"5,718.38",SUNSHINE DAY NURSERY LTD.
Dedicated Schools Grant BG0015,DSG Early Years Block,Transfer Payments,510030,School Children,01/04/2019,3571390-13196,"9,793.88",SUNSHINE DAY NURSERY LTD.
Dedicated Schools Grant BG0015,DSG Early Years Block,Transfer Payments,510032,School Children,01/04/2019,3571391-12944,"4,475.25",SUNSHINE DAY NURSERY LTD.
Dedicated Schools Grant BG0015,DSG Early Years Block,Transfer Payments,510030,School Children,01/04/2019,3571391-13195,"10,851.75",SUNSHINE DAY NURSERY LTD.
Dedicated Schools Grant BG0015,DSG Early Years Block,Transfer Payments,510032,School Children,01/04/2019,3571399-12946,"4,723.88",THE LAURELS CHILD CARE COMPANY LTD.
Dedicated Schools Grant BG0015,DSG Early Years Block,Transfer Payments,510030,School Children,01/04/2019,3571399-13199,"4,197.38",THE LAURELS CHILD CARE COMPANY LTD.
Dedicated Schools Grant BG0015,DSG Early Years Block,Transfer Payments,510032,School Children,01/04/2019,3571400-12947,"3,663.08",THE NURSERY.
Dedicated Schools Grant BG0015,DSG Early Years Block,Transfer Payments,510030,School Children,01/04/2019,3571400-13200,"5,841.06",THE NURSERY.
Dedicated Schools Grant BG0015,DSG Early Years Block,Transfer Payments,510030,School Children,01/04/2019,3571349-13189,"3,864.25",THE ROMERO CATHOLIC EDUCATION TRUST.
Dedicated Schools Grant BG0015,DSG Early Years Block,Transfer Payments,510032,School Children,01/04/2019,3571401-12615,"1,377.00",TILLY MINTS CHERUBS DAY NURSERY LTD.
Dedicated Schools Grant BG0015,DSG Early Years Block,Transfer Payments,510030,School Children,01/04/2019,3571401-13029,"55,458.00",TILLY MINTS CHERUBS DAY NURSERY LTD.
Dedicated Schools Grant BG0015,DSG Early Years Block,Transfer Payments,510032,School Children,01/04/2019,3571402-12837,"18,646.88",TILLY MINTS CHERUBS DAY NURSERY LTD.
Dedicated Schools Grant BG0015,DSG Early Years Block,Transfer Payments,510032,School Children,01/04/2019,3571404-12892,"7,707.38",TM NURSERY ENTERPRISES LTD T/A JACK IN THE BOX DAYCARE.
Dedicated Schools Grant BG0015,DSG Early Years Block,Transfer Payments,510030,School Children,01/04/2019,3571404-13108,"9,993.75",TM NURSERY ENTERPRISES LTD T/A JACK IN THE BOX DAYCARE.
Dedicated Schools Grant BG0015,DSG Early Years Block,Transfer Payments,510032,School Children,01/04/2019,3571405-12948,"4,226.63",TOTS `R` US.
Dedicated Schools Grant BG0015,DSG Early Years Block,Transfer Payments,510030,School Children,01/04/2019,3571405-13202,"4,422.60",TOTS `R` US.
Dedicated Schools Grant BG0015,DSG Early Years Block,Transfer Payments,510032,School Children,01/04/2019,3571407-12949,994.50,TRIMDON`S LITTLE TYKES LTD.
Dedicated Schools Grant BG0015,DSG Early Years Block,Transfer Payments,510030,School Children,01/04/2019,3571407-13204,"2,275.00",TRIMDON`S LITTLE TYKES LTD.
Dedicated Schools Grant BG0015,DSG Early Years Block,Transfer Payments,510030,School Children,01/04/2019,3571408-13022,"15,590.25",TUDHOE LEARNING TRUST T/A SOUTH HETTON PRIMARY SCHOOL.
Dedicated Schools Grant BG0015,DSG High Needs Block,Transfer Payments,510034,School Children,01/04/2019,3571408-LACPP1819SPRING-DUR,"1,950.00",TUDHOE LEARNING TRUST T/A SOUTH HETTON PRIMARY SCHOOL.
Dedicated Schools Grant BG0015,DSG Early Years Block,Transfer Payments,510030,School Children,01/04/2019,3571409-13187,"6,329.38",TUDHOE LEARNING TRUST T/A SOUTH HETTON PRIMARY SCHOOL.
Dedicated Schools Grant BG0015,DSG Early Years Block,Transfer Payments,510032,School Children,01/04/2019,3571412-12874,745.88,UNIVERSITY OF DURHAM DAY NURSERY.
Dedicated Schools Grant BG0015,DSG Early Years Block,Transfer Payments,510030,School Children,01/04/2019,3571412-13085,"9,884.88",UNIVERSITY OF DURHAM DAY NURSERY.
Dedicated Schools Grant BG0015,DSG Early Years Block,Transfer Payments,510032,School Children,01/04/2019,3571413-12951,"6,961.50",USHAW MOOR DAYCARE.
Dedicated Schools Grant BG0015,DSG Early Years Block,Transfer Payments,510030,School Children,01/04/2019,3571414-13206,"8,292.38",USHAW MOOR PRE SCHOOL.
Dedicated Schools Grant BG0015,DSG Early Years Block,Transfer Payments,510030,School Children,01/04/2019,3571415-13030,563.06,VALERIE ELLIS.
Dedicated Schools Grant BG0015,DSG Early Years Block,Transfer Payments,510030,School Children,01/04/2019,3571418-12660,534.60,VICTORIA ANNE DONNELLY.
Dedicated Schools Grant BG0015,DSG Early Years Block,Transfer Payments,510032,School Children,01/04/2019,3571418-12838,"1,491.75",VICTORIA ANNE DONNELLY.
Dedicated Schools Grant BG0015,DSG Early Years Block,Transfer Payments,510030,School Children,01/04/2019,3571419-13031,"2,369.25",VICTORIA ANNE DONNELLY.
Dedicated Schools Grant BG0015,DSG Early Years Block,Transfer Payments,510030,School Children,01/04/2019,3571422-13207,"8,169.53",VICTORIA LANE ACADEMY.
Dedicated Schools Grant BG0015,DSG Early Years Block,Transfer Payments,510032,School Children,01/04/2019,3571425-12797,"18,646.88",WAYMAN DEVELOPMENTS LTD T/A CHILDSPLAY PRIVATE NURSERY.
Dedicated Schools Grant BG0015,DSG Early Years Block,Transfer Payments,510030,School Children,01/04/2019,3571425-12969,"39,575.25",WAYMAN DEVELOPMENTS LTD T/A CHILDSPLAY PRIVATE NURSERY.
Dedicated Schools Grant BG0015,DSG Early Years Block,Transfer Payments,510032,School Children,01/04/2019,3571426-12795,"14,917.50",WAYMAN DEVELOPMENTS LTD T/A CHILDSPLAY PRIVATE NURSERY.
Dedicated Schools Grant BG0015,DSG Early Years Block,Transfer Payments,510030,School Children,01/04/2019,3571426-12967,"18,756.56",WAYMAN DEVELOPMENTS LTD T/A CHILDSPLAY PRIVATE NURSERY.
Dedicated Schools Grant BG0015,DSG Early Years Block,Transfer Payments,510032,School Children,01/04/2019,3571427-12796,"7,458.75",WAYMAN DEVELOPMENTS LTD T/A CHILDSPLAY PRIVATE NURSERY.
Dedicated Schools Grant BG0015,DSG Early Years Block,Transfer Payments,510030,School Children,01/04/2019,3571427-12968,"19,188.00",WAYMAN DEVELOPMENTS LTD T/A CHILDSPLAY PRIVATE NURSERY.
Dedicated Schools Grant BG0015,DSG Early Years Block,Transfer Payments,510032,School Children,01/04/2019,3571429-12840,"5,221.13",WEARDALE AM/PM SCAMPS LTD.
Dedicated Schools Grant BG0015,DSG Early Years Block,Transfer Payments,510030,School Children,01/04/2019,3571429-13032,"4,279.28",WEARDALE AM/PM SCAMPS LTD.
Dedicated Schools Grant BG0015,DSG Early Years Block,Transfer Payments,510032,School Children,01/04/2019,3571432-12842,"5,221.13",WESTFIELD HOUSE NURSERY.
Dedicated Schools Grant BG0015,DSG Early Years Block,Transfer Payments,510030,School Children,01/04/2019,3571432-13033,"25,418.25",WESTFIELD HOUSE NURSERY.
Dedicated Schools Grant BG0015,DSG Early Years Block,Transfer Payments,510032,School Children,01/04/2019,3571434-12953,"1,989.00",WHEATLEY HILL COMMUNITY NURSERY LTD.
Dedicated Schools Grant BG0015,DSG Early Years Block,Transfer Payments,510030,School Children,01/04/2019,3571434-13209,"6,756.75",WHEATLEY HILL COMMUNITY NURSERY LTD.
Dedicated Schools Grant BG0015,DSG Early Years Block,Transfer Payments,510032,School Children,01/04/2019,3571435-12843,"20,138.63",WINGATE COMMUNITY CHILDCARE LTD.
Dedicated Schools Grant BG0015,DSG Early Years Block,Transfer Payments,510030,School Children,01/04/2019,3571435-13034,"17,887.84",WINGATE COMMUNITY CHILDCARE LTD.
Dedicated Schools Grant BG0015,DSG Early Years Block,Transfer Payments,510030,School Children,01/04/2019,3571437-13035,"19,851.00",WITTON GILBERT PRE SCHOOL.
Dedicated Schools Grant BG0015,DSG Early Years Block,Transfer Payments,510032,School Children,01/04/2019,3571439-12844,"2,237.63",WOODLANDS DAY NURSERY.
Dedicated Schools Grant BG0015,DSG Early Years Block,Transfer Payments,510030,School Children,01/04/2019,3571439-13036,"20,219.06",WOODLANDS DAY NURSERY.
Dedicated Schools Grant BG0015,DSG Early Years Block,Transfer Payments,510032,School Children,01/04/2019,3571440-12954,"1,491.75",YORK HOUSE NURSERY.
Dedicated Schools Grant BG0015,DSG Early Years Block,Transfer Payments,510030,School Children,01/04/2019,3571440-13210,"14,990.63",YORK HOUSE NURSERY.
Regeneration and Local Services,Environmental Services,Third Party Payments 4THIRD,430100,Rendered by Private Contractors,01/04/2019,3571058-55395,"2,218.18",ALAN REED LTD.
Regeneration and Local Services,Corporate Property and Land,Premises,120037,Energy Costs,01/04/2019,3571065-365969,955.33,AMP CLEAN ENERGY.
Regeneration and Local Services,Environmental Services,Third Party Payments 4THIRD,430100,Rendered by Private Contractors,01/04/2019,3571077-INV-3018,"1,152.00",ANNFIELD AUTO SERVICES.
Regeneration and Local Services,Environmental Services,Transport,210057,Repair and Maintenance of Vehicles,01/04/2019,3571087-15146164,536.63,BELL TRUCK SALES LTD T/A BELL TRUCK & VAN.
Regeneration and Local Services,Environmental Services,Transport,210057,Repair and Maintenance of Vehicles,01/04/2019,3571087-15146204,903.76,BELL TRUCK SALES LTD T/A BELL TRUCK & VAN.
Regeneration and Local Services,Environmental Services,Transport,210057,Repair and Maintenance of Vehicles,01/04/2019,3571087-35162565,505.76,BELL TRUCK SALES LTD T/A BELL TRUCK & VAN.
Regeneration and Local Services,Environmental Services,Third Party Payments 4THIRD,430100,Rendered by Private Contractors,01/04/2019,3571096-82587747,"1,762.30",BRISTOL STREET MOTORS.
Regeneration and Local Services,Environmental Services,Transport,210057,Repair and Maintenance of Vehicles,01/04/2019,3571097-7321923,512.72,BRISTOL STREET MOTORS.
Regeneration and Local Services,Environmental Services,Transport,210057,Repair and Maintenance of Vehicles,01/04/2019,3571098-INV244961,588.40,BROXAP LTD.
Regeneration and Local Services,Environmental Services,Third Party Payments 4THIRD,430100,Rendered by Private Contractors,01/04/2019,3571113-223905,"1,600.35",CHATFIELDS T/A EVANS HALSHAW.
Regeneration and Local Services,Culture & Sport,Supplies and Services,338047,Services,01/04/2019,3571126-1A,808.00,CONSETT JUNIOR SCHOOL FUND ACCOUNT.
Regeneration and Local Services,Environmental Services,Transport,210057,Repair and Maintenance of Vehicles,01/04/2019,3571142-DE11204209,"1,232.97",DENNIS EAGLE LTD.
Regeneration and Local Services,Environmental Services,Third Party Payments 4THIRD,430100,Rendered by Private Contractors,01/04/2019,3571143-336407,"2,872.69",DENNIS EAGLE LTD.
Regeneration and Local Services,Environmental Services,Supplies and Services,384540,Miscellaneous Expenses,01/04/2019,3571148-16753,"4,500.00",DTW ADVERTISING & MARKETING LTD T/A DTW.
Regeneration and Local Services,Environmental Services,Transport,210057,Repair and Maintenance of Vehicles,01/04/2019,3571154-S202161,647.84,ECON ENGINEERING LTD.
Regeneration and Local Services,Corporate Property and Land,Supplies and Services,304221,Equipment and Materials,01/04/2019,3571165-1812-130789,551.01,FLAME HEATING SPARES LTD.
Regeneration and Local Services,Corporate Property and Land,Premises,108099,Service Repairs and Maintenance,01/04/2019,3571177-CD970205412,"13,367.65",GRAHAM ENVIRONMENTAL SERVICES.*
Regeneration and Local Services,Environmental Services,Third Party Payments 4THIRD,430100,Rendered by Private Contractors,01/04/2019,3571194-76880,"1,757.66",HOGARTH COACHWORKS LTD.
Regeneration and Local Services,Environmental Services,Third Party Payments 4THIRD,430100,Rendered by Private Contractors,01/04/2019,3571218-65303370,897.95,JOHNSTON SWEEPERS LTD.
Regeneration and Local Services,Economic Development and Housing,Supplies and Services,384700,Miscellaneous Expenses,01/04/2019,3571220-RED-03-2019-251,"1,000.00",JT LEWIS LTD.
Regeneration and Local Services,Technical Services CM0300,Supplies and Services,304221,Equipment and Materials,01/04/2019,3571275-Z000268018,"1,154.60",MARSHALLS MONO LTD.
Regeneration and Local Services,Environmental Services,Third Party Payments 4THIRD,430100,Rendered by Private Contractors,01/04/2019,3571319-1411693,"3,301.57",NORTH EAST TRUCK & VAN LTD.
Regeneration and Local Services,Environmental Services,Transport,210057,Repair and Maintenance of Vehicles,01/04/2019,3571319-1880655,666.34,NORTH EAST TRUCK & VAN LTD.
Regeneration and Local Services,Environmental Services,Transport,210057,Repair and Maintenance of Vehicles,01/04/2019,3571319-1880710,"1,208.60",NORTH EAST TRUCK & VAN LTD.
Regeneration and Local Services,Environmental Services,Transport,210057,Repair and Maintenance of Vehicles,01/04/2019,3571319-21823465,740.13,NORTH EAST TRUCK & VAN LTD.
Regeneration and Local Services,Environmental Services,Transport,215005,Running Costs of Vehicles,01/04/2019,3571322-408166,"16,186.02",OIL NRG LTD.
Regeneration and Local Services,Environmental Services,Transport,215005,Running Costs of Vehicles,01/04/2019,3571322-408172,"5,127.46",OIL NRG LTD.
Regeneration and Local Services,Environmental Services,Transport,215022,Running Costs of Vehicles,01/04/2019,3571322-408174,564.90,OIL NRG LTD.
Regeneration and Local Services,Environmental Services,Transport,215005,Running Costs of Vehicles,01/04/2019,3571322-408176,"2,064.93",OIL NRG LTD.
Regeneration and Local Services,Environmental Services,Transport,215022,Running Costs of Vehicles,01/04/2019,3571322-408177,563.77,OIL NRG LTD.
Regeneration and Local Services,Environmental Services,Third Party Payments 4THIRD,430100,Rendered by Private Contractors,01/04/2019,3571364-2019.1000008268,986.31,SCARAB SWEEPERS LTD.
Regeneration and Local Services,Environmental Services,Supplies and Services,384999,Miscellaneous Expenses,01/04/2019,3571382-RES-04-2019-111,"2,700.00",STANHOPE PARISH COUNCIL.
Regeneration and Local Services,Environmental Services,Transport,210057,Repair and Maintenance of Vehicles,01/04/2019,3571436-902142393,942.36,WIRTGEN LTD.
Regeneration and Local Services,Environmental Services,Supplies and Services,384999,Miscellaneous Expenses,01/04/2019,3571438-RES-04-2019-112,"24,170.00",WOLSINGHAM PARISH COUNCIL.
Resources BK0010,Digital and Customer Services,Supplies and Services,342051,Computers and Communications,01/04/2019,3571368-0033602159,"18,910.00",SERVELEC LTD.
Adult and Health Services,Commissioning inc Supporting People,Premises,145050,Cleaning and Domestic Supplies,02/04/2019,3572208-71992,"7,630.92",ANLABY OFFICE CLEANING SERVICES LTD.
Adult and Health Services,Commissioning inc Supporting People,Supplies and Services,338066,Services,02/04/2019,3572225-SIN006027,"1,328.29",BLOOM PROCUREMENT SERVICES LTD (FORMERLY NEPRO LTD).
Adult and Health Services,Head of Adults,Third Party Payments 4THIRD,478151,Purchase of Care,02/04/2019,3572269-INV-0046,"2,266.54",DEACONSTAR LTD.
Adult and Health Services,Public Health CC0450,Third Party Payments 4THIRD,460803,Contract Payments,02/04/2019,3572312-2510025668,"8,538.99",HARROGATE & DISTRICT NHS FOUNDATION TRUST.
Adult and Health Services,Head of Adults,Third Party Payments 4THIRD,478151,Purchase of Care,02/04/2019,3572320-HLC11,"2,493.21",HIGHLEA CARE LTD.
Adult and Health Services,Head of Adults,Third Party Payments 4THIRD,478151,Purchase of Care,02/04/2019,3572320-HLC13,"2,576.32",HIGHLEA CARE LTD.
Adult and Health Services,Head of Adults,Third Party Payments 4THIRD,478151,Purchase of Care,02/04/2019,3572320-HLC14,"2,327.00",HIGHLEA CARE LTD.
Adult and Health Services,Head of Adults,Third Party Payments 4THIRD,478151,Purchase of Care,02/04/2019,3572320-HLC15,"2,576.32",HIGHLEA CARE LTD.
Adult and Health Services,Head of Adults,Third Party Payments 4THIRD,478151,Purchase of Care,02/04/2019,3572320-HLC37,624.53,HIGHLEA CARE LTD.
Adult and Health Services,Commissioning inc Supporting People,Third Party Payments 4THIRD,470111,Purchase of Care,02/04/2019,3572343-RINVTP/00511007,"3,824.24",LEONARD CHESHIRE DISABILITY.
Children and Young Peoples Services,Head of Education and Skills,Transport,230008,Contract Hire,02/04/2019,3572206-05/19A,"1,680.00",ADVANCE TRAVEL.
Children and Young Peoples Services,Head of Education and Skills,Transport,230008,Contract Hire,02/04/2019,3572247-INV-027,"1,470.00",CLARE LYNSEY STEWART T/A K&C TAXIS.
Children and Young Peoples Services,Head of Childrens Social Care,Transport,230005,Contract Hire,02/04/2019,3572250-CLUB1909L,858.00,CLUBMAN CABS.
Children and Young Peoples Services,Head of Childrens Social Care,Transport,230005,Contract Hire,02/04/2019,3572250-CLUB1909W,550.00,CLUBMAN CABS.
Children and Young Peoples Services,Head of Childrens Social Care,Transport,230005,Contract Hire,02/04/2019,3572250-CLUB1911B,560.00,CLUBMAN CABS.
Children and Young Peoples Services,Head of Childrens Social Care,Transport,230005,Contract Hire,02/04/2019,3572250-CLUB1911L,951.00,CLUBMAN CABS.
Children and Young Peoples Services,Head of Childrens Social Care,Transport,230005,Contract Hire,02/04/2019,3572250-CLUB1911V,550.00,CLUBMAN CABS.
Children and Young Peoples Services,Head of Childrens Social Care,Third Party Payments 4THIRD,486044,Service level agreements E486,02/04/2019,3572252-3980033305,"3,403.53",CO DURHAM & DARLINGTON NHS FOUNDATION TRUST.
Children and Young Peoples Services,Head of Childrens Social Care,Transport,230005,Contract Hire,02/04/2019,3572261-108996,661.21,CROFT BUSINESS SERVICES (UK) LTD T/A CROFT TAXIS.
Children and Young Peoples Services,Head of Childrens Social Care,Transport,230005,Contract Hire,02/04/2019,3572261-109007,547.80,CROFT BUSINESS SERVICES (UK) LTD T/A CROFT TAXIS.
Children and Young Peoples Services,Head of Childrens Social Care,Transport,230005,Contract Hire,02/04/2019,3572261-109033,707.75,CROFT BUSINESS SERVICES (UK) LTD T/A CROFT TAXIS.
Children and Young Peoples Services,Head of Childrens Social Care,Transport,230005,Contract Hire,02/04/2019,3572261-109044,547.80,CROFT BUSINESS SERVICES (UK) LTD T/A CROFT TAXIS.
Children and Young Peoples Services,Head of Education and Skills,Transport,230008,Contract Hire,02/04/2019,3572355-INV167,"1,092.00",MICHAEL COBB T/A HAIL TAXIS.
Children and Young Peoples Services,Head of Childrens Social Care,Supplies and Services,352001,Conference Expenses,02/04/2019,3572394-7299,"1,350.00",RIGHT 2 WRITE LTD.
Children and Young Peoples Services,Head of Childrens Social Care,Transport,230005,Contract Hire,02/04/2019,3572419-75067,615.00,SHOTTON PRIVATE HIRE.
Children and Young Peoples Services,Childrens Services Operational Support CG0080,Supplies and Services,338099,Services,02/04/2019,3572431-2805019642,"2,500.00",SUNDERLAND CITY COUNCIL.
Children and Young Peoples Services,Head of Early Help Inclusion & Vulnerable Children.,Supplies and Services,338099,Services,02/04/2019,3572440-11917,600.00,THE NO WAY TRUST LTD.
Children and Young Peoples Services,Head of Education and Skills,Transport,230008,Contract Hire,02/04/2019,3572446-113,"1,575.00",TRIDENT TAXIS.
Children and Young Peoples Services,Head of Childrens Social Care,Third Party Payments 4THIRD,440038,Other third party payments E440,02/04/2019,3572454-INV-0439,"4,453.08",WE CARE RECRUITMENT SOLUTIONS LTD.
Dedicated Schools Grant BG0015,DSG Early Years Block,Transfer Payments,510032,School Children,02/04/2019,3572254-12816,"11,934.00",CORECARE NA LTD.
Dedicated Schools Grant BG0015,DSG Early Years Block,Transfer Payments,510030,School Children,02/04/2019,3572254-12994,"18,588.38",CORECARE NA LTD.
Dedicated Schools Grant BG0015,DSG High Needs Block,Third Party Payments 4THIRD,410037,Rendered by Other Local Authorities,02/04/2019,3572276-8611,"2,665.50",DURHAM SCHOOL.*
Dedicated Schools Grant BG0015,DSG High Needs Block,Third Party Payments 4THIRD,410037,Rendered by Other Local Authorities,02/04/2019,3572319-1,"17,495.40",HIGH SPEN PRIMARY SCHOOL.
Regeneration and Local Services,Technical Services CM0300,Fees,901002,Consultants fees 901002,02/04/2019,3572207-28380830,500.00,AECOM LTD.
Regeneration and Local Services,Environmental Services,Supplies and Services,384199,Miscellaneous Expenses,02/04/2019,3572274-16768,"2,400.00",DTW ADVERTISING & MARKETING LTD T/A DTW.
Regeneration and Local Services,Culture & Sport,Supplies and Services,304337,Equipment and Materials,02/04/2019,3572293-39447,993.40,FARRAHS OF HARROGATE LTD.
Regeneration and Local Services,EnvironmentHealth & Consumer Protection,Supplies and Services,338027,Services,02/04/2019,3572309-0000012900,"8,086.25",GROUNDWORK NORTH EAST.
Regeneration and Local Services,Culture & Sport,Supplies and Services,384199,Miscellaneous Expenses,02/04/2019,3572328-546412,"1,800.00",IMMEDIATE MEDIA COMPANY BRISTOL LTD.
Regeneration and Local Services,Technical Services CM0300,Stock A926,926900,Stock in hand-Inventory system,02/04/2019,3572337-GOI1473/D,700.00,JT DOVE LTD.
Regeneration and Local Services,Business Durham CL0850,Supplies and Services,340001,Postages E340,02/04/2019,3572373-RED-04-2019-009,"3,000.00",NEOPOST CREDIFON.
Regeneration and Local Services,Environmental Services,Supplies and Services,384194,Miscellaneous Expenses,02/04/2019,3572404-4556,578.96,SAFE STRIP UK LTD.
Regeneration and Local Services,Environmental Services,Supplies and Services,384899,Miscellaneous Expenses,02/04/2019,3572468-SI102940A,"2,500.00",YORKSHIRE DALES NATIONAL PARK AUTHORITY (NPA).
Resources - C A C,LCTSS,Third Party Payments 4THIRD,440070,Other third party payments E440,02/04/2019,3572213-RES-04-2019-036A,"2,510.00",BARNARD CASTLE TOWN COUNCIL.
Resources - C A C,LCTSS,Third Party Payments 4THIRD,440070,Other third party payments E440,02/04/2019,3572217-RES-04-2019-032A,"1,385.00",BEARPARK PARISH COUNCIL.
Resources - C A C,LCTSS,Third Party Payments 4THIRD,440070,Other third party payments E440,02/04/2019,3572218-RES-04-2019-005A,"3,413.00",BELMONT PARISH COUNCIL.
Resources - C A C,LCTSS,Third Party Payments 4THIRD,440070,Other third party payments E440,02/04/2019,3572223-RES-04-2019-061A,"12,065.00",BISHOP AUCKLAND TOWN COUNCIL.
Resources - C A C,LCTSS,Third Party Payments 4THIRD,440070,Other third party payments E440,02/04/2019,3572224-RES-04-2019-109A,"2,609.00",BISHOP MIDDLEHAM PARISH COUNCIL.
Resources - C A C,LCTSS,Third Party Payments 4THIRD,440070,Other third party payments E440,02/04/2019,3572227-RES-04-2019-063A,"1,228.00",BOURNMOOR PARISH COUNCIL.
Resources - C A C,LCTSS,Third Party Payments 4THIRD,440070,Other third party payments E440,02/04/2019,3572243-RES-04-2019-108A,"6,135.00",CHARTER TRUSTEES FOR THE CITY OF DURHAM.
Resources - C A C,LCTSS,Third Party Payments 4THIRD,440070,Other third party payments E440,02/04/2019,3572253-RES-04-2019-057A,"3,190.00",COCKFIELD PARISH COUNCIL.
Resources - C A C,LCTSS,Third Party Payments 4THIRD,440070,Other third party payments E440,02/04/2019,3572255-RES-04-2019-019A,"20,135.00",CORNFORTH PARISH COUNCIL.
Resources - C A C,LCTSS,Third Party Payments 4THIRD,440070,Other third party payments E440,02/04/2019,3572256-RES-04-2019-042A,768.00,CORNSAY PARISH COUNCIL.
Resources - C A C,LCTSS,Third Party Payments 4THIRD,440070,Other third party payments E440,02/04/2019,3572262-RES-04-2019-067A,659.00,CROXDALE & HETT PARISH COUNCIL.
Resources - C A C,LCTSS,Third Party Payments 4THIRD,440070,Other third party payments E440,02/04/2019,3572267-RES-04-2019-037A,547.00,DALTON LE DALE PARISH COUNCIL.
Resources - C A C,LCTSS,Third Party Payments 4THIRD,440070,Other third party payments E440,02/04/2019,3572279-RES-04-2019-018A,"24,449.50",EASINGTON COLLIERY PARISH COUNCIL.
Resources - C A C,LCTSS,Third Party Payments 4THIRD,440070,Other third party payments E440,02/04/2019,3572281-RES-04-2019-069A,"1,027.00",EDMONDSLEY PARISH COUNCIL.
Resources - C A C,LCTSS,Third Party Payments 4THIRD,440070,Other third party payments E440,02/04/2019,3572286-RES-04-2019-071A,"1,757.00",ELDON PARISH COUNCIL.
Resources - C A C,LCTSS,Third Party Payments 4THIRD,440070,Other third party payments E440,02/04/2019,3572289-RES-04-2019-028A,"2,749.00",ESH PARISH COUNCIL.
Resources - C A C,LCTSS,Third Party Payments 4THIRD,440070,Other third party payments E440,02/04/2019,3572291-RES-04-2019-024A,848.00,ETHERLEY PARISH COUNCIL.
Resources - C A C,LCTSS,Third Party Payments 4THIRD,440070,Other third party payments E440,02/04/2019,3572292-RES-04-2019-072A,"1,809.00",EVENWOOD & BARONY PARISH COUNCIL.
Resources - C A C,LCTSS,Third Party Payments 4THIRD,440070,Other third party payments E440,02/04/2019,3572294-RES-04-2019-001A,"58,976.00",FERRYHILL TOWN COUNCIL.
Resources - C A C,LCTSS,Third Party Payments 4THIRD,440070,Other third party payments E440,02/04/2019,3572296-RES-04-2019-023A,"10,641.00",FISHBURN PARISH COUNCIL.
Resources - C A C,LCTSS,Third Party Payments 4THIRD,440070,Other third party payments E440,02/04/2019,3572305-RES-04-2019-002A,"80,937.00",GREAT AYCLIFFE TOWN COUNCIL.
Resources - C A C,LCTSS,Third Party Payments 4THIRD,440070,Other third party payments E440,02/04/2019,3572306-RES-04-2019-076A,"1,825.00",GREAT LUMLEY PARISH COUNCIL.
Resources - C A C,LCTSS,Third Party Payments 4THIRD,440070,Other third party payments E440,02/04/2019,3572307-RES-04-2019-075A,"4,434.00",GREATER WILLINGTON TOWN COUNCIL.
Resources - C A C,LCTSS,Third Party Payments 4THIRD,440070,Other third party payments E440,02/04/2019,3572314-RES-04-2019-049A,"8,609.00",HASWELL PARISH COUNCIL.
Resources - C A C,LCTSS,Third Party Payments 4THIRD,440070,Other third party payments E440,02/04/2019,3572323-RES-04-2019-007A,"48,071.50",HORDEN PARISH COUNCIL.
Resources - C A C,LCTSS,Third Party Payments 4THIRD,440070,Other third party payments E440,02/04/2019,3572324-RES-04-2019-078A,"3,272.00",HUTTON HENRY PARISH COUNCIL.
Resources - C A C,LCTSS,Third Party Payments 4THIRD,440070,Other third party payments E440,02/04/2019,3572338-RES-04-2019-081A,"1,589.00",KELLOE PARISH COUNCIL.
Resources - C A C,LCTSS,Third Party Payments 4THIRD,440070,Other third party payments E440,02/04/2019,3572341-RES-04-2019-025A,658.00,LANCHESTER PARISH COUNCIL.
Resources - C A C,LCTSS,Third Party Payments 4THIRD,440070,Other third party payments E440,02/04/2019,3572358-RES-04-2019-033A,577.00,MIDDRIDGE PARISH COUNCIL.
Resources - C A C,LCTSS,Third Party Payments 4THIRD,440070,Other third party payments E440,02/04/2019,3572363-RES-04-2019-031A,"18,779.50",MONK HESLEDEN PARISH COUNCIL.
Resources - C A C,LCTSS,Third Party Payments 4THIRD,440070,Other third party payments E440,02/04/2019,3572371-RES-04-2019-051A,"19,288.00",MURTON PARISH COUNCIL.
Resources - C A C,LCTSS,Third Party Payments 4THIRD,440070,Other third party payments E440,02/04/2019,3572386-RES-04-2019-003A,"125,611.00",PETERLEE TOWN COUNCIL.
Resources - C A C,LCTSS,Third Party Payments 4THIRD,440070,Other third party payments E440,02/04/2019,3572402-RES-04-2019-026A,"4,807.00",SACRISTON PARISH COUNCIL.
Resources - C A C,LCTSS,Third Party Payments 4THIRD,440070,Other third party payments E440,02/04/2019,3572409-RES-04-2019-041A,"73,962.00",SEAHAM TOWN COUNCIL.
Resources - C A C,LCTSS,Third Party Payments 4THIRD,440070,Other third party payments E440,02/04/2019,3572411-RES-04-2019-009A,"3,676.00",SEDGEFIELD TOWN COUNCIL.
Resources - C A C,LCTSS,Third Party Payments 4THIRD,440070,Other third party payments E440,02/04/2019,3572413-RES-04-2019-016A,686.00,SHADFORTH PARISH COUNCIL.
Resources - C A C,LCTSS,Third Party Payments 4THIRD,440070,Other third party payments E440,02/04/2019,3572415-RES-04-2019-029A,"2,977.00",SHERBURN VILLAGE PARISH COUNCIL.
Resources - C A C,LCTSS,Third Party Payments 4THIRD,440070,Other third party payments E440,02/04/2019,3572416-RES-04-2019-010A,"45,678.50",SHILDON TOWN COUNCIL.
Resources - C A C,LCTSS,Third Party Payments 4THIRD,440070,Other third party payments E440,02/04/2019,3572421-RES-04-2019-020A,"11,989.00",SOUTH HETTON PARISH COUNCIL.
Resources - C A C,LCTSS,Third Party Payments 4THIRD,440070,Other third party payments E440,02/04/2019,3572427-RES-04-2019-096A,"53,330.00",STANLEY TOWN COUNCIL.
Resources - C A C,LCTSS,Third Party Payments 4THIRD,440070,Other third party payments E440,02/04/2019,3572442-RES-04-2019-098A,"7,603.00",THORNLEY PARISH COUNCIL.
Resources - C A C,LCTSS,Third Party Payments 4THIRD,440070,Other third party payments E440,02/04/2019,3572445-RES-04-2019-099A,"4,154.00",TOW LAW TOWN COUNCIL.
Resources - C A C,LCTSS,Third Party Payments 4THIRD,440070,Other third party payments E440,02/04/2019,3572447-RES-04-2019-055A,"9,592.00",TRIMDON FOUNDRY PARISH COUNCIL.
Resources - C A C,LCTSS,Third Party Payments 4THIRD,440070,Other third party payments E440,02/04/2019,3572448-RES-04-2019-022A,"11,350.00",TRIMDON PARISH COUNCIL.
Resources - C A C,LCTSS,Third Party Payments 4THIRD,440070,Other third party payments E440,02/04/2019,3572450-RES-04-2019-100A,"1,572.00",URPETH PARISH COUNCIL.
Resources - C A C,LCTSS,Third Party Payments 4THIRD,440070,Other third party payments E440,02/04/2019,3572455-RES-04-2019-101A,"3,588.00",WEST AUCKLAND PARISH COUNCIL.
Resources - C A C,LCTSS,Third Party Payments 4THIRD,440070,Other third party payments E440,02/04/2019,3572456-RES-04-2019-102A,"2,575.00",WEST RAINTON PARISH COUNCIL.
Resources - C A C,LCTSS,Third Party Payments 4THIRD,440070,Other third party payments E440,02/04/2019,3572458-RES-04-2019-056A,"19,685.00",WHEATLEY HILL PARISH COUNCIL.
Resources - C A C,LCTSS,Third Party Payments 4THIRD,440070,Other third party payments E440,02/04/2019,3572462-RES-04-2019-045A,"16,505.00",WINGATE PARISH COUNCIL.
Resources - C A C,LCTSS,Third Party Payments 4THIRD,440070,Other third party payments E440,02/04/2019,3572464-RES-04-2019-106A,"1,179.00",WITTON GILBERT PARISH COUNCIL.
Resources - C A C,LCTSS,Third Party Payments 4THIRD,440070,Other third party payments E440,02/04/2019,3572466-RES-04-2019-014A,685.00,WOLSINGHAM PARISH COUNCIL.
Resources BK0010,Legal & Democratic Services,Supplies and Services,338057,Services,02/04/2019,3572273-RES-04-2019-114,500.00,DR SCOTT PHILLIPS T/A GENTLE DENTAL CENTRE.
Resources BK0010,Legal & Democratic Services,Supplies and Services,338057,Services,02/04/2019,3572273-RES-04-2019-115,600.00,DR SCOTT PHILLIPS T/A GENTLE DENTAL CENTRE.
Transformation and Partnerships,Partnerships & Community Engagement Div.,Supplies and Services,308011,Furniture,02/04/2019,3572258-PC0080-28FEB19,"2,094.00",COUNTY DURHAM FURNITURE HELP SCHEME (CDFHS).
Adult and Health Services,Head of Adults,Supplies and Services,304516,Equipment and Materials,03/04/2019,3572485-INV-0233,527.00,BILL SCOTT TAXIS LTD.
Adult and Health Services,Head of Adults,Supplies and Services,338366,Services,03/04/2019,3572492-56062,"1,298.33",CARE ABILITY HEALTHCARE LTD.
Adult and Health Services,Head of Adults,Supplies and Services,338366,Services,03/04/2019,3572492-56063,"1,170.15",CARE ABILITY HEALTHCARE LTD.
Adult and Health Services,Head of Adults,Supplies and Services,338366,Services,03/04/2019,3572492-56159,868.25,CARE ABILITY HEALTHCARE LTD.
Adult and Health Services,Head of Adults,Supplies and Services,338366,Services,03/04/2019,3572492-56160,862.35,CARE ABILITY HEALTHCARE LTD.
Adult and Health Services,Head of Adults,Supplies and Services,338366,Services,03/04/2019,3572492-56161,"1,106.05",CARE ABILITY HEALTHCARE LTD.
Adult and Health Services,Head of Adults,Supplies and Services,338366,Services,03/04/2019,3572492-56564,"1,724.70",CARE ABILITY HEALTHCARE LTD.
Adult and Health Services,Commissioning inc Supporting People,Third Party Payments 4THIRD,479111,Purchase of Care,03/04/2019,3572493-3734,"5,020.01",CARERS FEDERATION LTD.
Adult and Health Services,Head of Adults,Supplies and Services,338045,Services,03/04/2019,3572504-DHAA0218,805.50,CYGNET FAMILY LAW.
Adult and Health Services,Commissioning inc Supporting People,Supplies and Services,384700,Miscellaneous Expenses,03/04/2019,3572508-14523,"3,730.00",DARLINGTON MIND LTD.
Adult and Health Services,Head of Adults,Third Party Payments 4THIRD,478151,Purchase of Care,03/04/2019,3572531-HCL33-2019,"1,598.02",HIGHLEA CARE LTD.
Adult and Health Services,Head of Adults,Third Party Payments 4THIRD,478151,Purchase of Care,03/04/2019,3572531-HCL34-2019,"1,708.23",HIGHLEA CARE LTD.
Adult and Health Services,Head of Adults,Third Party Payments 4THIRD,478151,Purchase of Care,03/04/2019,3572531-HCL35,"1,542.92",HIGHLEA CARE LTD.
Adult and Health Services,Head of Adults,Third Party Payments 4THIRD,478151,Purchase of Care,03/04/2019,3572531-HLC12,"2,576.32",HIGHLEA CARE LTD.
Adult and Health Services,Public Health CC0450,Third Party Payments 4THIRD,460803,Contract Payments,03/04/2019,3572534-787/19/1801,"374,815.58",HUMANKIND CHARITY.
Adult and Health Services,Head of Adults,Supplies and Services,344033,Telephones,03/04/2019,3572585-27525,554.00,RUSSELL TELECOM LTD.
Children and Young Peoples Services,Head of Education and Skills,Supplies and Services,372009,Subscriptions E372,03/04/2019,3572521-SIS19-0606,"43,979.23",FFT EDUCATION LTD.
Children and Young Peoples Services,Head of Education and Skills,Third Party Payments 4THIRD,440999,Other third party payments E440,03/04/2019,3572594-4100634065-2,"6,684.30",SMARTT NORTH EAST LTD.
Children and Young Peoples Services,Head of Education and Skills,Third Party Payments 4THIRD,440999,Other third party payments E440,03/04/2019,3572594-4100634065-3,"4,456.20",SMARTT NORTH EAST LTD.
Dedicated Schools Grant BG0015,DSG High Needs Block,Transfer Payments,510034,School Children,03/04/2019,312070-LACPP1819SPRING,"1,200.00",HETTON COMPREHENSIVE SCHOOL.
Non-Service Specific,Insurances,Expenditure 8INSEX,810001,Insurance Expenditure,03/04/2019,3572553-7080693,"9,996.00",MARSH LTD UK.
Regeneration and Local Services,Corporate Property and Land,Third Party Payments 4THIRD,430100,Rendered by Private Contractors,03/04/2019,3572474-17077,"5,750.00",AMBIC LTD.
Regeneration and Local Services,Economic Development and Housing,Fees,901001,Internal fees,03/04/2019,3572478-INV-000000370,"3,955.00",ARTICHOKE TRUST.
Regeneration and Local Services,Corporate Property and Land,Third Party Payments 4THIRD,430100,Rendered by Private Contractors,03/04/2019,3572481-1842,"2,649.00",AWR ROOFING & ALUMIN RAINWATER SYSTEMS LTD.
Regeneration and Local Services,Environmental Services,Supplies and Services,304221,Equipment and Materials,03/04/2019,3572482-97448620,"2,321.53",BALL COLEGRAVE LTD.
Regeneration and Local Services,Corporate Property and Land,Supplies and Services,304221,Equipment and Materials,03/04/2019,3572514-059-240604,508.57,EDMUNDSON ELECTRICAL LTD.
Regeneration and Local Services,Corporate Property and Land,Supplies and Services,304221,Equipment and Materials,03/04/2019,3572514-059-241028,775.88,EDMUNDSON ELECTRICAL LTD.
Regeneration and Local Services,Culture & Sport,Employees,080030,Agency Staff,03/04/2019,3572525-14,540.00,GAIL SMITH (NETBALL COACH).
Regeneration and Local Services,Culture & Sport,Employees,080030,Agency Staff,03/04/2019,3572525-15,540.00,GAIL SMITH (NETBALL COACH).
Regeneration and Local Services,Technical Services CM0300,Supplies and Services,304357,Equipment and Materials,03/04/2019,3572526-DCC170319,"16,894.01",GAP GROUP LTD.
Regeneration and Local Services,Technical Services CM0300,Supplies and Services,304357,Equipment and Materials,03/04/2019,3572526-DCC240319,"16,532.29",GAP GROUP LTD.
Regeneration and Local Services,Technical Services CM0300,Supplies and Services,304221,Equipment and Materials,03/04/2019,3572542-GOI1490/D,"3,158.26",JT DOVE LTD.
Regeneration and Local Services,Environmental Services,Supplies and Services,384199,Miscellaneous Expenses,03/04/2019,3572544-2231,"1,451.86",KEVIN DOONAN ARCHITECT LTD.
Regeneration and Local Services,Environmental Services,Supplies and Services,304221,Equipment and Materials,03/04/2019,3572569-26686,"4,608.21",NP STRUCTURES LTD.
Regeneration and Local Services,Environmental Services,Supplies and Services,304221,Equipment and Materials,03/04/2019,3572569-26687,"1,060.19",NP STRUCTURES LTD.
Regeneration and Local Services,Environmental Services,Supplies and Services,304221,Equipment and Materials,03/04/2019,3572569-26688,"4,084.07",NP STRUCTURES LTD.
Regeneration and Local Services,Environmental Services,Supplies and Services,304221,Equipment and Materials,03/04/2019,3572569-26689,"4,523.34",NP STRUCTURES LTD.
Regeneration and Local Services,Technical Services CM0300,Third Party Payments 4THIRD,430100,Rendered by Private Contractors,03/04/2019,3572580-118130,"1,100.00",PROTECTOR SECURITY GROUP LTD.
Regeneration and Local Services,Technical Services CM0300,Third Party Payments 4THIRD,430100,Rendered by Private Contractors,03/04/2019,3572580-118412,550.00,PROTECTOR SECURITY GROUP LTD.
Regeneration and Local Services,Technical Services CM0300,Third Party Payments 4THIRD,430100,Rendered by Private Contractors,03/04/2019,3572580-118712,550.00,PROTECTOR SECURITY GROUP LTD.
Regeneration and Local Services,Technical Services CM0300,Third Party Payments 4THIRD,430100,Rendered by Private Contractors,03/04/2019,3572580-118714,550.00,PROTECTOR SECURITY GROUP LTD.
Regeneration and Local Services,Business Support DM0110,Supplies and Services,340001,Postages E340,03/04/2019,3572583-9058402648,"1,425.31",ROYAL MAIL GROUP PLC.
Regeneration and Local Services,Culture & Sport,Employees,080030,Agency Staff,03/04/2019,3572587-196,577.00,SANDRA WATSON T/A HEART & SOLE FITNESS.
Regeneration and Local Services,Transport and Contracted Services,Supplies and Services,342051,Computers and Communications,03/04/2019,3572602-0635,"63,625.00",T2 CREATIVE INTELLIGENCE.
Regeneration and Local Services,Culture & Sport,Supplies and Services,384199,Miscellaneous Expenses,03/04/2019,3572603-RFP2801-REV-A/B,"3,000.00",TALENT 4 MEDIA LTD.
Regeneration and Local Services,Transport and Contracted Services,Supplies and Services,304259,Equipment and Materials,03/04/2019,3572614-3IN/10335021,"15,104.00",TUNSTALL HEALTHCARE (UK) LTD.
Regeneration and Local Services,Environmental Services,Premises,135005,Water Services,03/04/2019,3572617-314928190015393246,908.04,WAVE (AWBN).
Resources BK0010,Digital and Customer Services,Supplies and Services,304040,Equipment and Materials,03/04/2019,3572490-6003865370,"251,516.62",CAPITA BUSINESS SERVICES LTD.
Resources BK0010,Digital and Customer Services,Stock A926,926900,Stock in hand-Inventory system,03/04/2019,3572536-4289489,"11,456.00",INSIGHT DIRECT (UK) LTD.
Resources BK0010,Digital and Customer Services,Supplies and Services,304303,Equipment and Materials,03/04/2019,3572579-IP0288,602.70,PROMETHEAN LTD.
Transformation and Partnerships,Partnerships & Community Engagement Div.,Cap Exp on Grants & Other Financial Assistance (REFCUS),918004,Contributions to other bodies 918004,03/04/2019,3572511-VOUCHER18AB-DCTY008,"5,930.00",DURHAM AREA YOUTH.
Transformation and Partnerships,Communications Management,Supplies and Services,338099,Services,03/04/2019,3572520-8656,"2,115.00",FAT MEDIA LTD.
Transformation and Partnerships,Partnerships & Community Engagement Div.,Cap Exp on Grants & Other Financial Assistance (REFCUS),918004,Contributions to other bodies 918004,03/04/2019,3572523-VOUCHER18NB-EDRC008,"7,500.00",FISHBURN PARISH COUNCIL.
Transformation and Partnerships,Partnerships & Community Engagement Div.,Supplies and Services,384086,Miscellaneous Expenses,03/04/2019,3572530-VOUCHER17NB-BASH009,"2,096.00",GROUNDWORK NORTH EAST.
Transformation and Partnerships,Partnerships & Community Engagement Div.,Cap Exp on Grants & Other Financial Assistance (REFCUS),918004,Contributions to other bodies 918004,03/04/2019,3572533-VOUCHER18NB-EDUR052,"4,000.00",HORDEN PARISH COUNCIL.
Adult and Health Services,Head of Adults,Transport,230005,Contract Hire,04/04/2019,3572624-31911,523.26,24/7 TAXI SERVICES LTD.
Adult and Health Services,Head of Adults,Third Party Payments 4THIRD,478151,Purchase of Care,04/04/2019,3572647-D720002139,"3,949.00",AUTISM CARE UK (4) LTD.
Adult and Health Services,Head of Adults,Transport,230005,Contract Hire,04/04/2019,3572660-7080-EAS093MAR19,"1,139.50",BOBBY DOVE PRIVATE HIRE.
Adult and Health Services,Head of Adults,Transport,230005,Contract Hire,04/04/2019,3572664-BZ00301,603.33,BREZ`S TAXIS.
Adult and Health Services,Head of Adults,Transport,230005,Contract Hire,04/04/2019,3572664-BZ00302,816.00,BREZ`S TAXIS.
Adult and Health Services,Head of Adults,Transport,230005,Contract Hire,04/04/2019,3572686-WV104/0319,760.00,COLVIN`S CABS.
Adult and Health Services,Head of Adults,Transport,230005,Contract Hire,04/04/2019,3572703-THOR0319,"1,043.36",D IRVING T/A BJ TAXIS.
Adult and Health Services,Head of Adults,Transport,230005,Contract Hire,04/04/2019,3572707-NCL017,"1,588.00",DAVES TAXIS (BLACKHALL).
Adult and Health Services,Commissioning inc Supporting People,Supplies and Services,338089,Services,04/04/2019,3572725-19NC00353,"2,835.00",EPOWERED LEARNING.
Adult and Health Services,Head of Adults,Third Party Payments 4THIRD,478151,Purchase of Care,04/04/2019,3572726-11802,"1,524.00",ESSENTIAL CARE & SUPPORT LTD.
Adult and Health Services,Head of Adults,Third Party Payments 4THIRD,478151,Purchase of Care,04/04/2019,3572726-11803,509.55,ESSENTIAL CARE & SUPPORT LTD.
Adult and Health Services,Head of Adults,Transport,230005,Contract Hire,04/04/2019,3572737-006-MARCH,840.00,GAIL MADDISON T/A CENTRAL TAXIS.
Adult and Health Services,Head of Adults,Transport,230005,Contract Hire,04/04/2019,3572755-IR1901005,"1,492.83",I & R EXECUTIVE TRAVEL.
Adult and Health Services,Head of Adults,Transport,230005,Contract Hire,04/04/2019,3572774-01032019,775.00,JOHN HUBBLE T/A HUBB`S TAXIS.
Adult and Health Services,Commissioning inc Supporting People,Third Party Payments 4THIRD,479101,Purchase of Care,04/04/2019,3572794-1032,"11,583.33",MAIN - TAKING AUTISM PERSONALLY.
Adult and Health Services,Head of Adults,Transport,230005,Contract Hire,04/04/2019,3572812-EDB103-19,"1,026.90",MR CT WALKER T/A CW TAXIS.
Adult and Health Services,Head of Adults,Transport,230005,Contract Hire,04/04/2019,3572816-201911,666.90,MR JR FORT T/A JRF TAXIS.
Adult and Health Services,Head of Adults,Transport,230005,Contract Hire,04/04/2019,3572816-201912,588.00,MR JR FORT T/A JRF TAXIS.
Adult and Health Services,Head of Adults,Third Party Payments 4THIRD,478151,Purchase of Care,04/04/2019,3572853-124000229,762.96,POTENSIAL LTD.
Adult and Health Services,Head of Adults,Third Party Payments 4THIRD,478151,Purchase of Care,04/04/2019,3572853-9509,"2,344.83",POTENSIAL LTD.
Adult and Health Services,Head of Adults,Transport,230005,Contract Hire,04/04/2019,3572903-0002053,"1,995.00",TONY RIDLEY T/A COLORS TAXIS LTD.
Children and Young Peoples Services,Head of Education and Skills,Supplies and Services,384491,Miscellaneous Expenses,04/04/2019,3572749-4100651221,736.00,REDACTED - PAYMENT TO INDIVIDUAL
Children and Young Peoples Services,Head of Education and Skills,Transport,230007,Contract Hire,04/04/2019,3572624-31901,"1,680.00",24/7 TAXI SERVICES LTD.
Children and Young Peoples Services,Head of Education and Skills,Transport,230007,Contract Hire,04/04/2019,3572624-31902,"1,890.00",24/7 TAXI SERVICES LTD.
Children and Young Peoples Services,Head of Education and Skills,Transport,230007,Contract Hire,04/04/2019,3572624-31903,736.00,24/7 TAXI SERVICES LTD.
Children and Young Peoples Services,Head of Education and Skills,Transport,230009,Contract Hire,04/04/2019,3572624-31904,735.00,24/7 TAXI SERVICES LTD.
Children and Young Peoples Services,Head of Education and Skills,Transport,230008,Contract Hire,04/04/2019,3572624-31905,"1,833.40",24/7 TAXI SERVICES LTD.
Children and Young Peoples Services,Head of Education and Skills,Transport,230008,Contract Hire,04/04/2019,3572624-31909,860.16,24/7 TAXI SERVICES LTD.
Children and Young Peoples Services,Head of Education and Skills,Transport,230006,Contract Hire,04/04/2019,3572624-31913,"1,785.00",24/7 TAXI SERVICES LTD.
Children and Young Peoples Services,Head of Education and Skills,Transport,230006,Contract Hire,04/04/2019,3572625-19,774.00,A & C TAXIS.
Children and Young Peoples Services,Head of Education and Skills,Transport,230006,Contract Hire,04/04/2019,3572626-580,624.00,A BARKER.
Children and Young Peoples Services,Head of Education and Skills,Transport,230008,Contract Hire,04/04/2019,3572627-55,"1,113.00",A HJ JOBLING T/A CASTLE TAXIS.
Children and Young Peoples Services,Head of Education and Skills,Transport,230008,Contract Hire,04/04/2019,3572628-A220807,"1,449.00",A MURRAY TRAVEL.
Children and Young Peoples Services,Head of Education and Skills,Transport,230008,Contract Hire,04/04/2019,3572628-EA220803,"2,845.44",A MURRAY TRAVEL.
Children and Young Peoples Services,Head of Education and Skills,Transport,230008,Contract Hire,04/04/2019,3572628-GC017,"1,183.71",A MURRAY TRAVEL.
Children and Young Peoples Services,Head of Education and Skills,Transport,230006,Contract Hire,04/04/2019,3572628-HA220809,"1,184.99",A MURRAY TRAVEL.
Children and Young Peoples Services,Head of Education and Skills,Transport,230012,Contract Hire,04/04/2019,3572631-1/03/19,"1,508.22",ABA TAXIS.
Children and Young Peoples Services,Head of Education and Skills,Transport,230006,Contract Hire,04/04/2019,3572632-822,"1,424.00",AC TAXIS.
Children and Young Peoples Services,Head of Education and Skills,Transport,230008,Contract Hire,04/04/2019,3572635-38895874,"1,859.79",ALAN SOUTHERN T/A ALANS TAXIS PELTON FELL.
Children and Young Peoples Services,Head of Education and Skills,Transport,230008,Contract Hire,04/04/2019,3572639-4392-MARCH,"1,890.00",ANDREW PYGALL T/A ARP TAXIS.
Children and Young Peoples Services,Head of Education and Skills,Transport,230008,Contract Hire,04/04/2019,3572640-0072,"1,692.00",ANDREW SIMPSON T/A ANDY`S CABS.
Children and Young Peoples Services,Head of Education and Skills,Transport,230008,Contract Hire,04/04/2019,3572646-696,"2,332.47",AT TAXIS LTD.
Children and Young Peoples Services,Head of Education and Skills,Transport,230008,Contract Hire,04/04/2019,3572646-697,"2,688.00",AT TAXIS LTD.
Children and Young Peoples Services,Head of Education and Skills,Transport,230009,Contract Hire,04/04/2019,3572646-700,759.00,AT TAXIS LTD.
Children and Young Peoples Services,Head of Education and Skills,Transport,230008,Contract Hire,04/04/2019,3572648-290319,"1,680.00",AVALON TAXIS.
Children and Young Peoples Services,Head of Education and Skills,Transport,230007,Contract Hire,04/04/2019,3572629-AZCLS4396-MARCH,945.00,A-Z CHESTER LE STREET TAXIS.
Children and Young Peoples Services,Head of Education and Skills,Transport,230008,Contract Hire,04/04/2019,3572653-SMITH1/MARCH19,"2,401.10",BEELINE PRIVATE HIRE.
Children and Young Peoples Services,Head of Education and Skills,Transport,230008,Contract Hire,04/04/2019,3572653-SMITH2/MARCH19,822.53,BEELINE PRIVATE HIRE.
Children and Young Peoples Services,Head of Education and Skills,Transport,230007,Contract Hire,04/04/2019,3572654-7-4379,"1,239.00",BENNETTS TAXIS.
Children and Young Peoples Services,Head of Education and Skills,Transport,230007,Contract Hire,04/04/2019,3572656-07-MARCH,945.00,BILL`S TAXIS.
Children and Young Peoples Services,Head of Education and Skills,Transport,230006,Contract Hire,04/04/2019,3572658-73-A043MAR16,512.00,BL TAXIS.
Children and Young Peoples Services,Head of Education and Skills,Transport,230008,Contract Hire,04/04/2019,3572660-7033-E026MAR19,"3,180.00",BOBBY DOVE PRIVATE HIRE.
Children and Young Peoples Services,Head of Education and Skills,Transport,230008,Contract Hire,04/04/2019,3572663-DC07,"2,268.00",BOWES TRAVEL.
Children and Young Peoples Services,Head of Education and Skills,Transport,230008,Contract Hire,04/04/2019,3572664-BZ00294-E025,"1,166.13",BREZ`S TAXIS.
Children and Young Peoples Services,Head of Education and Skills,Transport,230008,Contract Hire,04/04/2019,3572664-BZ00300,"1,055.67",BREZ`S TAXIS.
Children and Young Peoples Services,Head of Education and Skills,Transport,230008,Contract Hire,04/04/2019,3572675-ES07,"1,522.50",CHIPPERS TAXIS.
Children and Young Peoples Services,Head of Education and Skills,Transport,230006,Contract Hire,04/04/2019,3572679-F763/07,"1,344.00",CHRISTOPHER MADDISON (TAXI).
Children and Young Peoples Services,Head of Education and Skills,Transport,230007,Contract Hire,04/04/2019,3572683-1103,"1,082.76",CLIVE HUBERY.
Children and Young Peoples Services,Head of Childrens Social Care,Transport,230005,Contract Hire,04/04/2019,3572684-CLUB1912B,513.00,CLUBMAN CABS.
Children and Young Peoples Services,Head of Childrens Social Care,Transport,230005,Contract Hire,04/04/2019,3572684-CLUB1912L,951.00,CLUBMAN CABS.
Children and Young Peoples Services,Head of Childrens Social Care,Transport,230005,Contract Hire,04/04/2019,3572684-CLUB1912X,550.00,CLUBMAN CABS.
Children and Young Peoples Services,Head of Education and Skills,Transport,230008,Contract Hire,04/04/2019,3572688-1524,"2,174.19",CONNORS MINI BUSES.*
Children and Young Peoples Services,Head of Education and Skills,Transport,230008,Contract Hire,04/04/2019,3572688-1525,"2,111.55",CONNORS MINI BUSES.*
Children and Young Peoples Services,Head of Education and Skills,Transport,230008,Contract Hire,04/04/2019,3572688-1526,"2,025.24",CONNORS MINI BUSES.*
Children and Young Peoples Services,Head of Education and Skills,Transport,230008,Contract Hire,04/04/2019,3572688-1527,"2,585.52",CONNORS MINI BUSES.*
Children and Young Peoples Services,Head of Education and Skills,Transport,230007,Contract Hire,04/04/2019,3572691-DCC/4003/MCH19,"1,960.77",COUNTY COACHES.
Children and Young Peoples Services,Head of Education and Skills,Transport,230003,Contract Hire,04/04/2019,3572691-DCC/4016/MCH19,"2,310.00",COUNTY COACHES.
Children and Young Peoples Services,Head of Education and Skills,Transport,230003,Contract Hire,04/04/2019,3572691-DCC/4021/MCH19,"2,604.00",COUNTY COACHES.
Children and Young Peoples Services,Head of Education and Skills,Transport,230003,Contract Hire,04/04/2019,3572691-DCC/4025/MCH19,"2,268.00",COUNTY COACHES.
Children and Young Peoples Services,Head of Education and Skills,Transport,230007,Contract Hire,04/04/2019,3572691-DCC/4118/MCH19,"5,084.94",COUNTY COACHES.
Children and Young Peoples Services,Head of Education and Skills,Transport,230007,Contract Hire,04/04/2019,3572694-109014,"1,675.84",CROFT BUSINESS SERVICES (UK) LTD T/A CROFT TAXIS.
Children and Young Peoples Services,Head of Education and Skills,Transport,230007,Contract Hire,04/04/2019,3572694-109014-MARCH,696.80,CROFT BUSINESS SERVICES (UK) LTD T/A CROFT TAXIS.
Children and Young Peoples Services,Head of Education and Skills,Transport,230008,Contract Hire,04/04/2019,3572694-109016,"4,025.07",CROFT BUSINESS SERVICES (UK) LTD T/A CROFT TAXIS.
Children and Young Peoples Services,Head of Education and Skills,Transport,230008,Contract Hire,04/04/2019,3572694-109018,"4,536.42",CROFT BUSINESS SERVICES (UK) LTD T/A CROFT TAXIS.
Children and Young Peoples Services,Head of Education and Skills,Transport,230008,Contract Hire,04/04/2019,3572694-109019,"3,416.92",CROFT BUSINESS SERVICES (UK) LTD T/A CROFT TAXIS.
Children and Young Peoples Services,Head of Education and Skills,Transport,230008,Contract Hire,04/04/2019,3572694-109020,"2,919.21",CROFT BUSINESS SERVICES (UK) LTD T/A CROFT TAXIS.
Children and Young Peoples Services,Head of Education and Skills,Transport,230008,Contract Hire,04/04/2019,3572694-109021-M051,"3,956.61",CROFT BUSINESS SERVICES (UK) LTD T/A CROFT TAXIS.
Children and Young Peoples Services,Head of Education and Skills,Transport,230008,Contract Hire,04/04/2019,3572694-109021-N304,807.45,CROFT BUSINESS SERVICES (UK) LTD T/A CROFT TAXIS.
Children and Young Peoples Services,Head of Education and Skills,Transport,230008,Contract Hire,04/04/2019,3572694-109023,"3,240.51",CROFT BUSINESS SERVICES (UK) LTD T/A CROFT TAXIS.
Children and Young Peoples Services,Head of Education and Skills,Transport,230008,Contract Hire,04/04/2019,3572694-109024,"2,493.96",CROFT BUSINESS SERVICES (UK) LTD T/A CROFT TAXIS.
Children and Young Peoples Services,Head of Education and Skills,Transport,230006,Contract Hire,04/04/2019,3572694-109025,"1,628.79",CROFT BUSINESS SERVICES (UK) LTD T/A CROFT TAXIS.
Children and Young Peoples Services,Head of Education and Skills,Transport,230008,Contract Hire,04/04/2019,3572694-109029,"3,236.52",CROFT BUSINESS SERVICES (UK) LTD T/A CROFT TAXIS.
Children and Young Peoples Services,Head of Education and Skills,Transport,230009,Contract Hire,04/04/2019,3572694-109031,"2,097.27",CROFT BUSINESS SERVICES (UK) LTD T/A CROFT TAXIS.
Children and Young Peoples Services,Head of Education and Skills,Transport,230008,Contract Hire,04/04/2019,3572699-44,"1,541.16",CUTHBERT CABS.
Children and Young Peoples Services,Head of Education and Skills,Transport,230007,Contract Hire,04/04/2019,3572704-1620,735.00,DA TAXIS.
Children and Young Peoples Services,Head of Education and Skills,Transport,230008,Contract Hire,04/04/2019,3572704-1622,"1,486.59",DA TAXIS.
Children and Young Peoples Services,Head of Education and Skills,Transport,230008,Contract Hire,04/04/2019,3572705-330,"1,357.44",DA TRAVEL.
Children and Young Peoples Services,Head of Education and Skills,Transport,230008,Contract Hire,04/04/2019,3572705-334,"1,335.81",DA TRAVEL.
Children and Young Peoples Services,Head of Education and Skills,Transport,230008,Contract Hire,04/04/2019,3572705-335,"1,499.71",DA TRAVEL.
Children and Young Peoples Services,Head of Education and Skills,Transport,230007,Contract Hire,04/04/2019,3572706-SCEAMAR1901,"2,000.00",DALELINK PRIVATE HIRE.
Children and Young Peoples Services,Head of Education and Skills,Transport,230008,Contract Hire,04/04/2019,3572708-0057,"5,565.76",DAVID WALKER TAXIS.
Children and Young Peoples Services,Head of Childrens Social Care,Supplies and Services,338044,Services,04/04/2019,3572713-HA-1-260219,546.90,DR URSULA CAWTHORNE T/A CAWTHORNE PSYCHOLOGICAL SERVICES LTD.
Children and Young Peoples Services,Head of Education and Skills,Transport,230003,Contract Hire,04/04/2019,3572717-27766,"2,908.71",DURHAM CITY COACHES.
Children and Young Peoples Services,Head of Education and Skills,Transport,230003,Contract Hire,04/04/2019,3572717-7606-4015,"2,845.50",DURHAM CITY COACHES.
Children and Young Peoples Services,Head of Education and Skills,Transport,230003,Contract Hire,04/04/2019,3572717-7606-4019,"3,370.50",DURHAM CITY COACHES.
Children and Young Peoples Services,Head of Education and Skills,Transport,230003,Contract Hire,04/04/2019,3572717-7606-4023,"2,719.50",DURHAM CITY COACHES.
Children and Young Peoples Services,Head of Education and Skills,Transport,230008,Contract Hire,04/04/2019,3572731-1903,"1,939.14",FRANK ATKINSON T/A FJ MINIBUS TRAVEL.
Children and Young Peoples Services,Head of Education and Skills,Transport,230003,Contract Hire,04/04/2019,3572739-21269,"3,425.73",GARNETTS LTD (COACHES).
Children and Young Peoples Services,Head of Education and Skills,Transport,230003,Contract Hire,04/04/2019,3572739-21269-3303,"3,942.96",GARNETTS LTD (COACHES).
Children and Young Peoples Services,Head of Education and Skills,Transport,230003,Contract Hire,04/04/2019,3572739-21269-3335,"3,806.46",GARNETTS LTD (COACHES).
Children and Young Peoples Services,Head of Education and Skills,Transport,230007,Contract Hire,04/04/2019,3572739-21271,"2,994.81",GARNETTS LTD (COACHES).
Children and Young Peoples Services,Head of Education and Skills,Transport,230007,Contract Hire,04/04/2019,3572739-21272-3182,"3,102.54",GARNETTS LTD (COACHES).
Children and Young Peoples Services,Head of Education and Skills,Transport,230003,Contract Hire,04/04/2019,3572739-21272-3255,"3,129.00",GARNETTS LTD (COACHES).
Children and Young Peoples Services,Head of Education and Skills,Transport,230003,Contract Hire,04/04/2019,3572739-21273,"3,425.73",GARNETTS LTD (COACHES).
Children and Young Peoples Services,Head of Education and Skills,Transport,230007,Contract Hire,04/04/2019,3572739-21274,"2,542.47",GARNETTS LTD (COACHES).
Children and Young Peoples Services,Head of Education and Skills,Transport,230003,Contract Hire,04/04/2019,3572739-21275,"3,425.73",GARNETTS LTD (COACHES).
Children and Young Peoples Services,Head of Education and Skills,Transport,230003,Contract Hire,04/04/2019,3572739-21275-3008,"3,231.27",GARNETTS LTD (COACHES).
Children and Young Peoples Services,Head of Education and Skills,Transport,230003,Contract Hire,04/04/2019,3572739-21275-3203,"2,994.81",GARNETTS LTD (COACHES).
Children and Young Peoples Services,Head of Education and Skills,Transport,230003,Contract Hire,04/04/2019,3572739-21275-3333,"2,542.47",GARNETTS LTD (COACHES).
Children and Young Peoples Services,Head of Education and Skills,Transport,230007,Contract Hire,04/04/2019,3572739-21276,"2,683.38",GARNETTS LTD (COACHES).
Children and Young Peoples Services,Head of Education and Skills,Transport,230007,Contract Hire,04/04/2019,3572739-21276-4035,"2,473.38",GARNETTS LTD (COACHES).
Children and Young Peoples Services,Head of Education and Skills,Transport,230007,Contract Hire,04/04/2019,3572739-21276-4036,"2,683.38",GARNETTS LTD (COACHES).
Children and Young Peoples Services,Head of Education and Skills,Transport,230007,Contract Hire,04/04/2019,3572739-21276-4037,"4,946.97",GARNETTS LTD (COACHES).
Children and Young Peoples Services,Head of Education and Skills,Transport,230007,Contract Hire,04/04/2019,3572739-21276-4038,"2,473.38",GARNETTS LTD (COACHES).
Children and Young Peoples Services,Head of Education and Skills,Transport,230008,Contract Hire,04/04/2019,3572739-21277,"1,723.68",GARNETTS LTD (COACHES).
Children and Young Peoples Services,Head of Education and Skills,Transport,230003,Contract Hire,04/04/2019,3572739-21278,"3,124.17",GARNETTS LTD (COACHES).
Children and Young Peoples Services,Head of Education and Skills,Transport,230003,Contract Hire,04/04/2019,3572739-21278-3024,"2,994.81",GARNETTS LTD (COACHES).
Children and Young Peoples Services,Head of Education and Skills,Transport,230003,Contract Hire,04/04/2019,3572739-21278-3026,"2,779.35",GARNETTS LTD (COACHES).
Children and Young Peoples Services,Head of Education and Skills,Transport,230003,Contract Hire,04/04/2019,3572739-21278-3027,"2,994.81",GARNETTS LTD (COACHES).
Children and Young Peoples Services,Head of Education and Skills,Transport,230003,Contract Hire,04/04/2019,3572739-21278-3028,"3,102.54",GARNETTS LTD (COACHES).
Children and Young Peoples Services,Head of Education and Skills,Transport,230007,Contract Hire,04/04/2019,3572739-21278-3029,"3,102.54",GARNETTS LTD (COACHES).
Children and Young Peoples Services,Head of Education and Skills,Transport,230007,Contract Hire,04/04/2019,3572739-21279,"3,996.72",GARNETTS LTD (COACHES).
Children and Young Peoples Services,Head of Education and Skills,Transport,230007,Contract Hire,04/04/2019,3572739-21280,"2,510.13",GARNETTS LTD (COACHES).
Children and Young Peoples Services,Head of Education and Skills,Transport,230007,Contract Hire,04/04/2019,3572739-21281,"6,258.00",GARNETTS LTD (COACHES).
Children and Young Peoples Services,Head of Education and Skills,Transport,230008,Contract Hire,04/04/2019,3572743-53,"1,795.56",GP TAXIS.
Children and Young Peoples Services,Head of Education and Skills,Transport,230008,Contract Hire,04/04/2019,3572744-01-M014,"1,000.00",GRAHAM WILLIAMS T/A BUS 2 MINIBUS HIRE.
Children and Young Peoples Services,Head of Education and Skills,Transport,230009,Contract Hire,04/04/2019,3572748-06,"1,659.00",HARDIP SINGH MAHIL T/A AMBER CARS.
Children and Young Peoples Services,Head of Education and Skills,Transport,230006,Contract Hire,04/04/2019,3572748-28,"1,449.00",HARDIP SINGH MAHIL T/A AMBER CARS.
Children and Young Peoples Services,Head of Education and Skills,Transport,230008,Contract Hire,04/04/2019,3572751-28-W075,969.57,HENRY FOREMAN T/A HENRY`S TAXIS.
Children and Young Peoples Services,Head of Education and Skills,Transport,230016,Contract Hire,04/04/2019,3572755-IR1903004,"2,046.87",I & R EXECUTIVE TRAVEL.
Children and Young Peoples Services,Head of Education and Skills,Transport,230016,Contract Hire,04/04/2019,3572755-IR1903006,540.00,I & R EXECUTIVE TRAVEL.
Children and Young Peoples Services,Head of Education and Skills,Transport,230006,Contract Hire,04/04/2019,3572765-DCC0007,829.50,JANICE BRADSHAW T/A JAN PRIVATE HIRE.
Children and Young Peoples Services,Head of Education and Skills,Transport,230007,Contract Hire,04/04/2019,3572767-2855,"2,024.85",JEFF ANDERSON COACHES LTD.
Children and Young Peoples Services,Head of Education and Skills,Transport,230007,Contract Hire,04/04/2019,3572767-2856,"1,477.20",JEFF ANDERSON COACHES LTD.
Children and Young Peoples Services,Head of Education and Skills,Transport,230007,Contract Hire,04/04/2019,3572772-56,"1,890.00",JOHN CRAKE & SONS MINI BUSES LTD.
Children and Young Peoples Services,Head of Education and Skills,Transport,230008,Contract Hire,04/04/2019,3572773-18,"4,000.00",JOHN GARLAND.
Children and Young Peoples Services,Head of Education and Skills,Transport,230009,Contract Hire,04/04/2019,3572776-723127,"1,993.91",JOVIAL PRIVATE HIRE.
Children and Young Peoples Services,Head of Education and Skills,Transport,230008,Contract Hire,04/04/2019,3572776-M00919,"1,610.49",JOVIAL PRIVATE HIRE.
Children and Young Peoples Services,Head of Education and Skills,Transport,230008,Contract Hire,04/04/2019,3572776-M01518,"1,271.13",JOVIAL PRIVATE HIRE.
Children and Young Peoples Services,Head of Education and Skills,Transport,230008,Contract Hire,04/04/2019,3572776-M01717-MARCH,947.94,JOVIAL PRIVATE HIRE.
Children and Young Peoples Services,Head of Education and Skills,Transport,230006,Contract Hire,04/04/2019,3572782-F782-MARCH,"3,024.00",K & R TAXIS (STANLEY).
Children and Young Peoples Services,Head of Education and Skills,Transport,230008,Contract Hire,04/04/2019,3572782-N307-MARCH,"3,625.23",K & R TAXIS (STANLEY).
Children and Young Peoples Services,Head of Education and Skills,Transport,230010,Contract Hire,04/04/2019,3572782-PF020-MARCH,967.20,K & R TAXIS (STANLEY).
Children and Young Peoples Services,Head of Education and Skills,Transport,230008,Contract Hire,04/04/2019,3572783-7-N083,"2,373.00",KD TAXIS.
Children and Young Peoples Services,Head of Education and Skills,Transport,230006,Contract Hire,04/04/2019,3572786-2122,891.20,KEN HINDS.
Children and Young Peoples Services,Head of Education and Skills,Transport,230009,Contract Hire,04/04/2019,3572788-07,"1,554.00",KULDEEP MAHIL T/A KOLARS CAB.
Children and Young Peoples Services,Head of Education and Skills,Transport,230003,Contract Hire,04/04/2019,3572789-6624,"3,034.50",LEE`S COACHES LTD.
Children and Young Peoples Services,Head of Education and Skills,Transport,230003,Contract Hire,04/04/2019,3572789-6624MARCH,"2,646.00",LEE`S COACHES LTD.
Children and Young Peoples Services,Head of Education and Skills,Transport,230008,Contract Hire,04/04/2019,3572790-3978,"2,244.06",LINCAB TAXIS.
Children and Young Peoples Services,Head of Education and Skills,Transport,230007,Contract Hire,04/04/2019,3572790-3980,"1,215.90",LINCAB TAXIS.
Children and Young Peoples Services,Head of Education and Skills,Transport,230008,Contract Hire,04/04/2019,3572795-50,"1,723.68",MALCOLM CARR T/A CARLY CABS.
Children and Young Peoples Services,Head of Education and Skills,Transport,230006,Contract Hire,04/04/2019,3572796-270319,540.00,MARK MUSGROVE T/A MARKS TAXIS.
Children and Young Peoples Services,Head of Education and Skills,Transport,230008,Contract Hire,04/04/2019,3572798-0010,"1,445.00",MARK WATSON T/A MARK`S TAXIS.
Children and Young Peoples Services,Head of Education and Skills,Transport,230013,Contract Hire,04/04/2019,3572802-INV168,945.00,MICHAEL COBB T/A HAIL TAXIS.
Children and Young Peoples Services,Head of Education and Skills,Transport,230012,Contract Hire,04/04/2019,3572806-KDC0-10319,"2,372.79",MJ TIMNEY T/A KDC & C&M TAXIS.
Children and Young Peoples Services,Head of Education and Skills,Transport,230006,Contract Hire,04/04/2019,3572809-7,"1,243.00",MR BRIAN HANN T/A BRY`S TAXIS (BOWBURN).
Children and Young Peoples Services,Head of Education and Skills,Transport,230006,Contract Hire,04/04/2019,3572810-207A,"1,693.00",MR BRIAN JOHNSON T/A BRYS TAXIS.
Children and Young Peoples Services,Head of Education and Skills,Transport,230012,Contract Hire,04/04/2019,3572812-CHPK03-19,"2,066.40",MR CT WALKER T/A CW TAXIS.
Children and Young Peoples Services,Head of Education and Skills,Transport,230006,Contract Hire,04/04/2019,3572812-COLL03-19,"1,562.40",MR CT WALKER T/A CW TAXIS.
Children and Young Peoples Services,Head of Education and Skills,Transport,230008,Contract Hire,04/04/2019,3572812-DT103-19,744.57,MR CT WALKER T/A CW TAXIS.
Children and Young Peoples Services,Head of Education and Skills,Transport,230008,Contract Hire,04/04/2019,3572812-DT203-19,933.03,MR CT WALKER T/A CW TAXIS.
Children and Young Peoples Services,Head of Education and Skills,Transport,230008,Contract Hire,04/04/2019,3572812-EL103-19,"1,631.25",MR CT WALKER T/A CW TAXIS.
Children and Young Peoples Services,Head of Education and Skills,Transport,230008,Contract Hire,04/04/2019,3572812-EL203-19,"1,877.40",MR CT WALKER T/A CW TAXIS.
Children and Young Peoples Services,Head of Education and Skills,Transport,230008,Contract Hire,04/04/2019,3572812-EL303-19,"2,337.40",MR CT WALKER T/A CW TAXIS.
Children and Young Peoples Services,Head of Education and Skills,Transport,230008,Contract Hire,04/04/2019,3572812-OAK103-19,"1,946.36",MR CT WALKER T/A CW TAXIS.
Children and Young Peoples Services,Head of Education and Skills,Transport,230008,Contract Hire,04/04/2019,3572813-0304887,"1,508.22",MR GN ROBBINS T/A GNR MINIBUS HIRE.
Children and Young Peoples Services,Head of Education and Skills,Transport,230008,Contract Hire,04/04/2019,3572814-KDK/MAR19,"1,270.75",MR IAN KELSEY T/A KDK TAXIS.
Children and Young Peoples Services,Head of Education and Skills,Transport,230006,Contract Hire,04/04/2019,3572815-103,"1,504.00",MR JOHN ALLINSON T/A AALPHA TAXIS.
Children and Young Peoples Services,Head of Education and Skills,Transport,230007,Contract Hire,04/04/2019,3572815-104,"1,183.93",MR JOHN ALLINSON T/A AALPHA TAXIS.
Children and Young Peoples Services,Head of Education and Skills,Transport,230008,Contract Hire,04/04/2019,3572819-032,"1,795.50",MR NEIL LEONARD T/A LENNY`S TAXIS.
Children and Young Peoples Services,Head of Education and Skills,Transport,230012,Contract Hire,04/04/2019,3572819-033,"1,722.00",MR NEIL LEONARD T/A LENNY`S TAXIS.
Children and Young Peoples Services,Head of Education and Skills,Transport,230008,Contract Hire,04/04/2019,3572821-0034-N071,"2,280.00",MR PM MULLEN T/A CATHEDRAL TAXIS.
Children and Young Peoples Services,Head of Education and Skills,Supplies and Services,372009,Subscriptions E372,04/04/2019,3572824-61775463,"14,565.62",NCER CIC.
Children and Young Peoples Services,Head of Education and Skills,Transport,230008,Contract Hire,04/04/2019,3572826-242,"1,200.00",NEVILLE FORBES T/A FORBES TAXIS.
Children and Young Peoples Services,Head of Education and Skills,Transport,230003,Contract Hire,04/04/2019,3572829-INV-5721,"2,625.00",NORTH EAST COACHWAYS LTD.
Children and Young Peoples Services,Head of Education and Skills,Transport,230007,Contract Hire,04/04/2019,3572829-INV5722,"2,478.00",NORTH EAST COACHWAYS LTD.
Children and Young Peoples Services,Head of Education and Skills,Transport,230007,Contract Hire,04/04/2019,3572829-INV5723,"2,499.00",NORTH EAST COACHWAYS LTD.
Children and Young Peoples Services,Head of Education and Skills,Transport,230003,Contract Hire,04/04/2019,3572829-INV5724,"2,310.00",NORTH EAST COACHWAYS LTD.
Children and Young Peoples Services,Head of Education and Skills,Transport,230007,Contract Hire,04/04/2019,3572829-INV5725,"2,310.00",NORTH EAST COACHWAYS LTD.
Children and Young Peoples Services,Head of Education and Skills,Transport,230007,Contract Hire,04/04/2019,3572829-INV5726,"3,192.00",NORTH EAST COACHWAYS LTD.
Children and Young Peoples Services,Childrens Services Operational Support CG0080,Supplies and Services,338099,Services,04/04/2019,3572832-9810019276,"8,300.00",NORTHUMBERLAND TYNE & WEAR NHS FOUNDATION TRUST.
Children and Young Peoples Services,Head of Education and Skills,Transport,230008,Contract Hire,04/04/2019,3572838-7757,"2,222.44",OVERLANDER LTD.
Children and Young Peoples Services,Head of Education and Skills,Transport,230007,Contract Hire,04/04/2019,3572841-4309-MARCH,"1,050.00",PAUL GREEN T/A GREEN TAXIS.
Children and Young Peoples Services,Head of Education and Skills,Transport,230008,Contract Hire,04/04/2019,3572842-DCC242,"1,723.68",PAUL`S TAXIS..
Children and Young Peoples Services,Head of Education and Skills,Transport,230008,Contract Hire,04/04/2019,3572842-DCC243,"1,260.00",PAUL`S TAXIS..
Children and Young Peoples Services,Head of Education and Skills,Transport,230008,Contract Hire,04/04/2019,3572842-DCC244,"3,057.89",PAUL`S TAXIS..
Children and Young Peoples Services,Head of Childrens Social Care,Third Party Payments 4THIRD,425020,Rendered by Voluntary Organisations,04/04/2019,3572844-39645,"5,700.33",PERCY HEDLEY FOUNDATION.
Children and Young Peoples Services,Head of Education and Skills,Transport,230007,Contract Hire,04/04/2019,3572847-614,840.00,PETERLEE EXECUTIVE CARS.
Children and Young Peoples Services,Head of Education and Skills,Supplies and Services,384199,Miscellaneous Expenses,04/04/2019,3572849-18/19-07,500.00,PGI SMITH SOLUTIONS LTD.
Children and Young Peoples Services,Head of Education and Skills,Transport,230012,Contract Hire,04/04/2019,3572852-1310,"1,509.88",PODA TAXIS LTD.
Children and Young Peoples Services,Head of Education and Skills,Transport,230008,Contract Hire,04/04/2019,3572852-1311,"1,458.12",PODA TAXIS LTD.
Children and Young Peoples Services,Head of Education and Skills,Transport,230008,Contract Hire,04/04/2019,3572852-1312,"3,212.91",PODA TAXIS LTD.
Children and Young Peoples Services,Head of Education and Skills,Transport,230007,Contract Hire,04/04/2019,3572859-RDS046,840.00,RDS TAXI.
Children and Young Peoples Services,Head of Education and Skills,Transport,230008,Contract Hire,04/04/2019,3572862-258,"1,344.00",ROBBIE`S PRIVATE HIRE.
Children and Young Peoples Services,Head of Education and Skills,Transport,230008,Contract Hire,04/04/2019,3572862-259,"1,071.00",ROBBIE`S PRIVATE HIRE.
Children and Young Peoples Services,Head of Education and Skills,Transport,230008,Contract Hire,04/04/2019,3572862-260,689.85,ROBBIE`S PRIVATE HIRE.
Children and Young Peoples Services,Head of Education and Skills,Transport,230007,Contract Hire,04/04/2019,3572863-ROXDCC73,"1,260.00",ROXBYS BUS HIRE.
Children and Young Peoples Services,Head of Education and Skills,Transport,230007,Contract Hire,04/04/2019,3572865-SKS1819-078,525.00,SAMUEL KINGS SCHOOL.
Children and Young Peoples Services,Head of Childrens Social Care,Transport,230005,Contract Hire,04/04/2019,3572875-75083,719.00,SHOTTON PRIVATE HIRE.
Children and Young Peoples Services,Head of Education and Skills,Transport,230012,Contract Hire,04/04/2019,3572878-1335,"1,754.03",SIMONS TAXIS.
Children and Young Peoples Services,Head of Education and Skills,Transport,230008,Contract Hire,04/04/2019,3572878-1336,"1,932.00",SIMONS TAXIS.
Children and Young Peoples Services,Head of Education and Skills,Transport,230008,Contract Hire,04/04/2019,3572879-739A,"1,615.95",SJ MACKENZIE T/A SCOTTS TAXIS.
Children and Young Peoples Services,Head of Education and Skills,Transport,230003,Contract Hire,04/04/2019,3572884-52797,"2,367.12",STANLEY TRAVEL (NORTH EAST) LTD.
Children and Young Peoples Services,Head of Education and Skills,Transport,230003,Contract Hire,04/04/2019,3572884-52798,"2,652.30",STANLEY TRAVEL (NORTH EAST) LTD.
Children and Young Peoples Services,Head of Education and Skills,Transport,230003,Contract Hire,04/04/2019,3572884-52800,"1,382.64",STANLEY TRAVEL (NORTH EAST) LTD.
Children and Young Peoples Services,Head of Education and Skills,Transport,230003,Contract Hire,04/04/2019,3572884-52801,"1,783.32",STANLEY TRAVEL (NORTH EAST) LTD.
Children and Young Peoples Services,Head of Education and Skills,Transport,230007,Contract Hire,04/04/2019,3572884-52803,966.00,STANLEY TRAVEL (NORTH EAST) LTD.
Children and Young Peoples Services,Head of Education and Skills,Transport,230031,Contract Hire,04/04/2019,3572884-52804,"1,424.76",STANLEY TRAVEL (NORTH EAST) LTD.
Children and Young Peoples Services,Head of Education and Skills,Transport,230031,Contract Hire,04/04/2019,3572884-52807,"1,283.00",STANLEY TRAVEL (NORTH EAST) LTD.
Children and Young Peoples Services,Head of Education and Skills,Transport,230008,Contract Hire,04/04/2019,3572887-1903000,"1,939.14",STEVEN PRATT T/A PTL TAXIS DURHAM.
Children and Young Peoples Services,Head of Childrens Social Care,Transport,230005,Contract Hire,04/04/2019,3572887-1903002,"2,415.00",STEVEN PRATT T/A PTL TAXIS DURHAM.
Children and Young Peoples Services,Head of Childrens Social Care,Transport,230005,Contract Hire,04/04/2019,3572887-1903003,"2,415.00",STEVEN PRATT T/A PTL TAXIS DURHAM.
Children and Young Peoples Services,Head of Childrens Social Care,Transport,230005,Contract Hire,04/04/2019,3572887-1903004,"2,160.00",STEVEN PRATT T/A PTL TAXIS DURHAM.
Children and Young Peoples Services,Head of Childrens Social Care,Transport,230005,Contract Hire,04/04/2019,3572887-1903005,"1,651.50",STEVEN PRATT T/A PTL TAXIS DURHAM.
Children and Young Peoples Services,Head of Childrens Social Care,Transport,230005,Contract Hire,04/04/2019,3572887-1903006,"1,827.00",STEVEN PRATT T/A PTL TAXIS DURHAM.
Children and Young Peoples Services,Head of Early Help Inclusion & Vulnerable Children.,Transport,230005,Contract Hire,04/04/2019,3572887-1903007,"2,079.00",STEVEN PRATT T/A PTL TAXIS DURHAM.
Children and Young Peoples Services,Head of Childrens Social Care,Transport,230005,Contract Hire,04/04/2019,3572887-1903010,"2,625.00",STEVEN PRATT T/A PTL TAXIS DURHAM.
Children and Young Peoples Services,Head of Childrens Social Care,Transport,230005,Contract Hire,04/04/2019,3572887-1903011,"1,869.00",STEVEN PRATT T/A PTL TAXIS DURHAM.
Children and Young Peoples Services,Head of Childrens Social Care,Transport,230005,Contract Hire,04/04/2019,3572887-1903012,"1,350.50",STEVEN PRATT T/A PTL TAXIS DURHAM.
Children and Young Peoples Services,Head of Childrens Social Care,Transport,230005,Contract Hire,04/04/2019,3572887-1903013,864.00,STEVEN PRATT T/A PTL TAXIS DURHAM.
Children and Young Peoples Services,Head of Childrens Social Care,Transport,230005,Contract Hire,04/04/2019,3572887-1903014,928.00,STEVEN PRATT T/A PTL TAXIS DURHAM.
Children and Young Peoples Services,Head of Childrens Social Care,Transport,230005,Contract Hire,04/04/2019,3572887-1903015,800.00,STEVEN PRATT T/A PTL TAXIS DURHAM.
Children and Young Peoples Services,Head of Childrens Social Care,Transport,230005,Contract Hire,04/04/2019,3572887-1903016,559.00,STEVEN PRATT T/A PTL TAXIS DURHAM.
Children and Young Peoples Services,Head of Early Help Inclusion & Vulnerable Children.,Transport,240045,Car allowances E240,04/04/2019,3572893-9285,"1,263.82",SUPPORTIVE SRC LTD.
Children and Young Peoples Services,Head of Early Help Inclusion & Vulnerable Children.,Transport,240045,Car allowances E240,04/04/2019,3572893-9394,657.38,SUPPORTIVE SRC LTD.
Dedicated Schools Grant BG0015,DSG Early Years Block,Transfer Payments,510030,School Children,04/04/2019,3572771-13404,570.38,REDACTED - PAYMENT TO INDIVIDUAL
Dedicated Schools Grant BG0015,DSG High Needs Block,Transport,230008,Contract Hire,04/04/2019,3572624-31906,"1,680.00",24/7 TAXI SERVICES LTD.
Dedicated Schools Grant BG0015,DSG High Needs Block,Transport,230010,Contract Hire,04/04/2019,3572639-B011-MARCH,"1,596.00",ANDREW PYGALL T/A ARP TAXIS.
Dedicated Schools Grant BG0015,DSG High Needs Block,Transport,230010,Contract Hire,04/04/2019,3572694-109028,"4,025.19",CROFT BUSINESS SERVICES (UK) LTD T/A CROFT TAXIS.
Dedicated Schools Grant BG0015,DSG Early Years Block,Transfer Payments,510030,School Children,04/04/2019,3572750-13408,787.50,HELEN WATSON..
Dedicated Schools Grant BG0015,DSG High Needs Block,Transport,230010,Contract Hire,04/04/2019,3572757-007,"2,769.00",IAN SOULSBY.
Dedicated Schools Grant BG0015,DSG High Needs Block,Transport,230010,Contract Hire,04/04/2019,3572773-17,"2,520.00",JOHN GARLAND.
Regeneration and Local Services,Corporate Property and Land,Premises,120037,Energy Costs,04/04/2019,3572638-366823,693.85,AMP CLEAN ENERGY.
Regeneration and Local Services,Corporate Property and Land,Premises,120037,Energy Costs,04/04/2019,3572638-367103,"1,247.69",AMP CLEAN ENERGY.
Regeneration and Local Services,Technical Services CM0300,Third Party Payments 4THIRD,430100,Rendered by Private Contractors,04/04/2019,3572649-CSUKOU/INV/66765,"1,051.84",BALFOUR BEATTY LIVING PLACES LTD.*
Regeneration and Local Services,Corporate Property and Land,Third Party Payments 4THIRD,430100,Rendered by Private Contractors,04/04/2019,3572672-388,"1,404.22",CEILINGS DIRECT LTD.
Regeneration and Local Services,Environmental Services,Third Party Payments 4THIRD,430101,Rendered by Private Contractors,04/04/2019,3572712-IV1098576,535.98,DIRECT TYRE MANAGEMENT LTD (DTM).
Regeneration and Local Services,Culture & Sport,Supplies and Services,312010,Newspapers books and periodicals E312,04/04/2019,3572730-2458,"1,000.00",FIREFLY NEW MEDIA UK.
Regeneration and Local Services,Corporate Property and Land,Third Party Payments 4THIRD,430100,Rendered by Private Contractors,04/04/2019,3572734-14255,"4,980.00",FT LEISURE LTD.
Regeneration and Local Services,Corporate Property and Land,Supplies and Services,304221,Equipment and Materials,04/04/2019,3572779-BII280079,801.14,JT DOVE LTD.
Regeneration and Local Services,Culture & Sport,Supplies and Services,324117,Provisions E324,04/04/2019,3572797-205259,563.47,MARK TONEY & CO LTD.
Regeneration and Local Services,Environmental Services,Transport,215022,Running Costs of Vehicles,04/04/2019,3572835-409165,"1,013.86",OIL NRG LTD.
Regeneration and Local Services,Technical Services CM0300,Third Party Payments 4THIRD,430100,Rendered by Private Contractors,04/04/2019,3572857-118852,550.00,PROTECTOR SECURITY GROUP LTD.
Regeneration and Local Services,Technical Services CM0300,Third Party Payments 4THIRD,430100,Rendered by Private Contractors,04/04/2019,3572857-118854,550.00,PROTECTOR SECURITY GROUP LTD.
Regeneration and Local Services,Corporate Property and Land,Third Party Payments 4THIRD,440999,Other third party payments E440,04/04/2019,3572871-102598,"3,000.00",SCIENCE MUSEUM GROUP ENTERPRISES LTD.
Regeneration and Local Services,Economic Development and Housing,Supplies and Services,338066,Services,04/04/2019,3572874-SJ/345,700.00,SHOPJACKET LTD.
Regeneration and Local Services,Culture & Sport,Supplies and Services,304259,Equipment and Materials,04/04/2019,3572889-1903051421.,"1,211.58",STRENGTHSHOP.
Regeneration and Local Services,Technical Services CM0300,Supplies and Services,304221,Equipment and Materials,04/04/2019,3572896-9039695665,977.94,TARMAC TRADING LTD.
Resources BK0010,Finance & Transactional Services,Supplies and Services,338027,Services,04/04/2019,3572680-C/RB176757,"1,360.00",CIVICA UK LTD.
Resources BK0010,Finance & Transactional Services,Supplies and Services,384180,Miscellaneous Expenses,04/04/2019,3572791-0191928,"5,691.30",LOOMIS UK LTD.
Resources BK0010,Digital and Customer Services,Supplies and Services,372009,Subscriptions E372,04/04/2019,3572913-UOTR4505743,728.53,WESTERN UNION BUSINESS SOLUTIONS.
Adult and Health Services,Commissioning inc Supporting People,Third Party Payments 4THIRD,479111,Purchase of Care,05/04/2019,3572936-7013,"13,496.00",ASPIRE LEARNING SUPPORT & WELLBEING CIC.
Adult and Health Services,Head of Adults,Third Party Payments 4THIRD,478151,Purchase of Care,05/04/2019,3572944-CB06,"3,116.57",BONDCARE WILLINGTON LTD.
Adult and Health Services,Public Health CC0450,Third Party Payments 4THIRD,460803,Contract Payments,05/04/2019,3572957-FDDM/00000141SC.,800.00,CHEAPSIDE PHARMACY.*
Adult and Health Services,Head of Adults,Third Party Payments 4THIRD,478151,Purchase of Care,05/04/2019,3573017-HLC16,"3,719.57",HIGHLEA CARE LTD.
Adult and Health Services,Head of Adults,Third Party Payments 4THIRD,478151,Purchase of Care,05/04/2019,3573017-HLC17,"3,843.56",HIGHLEA CARE LTD.
Adult and Health Services,Head of Adults,Third Party Payments 4THIRD,472101,Purchase of Care,05/04/2019,3573072-0000038986,"1,210.04",NORTH EAST AUTISM SOCIETY.
Adult and Health Services,Head of Adults,Third Party Payments 4THIRD,472101,Purchase of Care,05/04/2019,3573072-0000039269,"1,326.35",NORTH EAST AUTISM SOCIETY.
Children and Young Peoples Services,Head of Childrens Social Care,Supplies and Services,338044,Services,05/04/2019,3572924-MWJE901118,625.80,ADVANCED CHILD CARE ASSESSMENTS LTD.
Children and Young Peoples Services,Head of Education and Skills,Supplies and Services,304221,Equipment and Materials,05/04/2019,3572925-08/03/2019,"1,439.00",ADVANCED DECORATING.
Children and Young Peoples Services,Head of Education and Skills,Supplies and Services,338094,Services,05/04/2019,3572962-3251,"1,272.00",CORNERSTONES CENTRE FOR THE COMMUNITY.
Children and Young Peoples Services,Head of Education and Skills,Transport,230008,Contract Hire,05/04/2019,3573059-64/65,"1,050.00",MR PAUL BOWMAN.
Children and Young Peoples Services,Head of Education and Skills,Supplies and Services,375001,Private Finance Initiative,05/04/2019,3573074-RES-04-2019-129,"3,609.70",NORTH EAST LEARNING TRUST (NELT).
Children and Young Peoples Services,Head of Childrens Social Care,Third Party Payments 4THIRD,425021,Rendered by Voluntary Organisations,05/04/2019,3573103-4850,"34,544.64",ROC FAMILY SUPPORT LTD.
Regeneration and Local Services,Technical Services CM0300,Supplies and Services,304221,Equipment and Materials,05/04/2019,3572927-27936886,"1,622.32",AGGREGATE INDUSTRIES UK LTD.
Regeneration and Local Services,Technical Services CM0300,Supplies and Services,304221,Equipment and Materials,05/04/2019,3572927-27936888,"1,151.88",AGGREGATE INDUSTRIES UK LTD.
Regeneration and Local Services,Technical Services CM0300,Supplies and Services,304221,Equipment and Materials,05/04/2019,3572927-27936890,942.82,AGGREGATE INDUSTRIES UK LTD.
Regeneration and Local Services,Technical Services CM0300,Supplies and Services,304221,Equipment and Materials,05/04/2019,3572927-27948772,"1,153.04",AGGREGATE INDUSTRIES UK LTD.
Regeneration and Local Services,Technical Services CM0300,Supplies and Services,304221,Equipment and Materials,05/04/2019,3572927-27948775,"1,178.56",AGGREGATE INDUSTRIES UK LTD.
Regeneration and Local Services,Technical Services CM0300,Supplies and Services,304221,Equipment and Materials,05/04/2019,3572927-27948776,"1,111.28",AGGREGATE INDUSTRIES UK LTD.
Regeneration and Local Services,Corporate Property and Land,Premises,120037,Energy Costs,05/04/2019,3572930-367442,"1,021.21",AMP CLEAN ENERGY.
Regeneration and Local Services,Business Durham CL0850,Supplies and Services,368008,Incentives to Industrialists,05/04/2019,3572964-RED-04-2019-024,"3,009.02",COUNTY DURHAM ENGINEERING & MANUFACTURING NETWORK LTD (CDEMN).
Regeneration and Local Services,Culture & Sport,Supplies and Services,384199,Miscellaneous Expenses,05/04/2019,3572967-CWD-MARCH19-01,956.25,CRAIG WILLIAM DAVIDSON (THEATRE CONTRACTOR).
Regeneration and Local Services,Environmental Services,Supplies and Services,384974,Miscellaneous Expenses,05/04/2019,3572979-NEI-EXP-04-2019-001,"40,000.00",DRIVER & VEHICLE STANDARDS AGENCY (DVSA).
Regeneration and Local Services,Transport and Contracted Services,Third Party Payments 4THIRD,430108,Rendered by Private Contractors,05/04/2019,3572981-27811,695.00,DURHAM CITY COACHES.
Regeneration and Local Services,Technical Services CM0300,Supplies and Services,304358,Equipment and Materials,05/04/2019,3572989-SI-129,"2,497.50",ENVIROROD LTD.
Regeneration and Local Services,Technical Services CM0300,Supplies and Services,304358,Equipment and Materials,05/04/2019,3572989-SI-132,"2,497.50",ENVIROROD LTD.
Regeneration and Local Services,Environmental Services,Stock A926,926004,Stock,05/04/2019,3572999-IN214637,590.40,GB LUBRICANTS LTD.
Regeneration and Local Services,Environmental Services,Third Party Payments 4THIRD,430119,Rendered by Private Contractors,05/04/2019,3573011-110706,"2,555.97",HARPERS ENVIRONMENTAL LTD.
Regeneration and Local Services,Corporate Property and Land,Supplies and Services,304245,Equipment and Materials,05/04/2019,3573013-4622741,"12,424.81",HEADLAM (FLOORCOVERING DISTRIBUTORS) LTD.
Regeneration and Local Services,Technical Services CM0300,Supplies and Services,304358,Equipment and Materials,05/04/2019,3573016-58629,"1,153.20",HF COLTON PLANT HIRE LTD.*
Regeneration and Local Services,Environmental Services,Stock A926,926004,Stock,05/04/2019,3573021-684063,"1,106.81",HYDRAQUIP HOSE & HYDRAULICS LTD.
Regeneration and Local Services,Corporate Property and Land,Third Party Payments 4THIRD,430100,Rendered by Private Contractors,05/04/2019,3573024-7355,"3,364.00",INGLEFORD SCAFFOLDING LTD.
Regeneration and Local Services,Technical Services CM0300,Third Party Payments 4THIRD,430100,Rendered by Private Contractors,05/04/2019,3573028-22562,"3,010.56",JACK COUPE & SONS LTD T/A COUPE LINE.
Regeneration and Local Services,Culture & Sport,Supplies and Services,338047,Services,05/04/2019,3573032-LS/7499,"1,100.00",JANET PLATER MANAGEMENT LTD.
Regeneration and Local Services,Economic Development and Housing,Supplies and Services,338066,Services,05/04/2019,3573035-1205,"1,300.00",JOE FRASER CHARTERED SURVEYORS.
Regeneration and Local Services,Technical Services CM0300,Supplies and Services,304358,Equipment and Materials,05/04/2019,3573038-29294,"1,059.00",JOHN R BUTTERFIELD LTD.
Regeneration and Local Services,Technical Services CM0300,Supplies and Services,304358,Equipment and Materials,05/04/2019,3573038-29295,970.00,JOHN R BUTTERFIELD LTD.
Regeneration and Local Services,Technical Services CM0300,Supplies and Services,304358,Equipment and Materials,05/04/2019,3573038-29296,969.00,JOHN R BUTTERFIELD LTD.
Regeneration and Local Services,Technical Services CM0300,Supplies and Services,304358,Equipment and Materials,05/04/2019,3573038-29318,"1,397.50",JOHN R BUTTERFIELD LTD.
Regeneration and Local Services,Technical Services CM0300,Supplies and Services,304358,Equipment and Materials,05/04/2019,3573038-29340,"1,472.00",JOHN R BUTTERFIELD LTD.
Regeneration and Local Services,Technical Services CM0300,Supplies and Services,304358,Equipment and Materials,05/04/2019,3573038-29349,"1,476.00",JOHN R BUTTERFIELD LTD.
Regeneration and Local Services,Technical Services CM0300,Supplies and Services,304358,Equipment and Materials,05/04/2019,3573038-29354,697.00,JOHN R BUTTERFIELD LTD.
Regeneration and Local Services,Technical Services CM0300,Supplies and Services,304358,Equipment and Materials,05/04/2019,3573038-29404,"1,440.00",JOHN R BUTTERFIELD LTD.
Regeneration and Local Services,Technical Services CM0300,Supplies and Services,304358,Equipment and Materials,05/04/2019,3573039-0000081925,775.00,JOHN WADE (HAULAGE) LTD.
Regeneration and Local Services,Technical Services CM0300,Supplies and Services,304221,Equipment and Materials,05/04/2019,3573041-GO11525/D,"2,799.39",JT DOVE LTD.
Regeneration and Local Services,Technical Services CM0300,Supplies and Services,304358,Equipment and Materials,05/04/2019,3573043-2653,"1,887.50",KEVIN SNOWDON GROUNDWORKS LTD.
Regeneration and Local Services,Technical Services CM0300,Supplies and Services,304358,Equipment and Materials,05/04/2019,3573043-2663,"1,206.00",KEVIN SNOWDON GROUNDWORKS LTD.
Regeneration and Local Services,Technical Services CM0300,Supplies and Services,304358,Equipment and Materials,05/04/2019,3573043-2682,706.00,KEVIN SNOWDON GROUNDWORKS LTD.
Regeneration and Local Services,Technical Services CM0300,Supplies and Services,304358,Equipment and Materials,05/04/2019,3573043-2683,"1,001.00",KEVIN SNOWDON GROUNDWORKS LTD.
Regeneration and Local Services,Technical Services CM0300,Supplies and Services,304358,Equipment and Materials,05/04/2019,3573043-2699,"1,887.50",KEVIN SNOWDON GROUNDWORKS LTD.
Regeneration and Local Services,Technical Services CM0300,Supplies and Services,304358,Equipment and Materials,05/04/2019,3573043-2700,"1,887.50",KEVIN SNOWDON GROUNDWORKS LTD.
Regeneration and Local Services,Environmental Services,Supplies and Services,304358,Equipment and Materials,05/04/2019,3573054-25BB,787.50,M & E & MR WALTON.
Regeneration and Local Services,Corporate Property and Land,Third Party Payments 4THIRD,430100,Rendered by Private Contractors,05/04/2019,3573065-24977,"8,373.98",NE & C WINDOWS & DOORS LTD.
Regeneration and Local Services,Environmental Services,Stock A926,926004,Stock,05/04/2019,3573066-INVDUR00313577,631.81,NE TRUCK SPARES LTD (NETS).
Regeneration and Local Services,Technical Services CM0300,Supplies and Services,304358,Equipment and Materials,05/04/2019,3573067-NC/067/BW,"2,035.00",NEDCO CONTRACTS (NE) LTD.
Regeneration and Local Services,Technical Services CM0300,Supplies and Services,304358,Equipment and Materials,05/04/2019,3573067-NC/071/BW,"2,420.00",NEDCO CONTRACTS (NE) LTD.
Regeneration and Local Services,Transport and Contracted Services,Third Party Payments 4THIRD,430108,Rendered by Private Contractors,05/04/2019,3573070-1800009511536,"1,717.25",NEWCASTLE UPON TYNE CITY COUNCIL.
Regeneration and Local Services,Technical Services CM0300,Third Party Payments 4THIRD,430100,Rendered by Private Contractors,05/04/2019,3573076-DI20314666,"1,845.40",NORTHERN POWERGRID (NORTHEAST) LTD.
Regeneration and Local Services,Environmental Services,Transport,215022,Running Costs of Vehicles,05/04/2019,3573078-409834,"2,206.65",OIL NRG LTD.
Regeneration and Local Services,Corporate Property and Land,Third Party Payments 4THIRD,430100,Rendered by Private Contractors,05/04/2019,3573080-9722-05,"1,069.50",OPUS BUILDING SERVICES LTD.
Regeneration and Local Services,Corporate Property and Land,Third Party Payments 4THIRD,430100,Rendered by Private Contractors,05/04/2019,3573080-9722-07,941.72,OPUS BUILDING SERVICES LTD.
Regeneration and Local Services,Corporate Property and Land,Supplies and Services,304221,Equipment and Materials,05/04/2019,3573080-9722-21,"1,093.13",OPUS BUILDING SERVICES LTD.
Regeneration and Local Services,Technical Services CM0300,Supplies and Services,304358,Equipment and Materials,05/04/2019,3573099-3239,"1,350.00",REUBEN SMITH (PLANT HIRE) LTD.
Regeneration and Local Services,Culture & Sport,Supplies and Services,338047,Services,05/04/2019,3573106-RJ18J59,"1,100.00",RUTH JOHNSON.
Regeneration and Local Services,Culture & Sport,Supplies and Services,338047,Services,05/04/2019,3573122-1202,"9,910.56",STRICTLY THEATRE COMPANY LTD.
Regeneration and Local Services,Environmental Services,Third Party Payments 4THIRD,430100,Rendered by Private Contractors,05/04/2019,3573134-22136,"1,400.00",TILHILL FORESTRY LTD.
Regeneration and Local Services,Culture & Sport,Supplies and Services,338047,Services,05/04/2019,3573135-6282,"1,023.16",TIN ARTS LTD.
Regeneration and Local Services,Environmental Services,Transport,230710,Contract Hire,05/04/2019,3573141-901768,"2,351.60",TRIPLE POINT LEASE PARTNERS.
Regeneration and Local Services,Technical Services CM0300,Premises,150015,Apportioned Exps of Operational Blds,05/04/2019,3573153-872387,637.14,WERNICK HIRE LTD.
Regeneration and Local Services,Corporate Property and Land,Premises,150015,Apportioned Exps of Operational Blds,05/04/2019,3573153-872499,630.63,WERNICK HIRE LTD.
Resources BK0010,Legal & Democratic Services,Supplies and Services,338066,Services,05/04/2019,3572971-3049776,"3,500.00",DAC BEACHCROFT LLP.
Resources BK0010,Digital and Customer Services,Supplies and Services,342051,Computers and Communications,05/04/2019,3572983-SIN002152,"4,500.00",DURHAM STUDENTS UNION.
Transformation and Partnerships,Partnerships & Community Engagement Div.,Supplies and Services,308011,Furniture,05/04/2019,3572965-GD0150,"1,290.00",COUNTY DURHAM FURNITURE HELP SCHEME (CDFHS).
Transformation and Partnerships,Partnerships & Community Engagement Div.,Supplies and Services,308011,Furniture,05/04/2019,3572965-YR0157,"1,671.00",COUNTY DURHAM FURNITURE HELP SCHEME (CDFHS).
Adult and Health Services,Head of Adults,Transport,230005,Contract Hire,08/04/2019,3573167-Z21/SJ,"1,004.00",AABAT TAXIS.
Adult and Health Services,Head of Adults,Transport,230005,Contract Hire,08/04/2019,3573167-Z30/SW,816.00,AABAT TAXIS.
Adult and Health Services,Head of Adults,Transport,230005,Contract Hire,08/04/2019,3573167-Z35/BC,840.00,AABAT TAXIS.
Adult and Health Services,Head of Adults,Supplies and Services,308011,Furniture,08/04/2019,3573190-3391404200,"1,120.00",ARJO UK LTD.
Adult and Health Services,Head of Adults,Transport,230005,Contract Hire,08/04/2019,3573201-03929,663.00,ATLAS TAXIS CONSETT.
Adult and Health Services,Head of Adults,Transport,230005,Contract Hire,08/04/2019,3573220-0119,722.66,BIRDS TAXIS LTD.
Adult and Health Services,Head of Adults,Transport,230005,Contract Hire,08/04/2019,3573220-0120,695.10,BIRDS TAXIS LTD.
Adult and Health Services,Head of Adults,Transport,230005,Contract Hire,08/04/2019,3573238-3-SLD017,764.40,BRIAN PURVIS T/A BJ`S TAXIS.
Adult and Health Services,Commissioning inc Supporting People,Supplies and Services,338089,Services,08/04/2019,3573272-3910016232,"17,016.40",CO DURHAM & DARLINGTON NHS FOUNDATION TRUST.
Adult and Health Services,Public Health CC0450,Third Party Payments 4THIRD,460803,Contract Payments,08/04/2019,3573387-DCC054,"30,833.00",HARBOUR SUPPORT SERVICES.
Adult and Health Services,Public Health CC0450,Third Party Payments 4THIRD,460803,Contract Payments,08/04/2019,3573387-DCC055,"30,833.00",HARBOUR SUPPORT SERVICES.
Adult and Health Services,Head of Adults,Transport,230005,Contract Hire,08/04/2019,3573453-3977,646.32,LINCAB TAXIS.
Adult and Health Services,Public Health CC0450,Supplies and Services,384155,Miscellaneous Expenses,08/04/2019,3573504-1000059458,"76,413.92",NHS BUSINESS SERVICES AUTHORITY (NHSBSA).
Adult and Health Services,Head of Adults,Transport,230005,Contract Hire,08/04/2019,3573535-0745,"1,952.00",PETER`S PRIVATE HIRE/PETER BEST.
Adult and Health Services,Head of Adults,Transport,230005,Contract Hire,08/04/2019,3573535-0749,"1,722.00",PETER`S PRIVATE HIRE/PETER BEST.
Adult and Health Services,Head of Adults,Transport,230005,Contract Hire,08/04/2019,3573581-007-DM149,"1,105.00",RONS TAXI (CHESTER LE ST).
Adult and Health Services,Head of Adults,Supplies and Services,304259,Equipment and Materials,08/04/2019,3573656-340448,718.00,THE HELPING HAND CO (LEDBURY) LTD.
Children and Young Peoples Services,Head of Education and Skills,Transport,230008,Contract Hire,08/04/2019,3573162-31910,"3,230.00",24/7 TAXI SERVICES LTD.
Children and Young Peoples Services,Head of Education and Skills,Transport,230006,Contract Hire,08/04/2019,3573162-31912,"1,508.00",24/7 TAXI SERVICES LTD.
Children and Young Peoples Services,Head of Education and Skills,Transport,230007,Contract Hire,08/04/2019,3573164-MARCH02-3365,"2,100.00",A & P TAXIS.
Children and Young Peoples Services,Head of Education and Skills,Transport,230009,Contract Hire,08/04/2019,3573164-MARCH03-7357,"1,050.00",A & P TAXIS.
Children and Young Peoples Services,Head of Education and Skills,Transport,230008,Contract Hire,08/04/2019,3573167-A1/SA,"2,072.00",AABAT TAXIS.
Children and Young Peoples Services,Head of Education and Skills,Transport,230008,Contract Hire,08/04/2019,3573167-A7/SH,"1,240.00",AABAT TAXIS.
Children and Young Peoples Services,Head of Education and Skills,Transport,230008,Contract Hire,08/04/2019,3573167-Z19/SG,"1,494.00",AABAT TAXIS.
Children and Young Peoples Services,Head of Education and Skills,Transport,230012,Contract Hire,08/04/2019,3573167-Z27/SS,"1,378.86",AABAT TAXIS.
Children and Young Peoples Services,Head of Education and Skills,Transport,230012,Contract Hire,08/04/2019,3573169-O411,"2,021.04",ABC & OUSTON CABS.
Children and Young Peoples Services,Head of Education and Skills,Transport,230012,Contract Hire,08/04/2019,3573169-O412,"2,862.09",ABC & OUSTON CABS.
Children and Young Peoples Services,Head of Education and Skills,Transport,230008,Contract Hire,08/04/2019,3573184-157,"2,750.00",ANDY CABS.
Children and Young Peoples Services,Head of Early Help Inclusion & Vulnerable Children.,Premises,108099,Service Repairs and Maintenance,08/04/2019,3573191-287,"3,203.00",ARMSTRONG DECORATORS.
Children and Young Peoples Services,Head of Education and Skills,Transport,230008,Contract Hire,08/04/2019,3573192-MARCH2019-01,"1,443.54",ARMSTRONG`S TAXIS.
Children and Young Peoples Services,Head of Education and Skills,Transport,230012,Contract Hire,08/04/2019,3573192-MARCH2019-02,"1,047.20",ARMSTRONG`S TAXIS.
Children and Young Peoples Services,Head of Education and Skills,Transport,230007,Contract Hire,08/04/2019,3573201-03927,820.00,ATLAS TAXIS CONSETT.
Children and Young Peoples Services,Head of Education and Skills,Transport,230007,Contract Hire,08/04/2019,3573201-03930,"1,165.92",ATLAS TAXIS CONSETT.
Children and Young Peoples Services,Head of Education and Skills,Transport,230007,Contract Hire,08/04/2019,3573201-03932,672.00,ATLAS TAXIS CONSETT.
Children and Young Peoples Services,Head of Education and Skills,Transport,230006,Contract Hire,08/04/2019,3573201-03934,"1,597.00",ATLAS TAXIS CONSETT.
Children and Young Peoples Services,Head of Education and Skills,Transport,230009,Contract Hire,08/04/2019,3573201-03936,"2,135.20",ATLAS TAXIS CONSETT.
Children and Young Peoples Services,Head of Education and Skills,Transport,230007,Contract Hire,08/04/2019,3573201-03937,"1,505.32",ATLAS TAXIS CONSETT.
Children and Young Peoples Services,Head of Education and Skills,Transport,230008,Contract Hire,08/04/2019,3573219-A017-MARCH,"2,016.00",BIG MAMA`S TAXI.
Children and Young Peoples Services,Head of Education and Skills,Transport,230006,Contract Hire,08/04/2019,3573219-F728-MARCH,"1,324.80",BIG MAMA`S TAXI.
Children and Young Peoples Services,Head of Education and Skills,Transport,230013,Contract Hire,08/04/2019,3573230-002-2071,"1,680.00",BOWBURN TAXIS.
Children and Young Peoples Services,Head of Education and Skills,Transport,230012,Contract Hire,08/04/2019,3573238-7-E070,"1,575.00",BRIAN PURVIS T/A BJ`S TAXIS.
Children and Young Peoples Services,Head of Education and Skills,Transport,230008,Contract Hire,08/04/2019,3573242-A028018,"1,333.80",C & R TAXIS.
Children and Young Peoples Services,Head of Education and Skills,Transport,230008,Contract Hire,08/04/2019,3573242-S026018,"1,400.49",C & R TAXIS.
Children and Young Peoples Services,Head of Education and Skills,Transport,230008,Contract Hire,08/04/2019,3573242-W04005,"2,100.00",C & R TAXIS.
Children and Young Peoples Services,Head of Education and Skills,Transport,230008,Contract Hire,08/04/2019,3573242-W078018,"2,585.52",C & R TAXIS.
Children and Young Peoples Services,Head of Education and Skills,Transport,230007,Contract Hire,08/04/2019,3573258-26,"1,260.00",CHAPMAN TRAVEL.
Children and Young Peoples Services,Head of Education and Skills,Transport,230007,Contract Hire,08/04/2019,3573263-5254/02,968.00,CHRISTOPHER MADDISON (TAXI).
Children and Young Peoples Services,Head of Education and Skills,Transport,230008,Contract Hire,08/04/2019,3573266-019,"3,339.00",CJ COACHES.
Children and Young Peoples Services,Head of Education and Skills,Transport,230007,Contract Hire,08/04/2019,3573273-012,"1,218.00",COLIN HOLMES T/A VIGO LANE MINI COACHES.
Children and Young Peoples Services,Head of Education and Skills,Transfer Payments,510027,School Children,08/04/2019,3573282-F198009,"3,120.00",CORECARE FISHBURN LTD.
Children and Young Peoples Services,Head of Education and Skills,Transfer Payments,510027,School Children,08/04/2019,3573282-F198011,"2,808.00",CORECARE FISHBURN LTD.
Children and Young Peoples Services,Head of Education and Skills,Transfer Payments,510027,School Children,08/04/2019,3573282-NA198008,"2,210.00",CORECARE FISHBURN LTD.
Children and Young Peoples Services,Head of Education and Skills,Transport,230008,Contract Hire,08/04/2019,3573294-HOW0319,"1,534.50",D IRVING T/A BJ TAXIS.
Children and Young Peoples Services,Head of Education and Skills,Transport,230008,Contract Hire,08/04/2019,3573295-DI201903,"1,348.62",D&I TAXIS.
Children and Young Peoples Services,Head of Education and Skills,Transport,230007,Contract Hire,08/04/2019,3573296-1621,861.84,DA TAXIS.
Children and Young Peoples Services,Head of Education and Skills,Transport,230006,Contract Hire,08/04/2019,3573296-1623,"2,700.00",DA TAXIS.
Children and Young Peoples Services,Head of Education and Skills,Transport,230009,Contract Hire,08/04/2019,3573299-3412,"1,050.00",DAVES MINIBUSES.
Children and Young Peoples Services,Head of Education and Skills,Transport,230008,Contract Hire,08/04/2019,3573299-3413,"1,831.41",DAVES MINIBUSES.
Children and Young Peoples Services,Head of Education and Skills,Transport,230008,Contract Hire,08/04/2019,3573299-3414,"2,650.20",DAVES MINIBUSES.
Children and Young Peoples Services,Head of Education and Skills,Transport,230008,Contract Hire,08/04/2019,3573299-3417,"1,785.00",DAVES MINIBUSES.
Children and Young Peoples Services,Head of Education and Skills,Transport,230008,Contract Hire,08/04/2019,3573299-3418,"2,310.00",DAVES MINIBUSES.
Children and Young Peoples Services,Head of Education and Skills,Transport,230008,Contract Hire,08/04/2019,3573300-C007,"1,260.00",DAVID BRIDDICK T/A COUNDONS TAXIS.
Children and Young Peoples Services,Head of Education and Skills,Transport,230008,Contract Hire,08/04/2019,3573301-A96,"1,949.40",DAVID FOREMAN T/A DAVES TAXIS.
Children and Young Peoples Services,Head of Education and Skills,Transport,230008,Contract Hire,08/04/2019,3573301-A97,"1,333.80",DAVID FOREMAN T/A DAVES TAXIS.
Children and Young Peoples Services,Head of Education and Skills,Transport,230009,Contract Hire,08/04/2019,3573301-A98,600.00,DAVID FOREMAN T/A DAVES TAXIS.
Children and Young Peoples Services,Head of Education and Skills,Supplies and Services,308011,Furniture,08/04/2019,3573344-INV-01440,"1,445.70",FEEL GOOD DESIGN LTD.
Children and Young Peoples Services,Head of Education and Skills,Transport,230008,Contract Hire,08/04/2019,3573351-0454,"1,741.32",FMR SILVA PITA.
Children and Young Peoples Services,Head of Education and Skills,Transport,230007,Contract Hire,08/04/2019,3573351-0455,754.11,FMR SILVA PITA.
Children and Young Peoples Services,Head of Education and Skills,Transport,230007,Contract Hire,08/04/2019,3573351-0456,858.48,FMR SILVA PITA.
Children and Young Peoples Services,Head of Education and Skills,Transport,230007,Contract Hire,08/04/2019,3573351-0457,798.00,FMR SILVA PITA.
Children and Young Peoples Services,Head of Education and Skills,Transport,230007,Contract Hire,08/04/2019,3573358-16,"1,785.00",G ANGHEL T/A A TAXI.
Children and Young Peoples Services,Head of Education and Skills,Transport,230008,Contract Hire,08/04/2019,3573363-BW006,"2,625.00",GAVIN ELLIOTT T/A LOCATION TAXIS.
Children and Young Peoples Services,Head of Education and Skills,Transfer Payments,510027,School Children,08/04/2019,3573388-01-14/3/19,563.76,HAZEL DENE CHILDCARE LTD.
Children and Young Peoples Services,Head of Education and Skills,Transport,230008,Contract Hire,08/04/2019,3573429-CORPTRAVMAR19,528.00,JOHN W CROOK T/A CORPORATE TRAVEL.
Children and Young Peoples Services,Head of Education and Skills,Transport,230012,Contract Hire,08/04/2019,3573453-3974,"1,631.07",LINCAB TAXIS.
Children and Young Peoples Services,Head of Education and Skills,Transport,230008,Contract Hire,08/04/2019,3573453-3975,"2,225.49",LINCAB TAXIS.
Children and Young Peoples Services,Head of Early Help Inclusion & Vulnerable Children.,Supplies and Services,384199,Miscellaneous Expenses,08/04/2019,3573461-299703,544.00,LOW FELL REMOVALS.
Children and Young Peoples Services,Head of Education and Skills,Transport,230006,Contract Hire,08/04/2019,3573472-F745-MARCH,840.00,MARK FOWKES T/A CONSETT TAXIS.
Children and Young Peoples Services,Head of Education and Skills,Transport,230009,Contract Hire,08/04/2019,3573473-290319,840.00,MARK MUSGROVE T/A MARKS TAXIS.
Children and Young Peoples Services,Head of Education and Skills,Transport,230007,Contract Hire,08/04/2019,3573480-0212,"1,440.00",MICKS TAXIS - MURTON.
Children and Young Peoples Services,Head of Education and Skills,Transport,230007,Contract Hire,08/04/2019,3573482-AT172,"1,260.00",MR AG WILSON T/A ALAN`S TAXIS (DURHAM CITY).
Children and Young Peoples Services,Head of Education and Skills,Transport,230008,Contract Hire,08/04/2019,3573489-16A-N031,"1,637.58",MR RAYMOND RENWICK T/A RAY`S TAXIS & MINIBUSES.
Children and Young Peoples Services,Head of Education and Skills,Transport,230008,Contract Hire,08/04/2019,3573489-16B-N043,"1,723.68",MR RAYMOND RENWICK T/A RAY`S TAXIS & MINIBUSES.
Children and Young Peoples Services,Head of Education and Skills,Transport,230008,Contract Hire,08/04/2019,3573491-3072,"2,016.00",MR S BOWERS T/A DH7 TAXIS.
Children and Young Peoples Services,Head of Education and Skills,Transport,230008,Contract Hire,08/04/2019,3573491-3074,"2,205.00",MR S BOWERS T/A DH7 TAXIS.
Children and Young Peoples Services,Head of Education and Skills,Transport,230006,Contract Hire,08/04/2019,3573491-3075,"1,080.00",MR S BOWERS T/A DH7 TAXIS.
Children and Young Peoples Services,Head of Education and Skills,Transport,230008,Contract Hire,08/04/2019,3573497-51,"1,828.33",NEIL PASSMOOR T/A NEIL`S TAXI.
Children and Young Peoples Services,Head of Education and Skills,Supplies and Services,384302,Miscellaneous Expenses,08/04/2019,3573521-7754,505.00,OVERLANDER LTD.
Children and Young Peoples Services,Head of Education and Skills,Transport,230008,Contract Hire,08/04/2019,3573535-0742,"1,708.00",PETER`S PRIVATE HIRE/PETER BEST.
Children and Young Peoples Services,Head of Education and Skills,Transport,230007,Contract Hire,08/04/2019,3573535-0743,"2,289.00",PETER`S PRIVATE HIRE/PETER BEST.
Children and Young Peoples Services,Head of Education and Skills,Transport,230006,Contract Hire,08/04/2019,3573535-0744,"2,394.00",PETER`S PRIVATE HIRE/PETER BEST.
Children and Young Peoples Services,Head of Education and Skills,Transport,230008,Contract Hire,08/04/2019,3573535-0746,"1,512.00",PETER`S PRIVATE HIRE/PETER BEST.
Children and Young Peoples Services,Head of Education and Skills,Transport,230008,Contract Hire,08/04/2019,3573535-0747,756.00,PETER`S PRIVATE HIRE/PETER BEST.
Children and Young Peoples Services,Head of Education and Skills,Transport,230008,Contract Hire,08/04/2019,3573535-0748,"1,512.00",PETER`S PRIVATE HIRE/PETER BEST.
Children and Young Peoples Services,Head of Education and Skills,Transport,230008,Contract Hire,08/04/2019,3573535-0750,"2,024.00",PETER`S PRIVATE HIRE/PETER BEST.
Children and Young Peoples Services,Head of Education and Skills,Transport,230008,Contract Hire,08/04/2019,3573535-751,"1,817.00",PETER`S PRIVATE HIRE/PETER BEST.
Children and Young Peoples Services,Head of Education and Skills,Transport,230007,Contract Hire,08/04/2019,3573564-005-5249,868.50,RAYMOND CHURNSIDE T/A S & L TAXI.
Children and Young Peoples Services,Head of Education and Skills,Transport,230008,Contract Hire,08/04/2019,3573577-257,"1,489.00",ROBBIE`S PRIVATE HIRE.
Children and Young Peoples Services,Head of Childrens Social Care,Third Party Payments 4THIRD,440038,Other third party payments E440,08/04/2019,3573580-4837,"13,909.11",ROC FAMILY SUPPORT LTD.
Children and Young Peoples Services,Head of Education and Skills,Transport,230008,Contract Hire,08/04/2019,3573581-007,"2,090.00",RONS TAXI (CHESTER LE ST).
Children and Young Peoples Services,Head of Education and Skills,Transport,230007,Contract Hire,08/04/2019,3573589-5145-MARCH,"1,400.00",S DUNCAN PRIVATE HIRE.
Children and Young Peoples Services,Head of Education and Skills,Transport,230008,Contract Hire,08/04/2019,3573605-75074,"2,600.00",SHOTTON PRIVATE HIRE.
Children and Young Peoples Services,Head of Education and Skills,Transport,230008,Contract Hire,08/04/2019,3573605-75076,"2,520.00",SHOTTON PRIVATE HIRE.
Children and Young Peoples Services,Head of Education and Skills,Transport,230008,Contract Hire,08/04/2019,3573613-740A,"3,413.93",SJ MACKENZIE T/A SCOTTS TAXIS.
Children and Young Peoples Services,Head of Education and Skills,Transport,230008,Contract Hire,08/04/2019,3573613-742A,"2,149.14",SJ MACKENZIE T/A SCOTTS TAXIS.
Children and Young Peoples Services,Head of Education and Skills,Transport,230008,Contract Hire,08/04/2019,3573613-743A,"2,231.63",SJ MACKENZIE T/A SCOTTS TAXIS.
Children and Young Peoples Services,Head of Education and Skills,Transport,230008,Contract Hire,08/04/2019,3573613-744A,"1,615.95",SJ MACKENZIE T/A SCOTTS TAXIS.
Children and Young Peoples Services,Head of Education and Skills,Transport,230008,Contract Hire,08/04/2019,3573613-745A,"2,154.60",SJ MACKENZIE T/A SCOTTS TAXIS.
Children and Young Peoples Services,Head of Education and Skills,Transport,230003,Contract Hire,08/04/2019,3573624-52799,"2,652.30",STANLEY TRAVEL (NORTH EAST) LTD.
Children and Young Peoples Services,Head of Education and Skills,Transport,230006,Contract Hire,08/04/2019,3573627-00108,759.75,STEVES TAXIS.
Children and Young Peoples Services,Childrens Services Operational Support CG0080,Supplies and Services,338066,Services,08/04/2019,3573629-01008000847371,"2,400.00",STHREE PARTNERSHIP LLP T/A PROGRESSIVE.
Children and Young Peoples Services,Head of Education and Skills,Transport,230006,Contract Hire,08/04/2019,3573662-F755-MARCH,948.00,THOMAS GLEN.
Children and Young Peoples Services,Head of Education and Skills,Transport,230008,Contract Hire,08/04/2019,3573668-0002052,"2,415.00",TONY RIDLEY T/A COLORS TAXIS LTD.
Children and Young Peoples Services,Head of Early Help Inclusion & Vulnerable Children.,Supplies and Services,384199,Miscellaneous Expenses,08/04/2019,3573679-9000308040,"50,850.00",UNIVERSITY OF NEWCASTLE UPON TYNE.
Children and Young Peoples Services,Head of Early Help Inclusion & Vulnerable Children.,Employees,080025,Agency Staff,08/04/2019,3573685-363288,599.25,VISION FOR EDUCATION LTD.
Children and Young Peoples Services,Head of Education and Skills,Transport,230007,Contract Hire,08/04/2019,3573689-44-3334,"1,034.25",WALTONS TAXIS.
Children and Young Peoples Services,Head of Education and Skills,Transport,230007,Contract Hire,08/04/2019,3573689-45-3077,"1,034.25",WALTONS TAXIS.
Children and Young Peoples Services,Head of Education and Skills,Transport,230007,Contract Hire,08/04/2019,3573692-1539016,990.00,WENDYS` TAXIS.
Children and Young Peoples Services,Head of Education and Skills,Transport,230008,Contract Hire,08/04/2019,3573693-137,"1,680.00",WHITTONSTALL TAXIS SERVICE.
Dedicated Schools Grant BG0015,DSG High Needs Block,Transport,230009,Contract Hire,08/04/2019,3573162-31914,"2,680.00",24/7 TAXI SERVICES LTD.
Dedicated Schools Grant BG0015,DSG High Needs Block,Transport,230010,Contract Hire,08/04/2019,3573167-Z31/SX,"2,800.00",AABAT TAXIS.
Dedicated Schools Grant BG0015,DSG High Needs Block,Transport,230010,Contract Hire,08/04/2019,3573201-03931,"1,938.00",ATLAS TAXIS CONSETT.
Dedicated Schools Grant BG0015,DSG High Needs Block,Transport,230010,Contract Hire,08/04/2019,3573219-B006-MARCH,"1,680.00",BIG MAMA`S TAXI.
Dedicated Schools Grant BG0015,DSG High Needs Block,Third Party Payments 4THIRD,440080,Other third party payments E440,08/04/2019,3573234-2243,"21,657.00",BRECKENBROUGH SCHOOL.
Dedicated Schools Grant BG0015,DSG High Needs Block,Third Party Payments 4THIRD,440080,Other third party payments E440,08/04/2019,3573234-2265,"23,687.00",BRECKENBROUGH SCHOOL.
Dedicated Schools Grant BG0015,DSG High Needs Block,Transport,230010,Contract Hire,08/04/2019,3573297-331,"1,155.00",DA TRAVEL.
Dedicated Schools Grant BG0015,DSG High Needs Block,Transport,230010,Contract Hire,08/04/2019,3573313-19/57,"2,412.94",DMG PRIVATE HIRE.
Dedicated Schools Grant BG0015,DSG High Needs Block,Transport,230010,Contract Hire,08/04/2019,3573419-BL005-MARCH,"1,760.00",JAY WILSON T/A BLACKS PRIVATE HIRE.
Dedicated Schools Grant BG0015,DSG High Needs Block,Transport,230010,Contract Hire,08/04/2019,3573470-INV03/1901,"2,352.00",MARK & JOHN CHISHOLM T/A (CHEVRON).
Dedicated Schools Grant BG0015,DSG High Needs Block,Transport,230010,Contract Hire,08/04/2019,3573470-INV03/1902,"3,268.00",MARK & JOHN CHISHOLM T/A (CHEVRON).
Dedicated Schools Grant BG0015,DSG High Needs Block,Transport,230010,Contract Hire,08/04/2019,3573488-7,"1,239.00",MR M FARREY T/A TK TAXIS.
Dedicated Schools Grant BG0015,DSG High Needs Block,Supplies and Services,312075,Newspapers books and periodicals E312,08/04/2019,3573522-163148875,800.00,OXFORD JOURNALS.
Dedicated Schools Grant BG0015,DSG High Needs Block,Supplies and Services,304259,Equipment and Materials,08/04/2019,3573585-SEN086166,572.30,ROYAL NATIONAL INSTITUTE FOR THE BLIND (RNIB).
Dedicated Schools Grant BG0015,DSG High Needs Block,Transport,230010,Contract Hire,08/04/2019,3573605-75075,"2,610.00",SHOTTON PRIVATE HIRE.
Regeneration and Local Services,Technical Services CM0300,Supplies and Services,304221,Equipment and Materials,08/04/2019,3573176-27948777,"1,077.11",AGGREGATE INDUSTRIES UK LTD.
Regeneration and Local Services,Technical Services CM0300,Supplies and Services,304221,Equipment and Materials,08/04/2019,3573176-27962161,885.44,AGGREGATE INDUSTRIES UK LTD.
Regeneration and Local Services,Technical Services CM0300,Supplies and Services,304221,Equipment and Materials,08/04/2019,3573176-27962162,969.76,AGGREGATE INDUSTRIES UK LTD.
Regeneration and Local Services,Technical Services CM0300,Supplies and Services,304221,Equipment and Materials,08/04/2019,3573176-27962163,683.72,AGGREGATE INDUSTRIES UK LTD.
Regeneration and Local Services,Environmental Services,Third Party Payments 4THIRD,430100,Rendered by Private Contractors,08/04/2019,3573177-55487,"3,601.81",ALAN REED LTD.
Regeneration and Local Services,Technical Services CM0300,Third Party Payments 4THIRD,430100,Rendered by Private Contractors,08/04/2019,3573196-8143,"33,989.67",ASPHALT REINFORCEMENT SERVICES LTD.
Regeneration and Local Services,Technical Services CM0300,Third Party Payments 4THIRD,430100,Rendered by Private Contractors,08/04/2019,3573200-19011030,"17,129.64",ATKINS GLOBAL.
Regeneration and Local Services,Technical Services CM0300,Supplies and Services,338027,Services,08/04/2019,3573200-19011033,"10,400.00",ATKINS GLOBAL.
Regeneration and Local Services,Technical Services CM0300,Supplies and Services,338027,Services,08/04/2019,3573200-19011039,"13,951.00",ATKINS GLOBAL.
Regeneration and Local Services,Technical Services CM0300,Supplies and Services,304221,Equipment and Materials,08/04/2019,3573222-BMPR/241/LW,622.00,BISHOP MIDDLEHAM PLANT & RECYCLING LTD.
Regeneration and Local Services,Culture & Sport,Supplies and Services,338047,Services,08/04/2019,3573244-4100650061-13/3/19,"1,100.00",CALUM HOWARD (PERFORMER).
Regeneration and Local Services,Environmental Services,Supplies and Services,304259,Equipment and Materials,08/04/2019,3573250-402848,517.50,CARRS BILLINGTON AGRICULTURE.
Regeneration and Local Services,Corporate Property and Land,Third Party Payments 4THIRD,430100,Rendered by Private Contractors,08/04/2019,3573251-5635,"1,072.45",CATHEDRAL LOCK & SAFE SERVICES LTD.
Regeneration and Local Services,Culture & Sport,Premises,120037,Energy Costs,08/04/2019,3573256-2199287,"1,489.25",CERTAS ENERGY UK LTD.
Regeneration and Local Services,Environmental Services,Supplies and Services,338066,Services,08/04/2019,3573260-560720,"6,212.75",CHEVIOT TREES LTD.
Regeneration and Local Services,Environmental Services,Supplies and Services,338066,Services,08/04/2019,3573260-560992,"6,203.50",CHEVIOT TREES LTD.
Regeneration and Local Services,Environmental Services,Supplies and Services,338066,Services,08/04/2019,3573260-561217,"8,184.80",CHEVIOT TREES LTD.
Regeneration and Local Services,Environmental Services,Supplies and Services,338066,Services,08/04/2019,3573260-561225,"3,268.25",CHEVIOT TREES LTD.
Regeneration and Local Services,Environmental Services,Supplies and Services,338066,Services,08/04/2019,3573260-561226,"13,980.30",CHEVIOT TREES LTD.
Regeneration and Local Services,Technical Services CM0300,Stock A926,926900,Stock in hand-Inventory system,08/04/2019,3573271-505777,809.00,CMT EQUIPMENT LTD.
Regeneration and Local Services,Corporate Property and Land,Third Party Payments 4THIRD,430100,Rendered by Private Contractors,08/04/2019,3573317-61,"2,347.20",DPC SCREEDING LTD.
Regeneration and Local Services,Technical Services CM0300,Supplies and Services,338027,Services,08/04/2019,3573319-9365,"4,912.00",DUNELM GEOTECHNICAL & ENVIRONMENTAL LTD.
Regeneration and Local Services,Corporate Property and Land,Supplies and Services,304221,Equipment and Materials,08/04/2019,3573328-059-241124,838.31,EDMUNDSON ELECTRICAL LTD.
Regeneration and Local Services,Technical Services CM0300,Fees,901001,Internal fees,08/04/2019,3573334-406,"3,630.00",ELLIOTT CONSULTANCY LTD.
Regeneration and Local Services,Technical Services CM0300,Third Party Payments 4THIRD,430100,Rendered by Private Contractors,08/04/2019,3573337-SI-143,"1,000.00",ENVIROROD LTD.
Regeneration and Local Services,Environmental Services,Supplies and Services,338066,Services,08/04/2019,3573350-INV-0106,"4,375.00",FLO-CULTURE (UK) LTD.
Regeneration and Local Services,Environmental Services,Supplies and Services,338066,Services,08/04/2019,3573350-INV-0107,"1,500.00",FLO-CULTURE (UK) LTD.
Regeneration and Local Services,Culture & Sport,Premises,145023,Cleaning and Domestic Supplies,08/04/2019,3573376-06/790360,510.98,GREENHAM TRADING LTD.
Regeneration and Local Services,Corporate Property and Land,Premises,145023,Cleaning and Domestic Supplies,08/04/2019,3573376-06/790689,"1,468.00",GREENHAM TRADING LTD.
Regeneration and Local Services,Environmental Services,Third Party Payments 4THIRD,430100,Rendered by Private Contractors,08/04/2019,3573377-151418,"1,050.00",GREENLAY (GRASS MACHINERY) LTD.
Regeneration and Local Services,Environmental Services,Third Party Payments 4THIRD,430100,Rendered by Private Contractors,08/04/2019,3573377-151419,"1,400.00",GREENLAY (GRASS MACHINERY) LTD.
Regeneration and Local Services,Environmental Services,Third Party Payments 4THIRD,430100,Rendered by Private Contractors,08/04/2019,3573377-151430,875.00,GREENLAY (GRASS MACHINERY) LTD.
Regeneration and Local Services,Spatial Policy Planning Assets & Environment,Supplies and Services,338099,Services,08/04/2019,3573382-RES-04-2019-131,"22,534.74",GSC GRAYS LTD.
Regeneration and Local Services,Culture & Sport,Supplies and Services,338047,Services,08/04/2019,3573389-000855,700.00,HILARITY BITES COMEDY CLUB.
Regeneration and Local Services,Technical Services CM0300,Supplies and Services,304221,Equipment and Materials,08/04/2019,3573390-IN063096,"5,000.00",HILL & SMITH LTD.
Regeneration and Local Services,Environmental Services,Third Party Payments 4THIRD,430100,Rendered by Private Contractors,08/04/2019,3573392-77056,"1,006.13",HOGARTH COACHWORKS LTD.
Regeneration and Local Services,Environmental Services,Third Party Payments 4THIRD,430100,Rendered by Private Contractors,08/04/2019,3573392-77094,850.00,HOGARTH COACHWORKS LTD.
Regeneration and Local Services,Technical Services CM0300,Stock A926,926900,Stock in hand-Inventory system,08/04/2019,3573401-130296,"5,809.32",HYDRAM ENGINEERING LTD.
Regeneration and Local Services,Culture & Sport,Supplies and Services,384199,Miscellaneous Expenses,08/04/2019,3573403-1096,"4,000.00",IAN CLARK RESTORATION.
Regeneration and Local Services,Culture & Sport,Supplies and Services,332047,Printing Stationery and Gen Off Exps,08/04/2019,3573408-4296881,606.76,INSIGHT DIRECT (UK) LTD.
Regeneration and Local Services,Technical Services CM0300,Third Party Payments 4THIRD,460109,Contract Payments,08/04/2019,3573409-INS1723,"2,400.00",INSPECTORATE LTD T/A ROCH NDT SERVICES.
Regeneration and Local Services,Corporate Property and Land,Supplies and Services,304221,Equipment and Materials,08/04/2019,3573432-PHBI143452,"1,102.51",JT DOVE LTD.
Regeneration and Local Services,Culture & Sport,Supplies and Services,338047,Services,08/04/2019,3573498-LR/3079,"1,200.00",NELSON BROWNE MANAGEMENT LTD.
Regeneration and Local Services,Culture & Sport,Supplies and Services,338047,Services,08/04/2019,3573498-SB/3075,"1,200.00",NELSON BROWNE MANAGEMENT LTD.
Regeneration and Local Services,Spatial Policy Planning Assets & Environment,Supplies and Services,336005,Advertising E336,08/04/2019,3573502-28656318,778.41,NEWSQUEST (YORKSHIRE & NORTH EAST) LTD.
Regeneration and Local Services,Technical Services CM0300,Other expenses A914,914002,Capital - Advertisments,08/04/2019,3573502-28656637,"1,631.63",NEWSQUEST (YORKSHIRE & NORTH EAST) LTD.
Regeneration and Local Services,Corporate Property and Land,Supplies and Services,304083,Equipment and Materials,08/04/2019,3573505-18603453,"1,742.09",NISBETS PLC.
Regeneration and Local Services,Environmental Services,Supplies and Services,304221,Equipment and Materials,08/04/2019,3573518-29391,"4,557.00",ONE51 ES PLASTICS (UK) LTD T/A MGB PLASTICS.
Regeneration and Local Services,Environmental Services,Supplies and Services,304221,Equipment and Materials,08/04/2019,3573518-29392,"4,557.00",ONE51 ES PLASTICS (UK) LTD T/A MGB PLASTICS.
Regeneration and Local Services,Environmental Services,Supplies and Services,304221,Equipment and Materials,08/04/2019,3573518-29393,"8,810.20",ONE51 ES PLASTICS (UK) LTD T/A MGB PLASTICS.
Regeneration and Local Services,Technical Services CM0300,Stock A926,926900,Stock in hand-Inventory system,08/04/2019,3573527-XL237375,"1,950.00",PARK ELECTRICAL DISTRIBUTORS LTD.
Regeneration and Local Services,Technical Services CM0300,Stock A926,926900,Stock in hand-Inventory system,08/04/2019,3573527-XL237407,"2,572.80",PARK ELECTRICAL DISTRIBUTORS LTD.
Regeneration and Local Services,Environmental Services,Supplies and Services,304999,Equipment and Materials,08/04/2019,3573531-APV127153,893.96,PEAK PIPE SYSTEMS LTD.*
Regeneration and Local Services,Corporate Property and Land,Supplies and Services,304221,Equipment and Materials,08/04/2019,3573536-324933,"2,254.07",PEW ELECTRICAL DISTRIBUTORS LTD.
Regeneration and Local Services,Environmental Services,Supplies and Services,338066,Services,08/04/2019,3573547-4612,"2,500.00",POLLEN STUDIO.
Regeneration and Local Services,Technical Services CM0300,Third Party Payments 4THIRD,430100,Rendered by Private Contractors,08/04/2019,3573560-11729,"11,788.98",QUANTUM POWER CONNECTIONS LTD.
Regeneration and Local Services,Culture & Sport,Supplies and Services,338047,Services,08/04/2019,3573561-4100649249,"1,200.00",RACHEL GLOVER (STAGE MANAGER).
Regeneration and Local Services,Environmental Services,Third Party Payments 4THIRD,430100,Rendered by Private Contractors,08/04/2019,3573572-716968,"1,977.18",RICKERBY LTD.
Regeneration and Local Services,Environmental Services,Third Party Payments 4THIRD,430100,Rendered by Private Contractors,08/04/2019,3573572-716969,"2,543.33",RICKERBY LTD.
Regeneration and Local Services,Environmental Services,Third Party Payments 4THIRD,430100,Rendered by Private Contractors,08/04/2019,3573572-716970,"2,774.96",RICKERBY LTD.
Regeneration and Local Services,Environmental Services,Third Party Payments 4THIRD,430100,Rendered by Private Contractors,08/04/2019,3573572-716971,"2,716.71",RICKERBY LTD.
Regeneration and Local Services,Technical Services CM0300,Third Party Payments 4THIRD,430100,Rendered by Private Contractors,08/04/2019,3573598-SIL/D262/2973,"8,575.00",SEALANE INSHORE LTD.
Regeneration and Local Services,Culture & Sport,Supplies and Services,384199,Miscellaneous Expenses,08/04/2019,3573604-DCC0319,835.00,SHERYL JENKINS T/A DOT TO DOT.
Regeneration and Local Services,Corporate Property and Land,Supplies and Services,304221,Equipment and Materials,08/04/2019,3573608-909838,516.47,SIG TRADING LTD T/A CARPET & FLOORING LTD.*
Regeneration and Local Services,Environmental Services,Supplies and Services,338066,Services,08/04/2019,3573612-1028,"1,500.00",SIMON LEES T/A COUNTRYSIDE TRAINING PARTNERSHIP.
Regeneration and Local Services,Environmental Services,Third Party Payments 4THIRD,430100,Rendered by Private Contractors,08/04/2019,3573619-0001320814,"1,358.76",SRCL LTD.
Regeneration and Local Services,Environmental Services,Third Party Payments 4THIRD,430100,Rendered by Private Contractors,08/04/2019,3573619-0001320815,"1,342.55",SRCL LTD.
Regeneration and Local Services,Culture & Sport,Supplies and Services,328041,Clothing uniforms and laundry E328,08/04/2019,3573636-IN158404A,"3,096.30",SWIFT INDUSTRIAL SUPPLIES LTD.
Regeneration and Local Services,Environmental Services,Third Party Payments 4THIRD,430100,Rendered by Private Contractors,08/04/2019,3573644-4378,775.00,TEAM VALLEY TRANSMISSIONS LTD.
Regeneration and Local Services,Economic Development and Housing,Supplies and Services,384999,Miscellaneous Expenses,08/04/2019,3573653-SI1000001430,"2,991.25",THE CYRENIANS LTD T/A CHANGING LIVES.
Regeneration and Local Services,Economic Development and Housing,Supplies and Services,384999,Miscellaneous Expenses,08/04/2019,3573653-SI1000001431,704.00,THE CYRENIANS LTD T/A CHANGING LIVES.
Regeneration and Local Services,Environmental Services,Supplies and Services,328041,Clothing uniforms and laundry E328,08/04/2019,3573663-NSIN00008713,"2,525.20",THOMAS OWEN & SONS (NEWCASTLE) LTD.
Regeneration and Local Services,Environmental Services,Supplies and Services,328041,Clothing uniforms and laundry E328,08/04/2019,3573663-NSIN00008714,"1,926.00",THOMAS OWEN & SONS (NEWCASTLE) LTD.
Regeneration and Local Services,Technical Services CM0300,Supplies and Services,304221,Equipment and Materials,08/04/2019,3573667-109818,"2,207.04",TOFCO LTD.
Regeneration and Local Services,Technical Services CM0300,Supplies and Services,304221,Equipment and Materials,08/04/2019,3573667-109819,"2,790.36",TOFCO LTD.
Regeneration and Local Services,Corporate Property and Land,Supplies and Services,304221,Equipment and Materials,08/04/2019,3573669-31948,"1,057.00",TOTAL PUMP SOLUTIONS LTD.
Regeneration and Local Services,Transport and Contracted Services,Third Party Payments 4THIRD,430100,Rendered by Private Contractors,08/04/2019,3573684-761,537.12,VINOVIUM ASSOCIATES LTD.
Regeneration and Local Services,Environmental Services,Supplies and Services,304259,Equipment and Materials,08/04/2019,3573686-0005001614,"2,700.00",VISION TECHNIQUES (UK) LTD.
Regeneration and Local Services,Environmental Services,Supplies and Services,304259,Equipment and Materials,08/04/2019,3573686-0005001615,"2,700.00",VISION TECHNIQUES (UK) LTD.
Regeneration and Local Services,Technical Services CM0300,Third Party Payments 4THIRD,430127,Rendered by Private Contractors,08/04/2019,3573688-46374,"4,952.50",W MARLEY AGRICULTURAL CONTRACTORS LTD.
Regeneration and Local Services,Technical Services CM0300,Third Party Payments 4THIRD,430127,Rendered by Private Contractors,08/04/2019,3573688-46389,"2,136.00",W MARLEY AGRICULTURAL CONTRACTORS LTD.
Regeneration and Local Services,Technical Services CM0300,Stock A926,926900,Stock in hand-Inventory system,08/04/2019,3573694-500092,560.00,WILLIAM SMITH GROUP 1832.
Resources BK0010,Digital and Customer Services,Supplies and Services,352001,Conference Expenses,08/04/2019,3573199-21817,920.00,ASSISTIVE TECHNOLOGY & TRAINING LTD.
Resources BK0010,Internal Audit and Insurance,Supplies and Services,342051,Computers and Communications,08/04/2019,3573202-16789,"4,125.00",AUDITWARE SYSTEMS LTD.
Resources BK0010,Digital and Customer Services,Stock A926,926900,Stock in hand-Inventory system,08/04/2019,3573304-7402514550,524.34,DELL COMPUTER CORPORATION LTD.
Resources BK0010,Finance & Transactional Services,Supplies and Services,384180,Miscellaneous Expenses,08/04/2019,3573460-0304267,511.35,LOOMIS UK LTD.
Resources BK0010,Digital and Customer Services,Supplies and Services,342051,Computers and Communications,08/04/2019,3573537-OP/I837938,"7,000.00",PHOENIX SOFTWARE LTD.
Resources BK0010,Digital and Customer Services,Supplies and Services,332029,Printing Stationery and Gen Off Exps,08/04/2019,3573551-669658,"1,185.00",POTTS PRINTERS LTD.
Resources BK0010,Digital and Customer Services,Supplies and Services,304245,Equipment and Materials,08/04/2019,3573553-9728037,512.00,PREMIER PAPER GROUP LTD.
Resources BK0010,Digital and Customer Services,Fees,901002,Consultants fees 901002,08/04/2019,3573602-0033602205,"9,500.00",SERVELEC LTD.
Resources BK0010,Digital and Customer Services,Supplies and Services,342051,Computers and Communications,08/04/2019,3573602-0033602206,"8,500.00",SERVELEC LTD.
Resources BK0010,Digital and Customer Services,Vehicles Equipment Furniture and Fittings,912701,Computer equipment,08/04/2019,3573699-KQ02225,"1,136.08",XMA LTD.
Resources BK0010,Digital and Customer Services,Stock A926,926900,Stock in hand-Inventory system,08/04/2019,3573699-KQ03798,"13,200.86",XMA LTD.
Resources BK0010,Digital and Customer Services,Supplies and Services,342051,Computers and Communications,08/04/2019,3573702-94565446,"3,310.00",ZELLIS UK LTD.
Transformation and Partnerships,Partnerships & Community Engagement Div.,Supplies and Services,336005,Advertising E336,08/04/2019,3573615-54341,"1,623.02",SMART DISTBRIBUTION SOLUTIONS LTD.
Transformation and Partnerships,Communications Management,Supplies and Services,312010,Newspapers books and periodicals E312,08/04/2019,3573615-54395,"18,041.66",SMART DISTBRIBUTION SOLUTIONS LTD.
Adult and Health Services,Head of Adults,Transport,230005,Contract Hire,09/04/2019,3574511-0094,746.00,BIRDS TAXIS LTD.
Adult and Health Services,Head of Adults,Transport,230005,Contract Hire,09/04/2019,3574511-0109,664.00,BIRDS TAXIS LTD.
Adult and Health Services,Head of Adults,Transport,230005,Contract Hire,09/04/2019,3574511-0121,822.50,BIRDS TAXIS LTD.
Adult and Health Services,Head of Adults,Transport,230005,Contract Hire,09/04/2019,3574597-101183,"1,932.00",G & P JOHNSON LTD T/A NIGHTINGALE COACHES.
Adult and Health Services,Head of Adults,Transport,230005,Contract Hire,09/04/2019,3574597-101184,"1,764.00",G & P JOHNSON LTD T/A NIGHTINGALE COACHES.
Adult and Health Services,Head of Adults,Transport,230005,Contract Hire,09/04/2019,3574628-5022,717.18,HORNDALE TAXIS LTD.
Adult and Health Services,Head of Adults,Transport,230005,Contract Hire,09/04/2019,3574671-1722,"1,470.00",LD TAXIS.
Adult and Health Services,Commissioning inc Supporting People,Third Party Payments 4THIRD,470111,Purchase of Care,09/04/2019,3574674-RINVTP/00513470,"4,233.98",LEONARD CHESHIRE DISABILITY.
Adult and Health Services,Head of Adults,Third Party Payments 4THIRD,470101,Purchase of Care,09/04/2019,3574726-0000039548,"1,020.00",NORTH EAST AUTISM SOCIETY.
Adult and Health Services,Head of Adults,Third Party Payments 4THIRD,470101,Purchase of Care,09/04/2019,3574726-0000039549,"1,020.00",NORTH EAST AUTISM SOCIETY.
Adult and Health Services,Head of Adults,Third Party Payments 4THIRD,470101,Purchase of Care,09/04/2019,3574726-0000039550,"2,976.66",NORTH EAST AUTISM SOCIETY.
Adult and Health Services,Head of Adults,Third Party Payments 4THIRD,470101,Purchase of Care,09/04/2019,3574726-0000039551,"2,976.66",NORTH EAST AUTISM SOCIETY.
Adult and Health Services,Head of Adults,Third Party Payments 4THIRD,470101,Purchase of Care,09/04/2019,3574726-0000039556,"2,153.33",NORTH EAST AUTISM SOCIETY.
Adult and Health Services,Head of Adults,Third Party Payments 4THIRD,470101,Purchase of Care,09/04/2019,3574726-0000039557,"2,153.33",NORTH EAST AUTISM SOCIETY.
Adult and Health Services,Head of Adults,Third Party Payments 4THIRD,470101,Purchase of Care,09/04/2019,3574726-0000039572,"3,616.67",NORTH EAST AUTISM SOCIETY.
Adult and Health Services,Head of Adults,Transport,230005,Contract Hire,09/04/2019,3574804-78,798.00,STEVEN HENDERSON T/A HENDYS TAXIS.
Children and Young Peoples Services,Head of Childrens Social Care,Transport,230005,Contract Hire,09/04/2019,3574474-Z46/ZB,800.00,AABAT TAXIS.
Children and Young Peoples Services,Head of Childrens Social Care,Transport,230005,Contract Hire,09/04/2019,3574474-Z47/ZC,"2,660.00",AABAT TAXIS.
Children and Young Peoples Services,Head of Childrens Social Care,Transport,230005,Contract Hire,09/04/2019,3574474-Z48/ZD,"5,250.00",AABAT TAXIS.
Children and Young Peoples Services,Head of Childrens Social Care,Transport,230005,Contract Hire,09/04/2019,3574474-Z52/ZK,630.00,AABAT TAXIS.
Children and Young Peoples Services,Head of Childrens Social Care,Transport,230005,Contract Hire,09/04/2019,3574474-Z56/ZX,"1,470.00",AABAT TAXIS.
Children and Young Peoples Services,Head of Childrens Social Care,Transport,230005,Contract Hire,09/04/2019,3574474-Z61/ZP,560.00,AABAT TAXIS.
Children and Young Peoples Services,Head of Childrens Social Care,Transport,230005,Contract Hire,09/04/2019,3574474-Z62/ZA,"1,120.00",AABAT TAXIS.
Children and Young Peoples Services,Head of Childrens Social Care,Transport,230005,Contract Hire,09/04/2019,3574474-Z63/ZF,"1,095.00",AABAT TAXIS.
Children and Young Peoples Services,Head of Education and Skills,Transport,230008,Contract Hire,09/04/2019,3574476-O413,"2,088.60",ABC & OUSTON CABS.
Children and Young Peoples Services,Head of Education and Skills,Transport,230007,Contract Hire,09/04/2019,3574497-03928,816.00,ATLAS TAXIS CONSETT.
Children and Young Peoples Services,Head of Education and Skills,Transport,230008,Contract Hire,09/04/2019,3574512-26,"2,340.00",BL CARS.
Children and Young Peoples Services,Head of Education and Skills,Transport,230008,Contract Hire,09/04/2019,3574512-27,"2,912.00",BL CARS.
Children and Young Peoples Services,Head of Education and Skills,Transport,230008,Contract Hire,09/04/2019,3574530-024,"2,922.97",CHANNER`S CABS.
Children and Young Peoples Services,Head of Education and Skills,Transport,230008,Contract Hire,09/04/2019,3574534-A050-07MAR,840.00,CHRIS BELL T/A MEGAN`S TAXIS.
Children and Young Peoples Services,Head of Education and Skills,Transport,230003,Contract Hire,09/04/2019,3574536-46650,"3,210.27",CHRISTOPHER JAMES GRIERSON T/A GRIERSONS COACHES.
Children and Young Peoples Services,Head of Education and Skills,Transport,230003,Contract Hire,09/04/2019,3574536-46653,"8,015.07",CHRISTOPHER JAMES GRIERSON T/A GRIERSONS COACHES.
Children and Young Peoples Services,Head of Education and Skills,Transport,230003,Contract Hire,09/04/2019,3574536-46654,"3,016.44",CHRISTOPHER JAMES GRIERSON T/A GRIERSONS COACHES.
Children and Young Peoples Services,Head of Education and Skills,Transport,230003,Contract Hire,09/04/2019,3574536-46655,"2,800.98",CHRISTOPHER JAMES GRIERSON T/A GRIERSONS COACHES.
Children and Young Peoples Services,Head of Childrens Social Care,Transport,230005,Contract Hire,09/04/2019,3574545-CLUB1913B,513.00,CLUBMAN CABS.
Children and Young Peoples Services,Head of Childrens Social Care,Transport,230005,Contract Hire,09/04/2019,3574545-CLUB1913M,951.00,CLUBMAN CABS.
Children and Young Peoples Services,Head of Childrens Social Care,Transport,230005,Contract Hire,09/04/2019,3574545-CLUB1913X,550.00,CLUBMAN CABS.
Children and Young Peoples Services,Head of Education and Skills,Transport,230007,Contract Hire,09/04/2019,3574554-5,"2,270.00",CRAIG MASSEY`S TAXIS.
Children and Young Peoples Services,Head of Education and Skills,Transport,230008,Contract Hire,09/04/2019,3574562-0319-001,"2,080.00",DCM TAXIS.
Children and Young Peoples Services,Head of Education and Skills,Transport,230008,Contract Hire,09/04/2019,3574573-01042019/4,"3,003.00",EAST DURHAM TAXIS.
Children and Young Peoples Services,Head of Early Help Inclusion & Vulnerable Children.,Premises,108099,Service Repairs and Maintenance,09/04/2019,3574596-13937,700.00,FT LEISURE LTD.
Children and Young Peoples Services,Head of Education and Skills,Transport,230008,Contract Hire,09/04/2019,3574597-101185,"2,434.00",G & P JOHNSON LTD T/A NIGHTINGALE COACHES.
Children and Young Peoples Services,Head of Education and Skills,Transport,230003,Contract Hire,09/04/2019,3574597-101186,"4,063.00",G & P JOHNSON LTD T/A NIGHTINGALE COACHES.
Children and Young Peoples Services,Head of Education and Skills,Transport,230007,Contract Hire,09/04/2019,3574600-EW02,"1,092.00",GARY JACKSON PRIVATE HIRE.
Children and Young Peoples Services,Head of Childrens Social Care,Employees,080025,Agency Staff,09/04/2019,3574603-2428064,"135,782.02",GEOMETRIC RESULTS INTERNATIONAL.
Children and Young Peoples Services,Head of Education and Skills,Transport,230008,Contract Hire,09/04/2019,3574609-01-W063,"2,205.00",GRAHAM WILLIAMS T/A BUS 2 MINIBUS HIRE.
Children and Young Peoples Services,Head of Education and Skills,Transport,230006,Contract Hire,09/04/2019,3574614-F724007,"1,080.00",GUY`S TAXIS.
Children and Young Peoples Services,Head of Education and Skills,Transport,230008,Contract Hire,09/04/2019,3574621-591,"1,800.00",HEPWORTHS TRAVEL.
Children and Young Peoples Services,Head of Education and Skills,Transport,230008,Contract Hire,09/04/2019,3574621-592,"1,800.00",HEPWORTHS TRAVEL.
Children and Young Peoples Services,Head of Education and Skills,Transport,230008,Contract Hire,09/04/2019,3574621-593,"3,370.06",HEPWORTHS TRAVEL.
Children and Young Peoples Services,Head of Education and Skills,Transport,230008,Contract Hire,09/04/2019,3574628-5019,"1,680.63",HORNDALE TAXIS LTD.
Children and Young Peoples Services,Head of Education and Skills,Transport,230007,Contract Hire,09/04/2019,3574628-5020,"1,365.00",HORNDALE TAXIS LTD.
Children and Young Peoples Services,Head of Education and Skills,Transport,230006,Contract Hire,09/04/2019,3574628-5021,"1,268.40",HORNDALE TAXIS LTD.
Children and Young Peoples Services,Head of Education and Skills,Transport,230008,Contract Hire,09/04/2019,3574630-IR1903002,"2,192.61",I & R EXECUTIVE TRAVEL.
Children and Young Peoples Services,Head of Education and Skills,Transport,230008,Contract Hire,09/04/2019,3574630-IR1903003,"1,932.00",I & R EXECUTIVE TRAVEL.
Children and Young Peoples Services,Head of Education and Skills,Transport,230009,Contract Hire,09/04/2019,3574642-0676,"1,573.00",JACKSON`S TAXI.
Children and Young Peoples Services,Head of Education and Skills,Transport,230008,Contract Hire,09/04/2019,3574642-0677,"1,386.00",JACKSON`S TAXI.
Children and Young Peoples Services,Head of Education and Skills,Transport,230009,Contract Hire,09/04/2019,3574642-0678,798.00,JACKSON`S TAXI.
Children and Young Peoples Services,Head of Education and Skills,Transport,230008,Contract Hire,09/04/2019,3574651-29/03/19B,"2,295.51",JL EBDON. T/A DIAL-A-CAB.
Children and Young Peoples Services,Head of Education and Skills,Transport,230008,Contract Hire,09/04/2019,3574651-29/03/19C,"1,292.76",JL EBDON. T/A DIAL-A-CAB.
Children and Young Peoples Services,Head of Education and Skills,Transport,230008,Contract Hire,09/04/2019,3574651-29/03/19D,"2,111.55",JL EBDON. T/A DIAL-A-CAB.
Children and Young Peoples Services,Head of Education and Skills,Transport,230008,Contract Hire,09/04/2019,3574651-29/03/19E,"1,896.09",JL EBDON. T/A DIAL-A-CAB.
Children and Young Peoples Services,Head of Education and Skills,Transport,230012,Contract Hire,09/04/2019,3574651-29/03/19F,"1,292.76",JL EBDON. T/A DIAL-A-CAB.
Children and Young Peoples Services,Head of Education and Skills,Transport,230007,Contract Hire,09/04/2019,3574651-29/03/19G,"1,260.00",JL EBDON. T/A DIAL-A-CAB.
Children and Young Peoples Services,Head of Education and Skills,Transport,230008,Contract Hire,09/04/2019,3574651-29/03/2019A,"2,973.39",JL EBDON. T/A DIAL-A-CAB.
Children and Young Peoples Services,Head of Education and Skills,Transport,230008,Contract Hire,09/04/2019,3574655-PH11,700.00,JOVIAL PRIVATE HIRE.
Children and Young Peoples Services,Head of Education and Skills,Transport,230008,Contract Hire,09/04/2019,3574661-E055MARCH,"3,969.00",K & R TAXIS (STANLEY).
Children and Young Peoples Services,Head of Education and Skills,Transport,230008,Contract Hire,09/04/2019,3574661-M053MARCH,"3,301.41",K & R TAXIS (STANLEY).
Children and Young Peoples Services,Head of Education and Skills,Transport,230008,Contract Hire,09/04/2019,3574669-6E,"2,520.00",L & R PRIVATE HIRE.
Children and Young Peoples Services,Head of Education and Skills,Transport,230006,Contract Hire,09/04/2019,3574671-1720,720.00,LD TAXIS.
Children and Young Peoples Services,Head of Education and Skills,Transport,230008,Contract Hire,09/04/2019,3574671-1721,"1,680.00",LD TAXIS.
Children and Young Peoples Services,Head of Education and Skills,Transport,230007,Contract Hire,09/04/2019,3574671-1723,"1,680.00",LD TAXIS.
Children and Young Peoples Services,Head of Education and Skills,Transport,230007,Contract Hire,09/04/2019,3574671-1724,528.00,LD TAXIS.
Children and Young Peoples Services,Head of Education and Skills,Transport,230007,Contract Hire,09/04/2019,3574672-6621-4010,"6,463.80",LEE`S COACHES LTD.
Children and Young Peoples Services,Head of Education and Skills,Transport,230007,Contract Hire,09/04/2019,3574672-6621-4226,"4,309.20",LEE`S COACHES LTD.
Children and Young Peoples Services,Head of Education and Skills,Transport,230007,Contract Hire,09/04/2019,3574672-6621-4227,"3,124.17",LEE`S COACHES LTD.
Children and Young Peoples Services,Head of Childrens Social Care,Transport,230005,Contract Hire,09/04/2019,3574677-4350,"1,103.00",LOCAL TRANSPORT LTD.
Children and Young Peoples Services,Head of Childrens Social Care,Transport,230005,Contract Hire,09/04/2019,3574677-4351,525.00,LOCAL TRANSPORT LTD.
Children and Young Peoples Services,Head of Childrens Social Care,Transport,230005,Contract Hire,09/04/2019,3574677-4353,"1,350.00",LOCAL TRANSPORT LTD.
Children and Young Peoples Services,Head of Childrens Social Care,Transport,230005,Contract Hire,09/04/2019,3574677-4355,510.00,LOCAL TRANSPORT LTD.
Children and Young Peoples Services,Head of Childrens Social Care,Transport,230005,Contract Hire,09/04/2019,3574677-4356,520.00,LOCAL TRANSPORT LTD.
Children and Young Peoples Services,Head of Childrens Social Care,Transport,230005,Contract Hire,09/04/2019,3574677-4357,660.00,LOCAL TRANSPORT LTD.
Children and Young Peoples Services,Head of Childrens Social Care,Transport,230005,Contract Hire,09/04/2019,3574677-4358,"1,400.00",LOCAL TRANSPORT LTD.
Children and Young Peoples Services,Head of Childrens Social Care,Transport,230005,Contract Hire,09/04/2019,3574677-4359,988.00,LOCAL TRANSPORT LTD.
Children and Young Peoples Services,Head of Childrens Social Care,Transport,230005,Contract Hire,09/04/2019,3574677-4361,"1,500.00",LOCAL TRANSPORT LTD.
Children and Young Peoples Services,Head of Childrens Social Care,Transport,230005,Contract Hire,09/04/2019,3574677-4362,840.00,LOCAL TRANSPORT LTD.
Children and Young Peoples Services,Head of Childrens Social Care,Transport,230005,Contract Hire,09/04/2019,3574677-4363,"3,722.00",LOCAL TRANSPORT LTD.
Children and Young Peoples Services,Head of Childrens Social Care,Transport,230005,Contract Hire,09/04/2019,3574677-4365,616.00,LOCAL TRANSPORT LTD.
Children and Young Peoples Services,Head of Childrens Social Care,Transport,230005,Contract Hire,09/04/2019,3574677-4366,"3,078.00",LOCAL TRANSPORT LTD.
Children and Young Peoples Services,Head of Childrens Social Care,Transport,230005,Contract Hire,09/04/2019,3574677-4371,"1,080.00",LOCAL TRANSPORT LTD.
Children and Young Peoples Services,Head of Education and Skills,Transport,230008,Contract Hire,09/04/2019,3574682-147,"1,545.00",M BUTCHER T/A M & M`S TAXIS.
Children and Young Peoples Services,Head of Education and Skills,Transport,230008,Contract Hire,09/04/2019,3574683-28,"2,371.32",M&C`S CABS LTD.
Children and Young Peoples Services,Head of Education and Skills,Transport,230008,Contract Hire,09/04/2019,3574693-0005,"1,600.00",MGD TAXIS.
Children and Young Peoples Services,Head of Education and Skills,Transport,230008,Contract Hire,09/04/2019,3574694-7A,"1,008.00",MICHAEL A BODDY T/A MBS TAXIS.
Children and Young Peoples Services,Head of Education and Skills,Transport,230008,Contract Hire,09/04/2019,3574701-W028-18,"1,231.20",MR BW YOUNG T/A ESH TAXIS.
Children and Young Peoples Services,Head of Education and Skills,Transport,230008,Contract Hire,09/04/2019,3574703-A088JMARCH,"1,508.22",MR DAVID P BRACE T/A JAFFAS TAXIS.
Children and Young Peoples Services,Head of Education and Skills,Transport,230008,Contract Hire,09/04/2019,3574705-Z21,"2,929.92",MR G FREELAND T/A HUNWICK CARS.
Children and Young Peoples Services,Head of Education and Skills,Transport,230007,Contract Hire,09/04/2019,3574708-05,"1,260.00",MR MARK WILE T/A HARRY`S TAXIS.
Children and Young Peoples Services,Head of Education and Skills,Transport,230006,Contract Hire,09/04/2019,3574712-7,600.00,MRS LISA JANE NATTRASS T/A LISA`S TAXIS.
Children and Young Peoples Services,Head of Education and Skills,Supplies and Services,338027,Services,09/04/2019,3574727-23092,"2,579.70",NORTH EAST REGIONAL EMPLOYERS ORGANISATION (NEREO).
Children and Young Peoples Services,Head of Education and Skills,Transport,230008,Contract Hire,09/04/2019,3574745-11A-11C,"1,540.00",PHILS TAXIS.
Children and Young Peoples Services,Head of Education and Skills,Transport,230008,Contract Hire,09/04/2019,3574761-18A,"2,563.68",RAYNERS COACHES.
Children and Young Peoples Services,Head of Education and Skills,Transport,230007,Contract Hire,09/04/2019,3574761-71A,"1,378.86",RAYNERS COACHES.
Children and Young Peoples Services,Head of Early Help Inclusion & Vulnerable Children.,Premises,108099,Service Repairs and Maintenance,09/04/2019,3574767-208149,"1,200.00",RIELLO UPS LTD.
Children and Young Peoples Services,Head of Education and Skills,Transport,230008,Contract Hire,09/04/2019,3574772-A052-MARCH,"1,503.00",ROGERS TAXIS.
Children and Young Peoples Services,Head of Education and Skills,Transport,230008,Contract Hire,09/04/2019,3574773-7-S039,"1,260.00",ROUTE 1.
Children and Young Peoples Services,Head of Education and Skills,Transport,230003,Contract Hire,09/04/2019,3574778-3208/29,"2,127.51",S & S TRAVEL LTD.
Children and Young Peoples Services,Head of Education and Skills,Transport,230008,Contract Hire,09/04/2019,3574778-W047/07,"2,310.00",S & S TRAVEL LTD.
Children and Young Peoples Services,Head of Education and Skills,Transport,230008,Contract Hire,09/04/2019,3574778-W048/29,"1,917.51",S & S TRAVEL LTD.
Children and Young Peoples Services,Head of Education and Skills,Transport,230008,Contract Hire,09/04/2019,3574788-75079,"2,322.00",SHOTTON PRIVATE HIRE.
Children and Young Peoples Services,Head of Education and Skills,Transport,230012,Contract Hire,09/04/2019,3574792-738A,"2,587.20",SJ MACKENZIE T/A SCOTTS TAXIS.
Children and Young Peoples Services,Head of Education and Skills,Transport,230008,Contract Hire,09/04/2019,3574800-LP034,840.00,SPENNYMOOR TAXIS.
Children and Young Peoples Services,Head of Education and Skills,Transport,230007,Contract Hire,09/04/2019,3574804-79,903.00,STEVEN HENDERSON T/A HENDYS TAXIS.
Children and Young Peoples Services,Head of Education and Skills,Transport,230009,Contract Hire,09/04/2019,3574804-80,504.00,STEVEN HENDERSON T/A HENDYS TAXIS.
Children and Young Peoples Services,Head of Education and Skills,Transport,230004,Contract Hire,09/04/2019,3574827-F735MARCH,"1,339.00",THOMAS GLEN.
Children and Young Peoples Services,Head of Education and Skills,Transport,230016,Contract Hire,09/04/2019,3574829-0002051,"2,520.00",TONY RIDLEY T/A COLORS TAXIS LTD.
Children and Young Peoples Services,Head of Childrens Social Care,Transport,230005,Contract Hire,09/04/2019,3574830-500-2019,528.00,TONYS TAXIS (A BIRCH).
Children and Young Peoples Services,Head of Childrens Social Care,Transport,230005,Contract Hire,09/04/2019,3574830-506-2019,912.00,TONYS TAXIS (A BIRCH).
Children and Young Peoples Services,Head of Childrens Social Care,Transport,230005,Contract Hire,09/04/2019,3574830-507-2019,838.00,TONYS TAXIS (A BIRCH).
Children and Young Peoples Services,Head of Childrens Social Care,Transport,230005,Contract Hire,09/04/2019,3574830-508-2019,544.00,TONYS TAXIS (A BIRCH).
Dedicated Schools Grant BG0015,DSG High Needs Block,Transport,230010,Contract Hire,09/04/2019,3574471-MARCH01,"2,365.41",A & P TAXIS.
Dedicated Schools Grant BG0015,DSG High Needs Block,Transport,230007,Contract Hire,09/04/2019,3574704-0319,560.00,MR DEREK HENDERSON.
Dedicated Schools Grant BG0015,DSG High Needs Block,Third Party Payments 4THIRD,440080,Other third party payments E440,09/04/2019,3574726-0000039559,"1,970.00",NORTH EAST AUTISM SOCIETY.
Dedicated Schools Grant BG0015,DSG High Needs Block,Third Party Payments 4THIRD,440080,Other third party payments E440,09/04/2019,3574726-0000039579,"1,020.00",NORTH EAST AUTISM SOCIETY.
Dedicated Schools Grant BG0015,DSG High Needs Block,Third Party Payments 4THIRD,440080,Other third party payments E440,09/04/2019,3574726-0000039580,"1,020.00",NORTH EAST AUTISM SOCIETY.
Dedicated Schools Grant BG0015,DSG High Needs Block,Third Party Payments 4THIRD,440080,Other third party payments E440,09/04/2019,3574726-0000039583,"1,970.00",NORTH EAST AUTISM SOCIETY.
Dedicated Schools Grant BG0015,DSG High Needs Block,Third Party Payments 4THIRD,440080,Other third party payments E440,09/04/2019,3574726-0000039586,"4,820.00",NORTH EAST AUTISM SOCIETY.
Dedicated Schools Grant BG0015,DSG High Needs Block,Third Party Payments 4THIRD,440080,Other third party payments E440,09/04/2019,3574726-0000039587,"1,020.00",NORTH EAST AUTISM SOCIETY.
Dedicated Schools Grant BG0015,DSG High Needs Block,Transport,230010,Contract Hire,09/04/2019,3574740-613,"2,345.00",PETERLEE EXECUTIVE CARS.
Dedicated Schools Grant BG0015,DSG High Needs Block,Third Party Payments 4THIRD,410037,Rendered by Other Local Authorities,09/04/2019,3574810-2807028176,"8,147.08",SUNDERLAND CITY COUNCIL.
Dedicated Schools Grant BG0015,DSG High Needs Block,Transport,230010,Contract Hire,09/04/2019,3574850-0319,"1,796.40",WEST AUCKLAND TOWN TRAVEL (WATT).
Regeneration and Local Services,Technical Services CM0300,Construction work A908,908105,Construction work,09/04/2019,3574472-D7IDEMOLITION,"99,547.00",A BUCKLER (HAULAGE) LTD.
Regeneration and Local Services,Culture & Sport,Premises,106082,Centrally Controlled Rep and Maint,09/04/2019,3574475-90133898,"3,189.44",ABACUS LIGHTING LTD.
Regeneration and Local Services,Culture & Sport,Premises,106082,Centrally Controlled Rep and Maint,09/04/2019,3574479-IN5491,"19,553.40",ACROL AIR CONDITIONING CO LTD.
Regeneration and Local Services,Technical Services CM0300,Supplies and Services,304221,Equipment and Materials,09/04/2019,3574482-27968471,"1,108.96",AGGREGATE INDUSTRIES UK LTD.
Regeneration and Local Services,Culture & Sport,Supplies and Services,324117,Provisions E324,09/04/2019,3574506-7061/264726,549.48,BESTWAY WHOLESALE LTD T/A BATLEYS FOODSERVICE.
Regeneration and Local Services,Culture & Sport,Supplies and Services,324117,Provisions E324,09/04/2019,3574509-85999085,768.74,BIDFOOD.
Regeneration and Local Services,Technical Services CM0300,Premises,150015,Apportioned Exps of Operational Blds,09/04/2019,3574543-115688,818.95,CLEE HILL PLANT LTD.
Regeneration and Local Services,Technical Services CM0300,Premises,150015,Apportioned Exps of Operational Blds,09/04/2019,3574543-115689,818.96,CLEE HILL PLANT LTD.
Regeneration and Local Services,Technical Services CM0300,Premises,150015,Apportioned Exps of Operational Blds,09/04/2019,3574543-115690,691.53,CLEE HILL PLANT LTD.
Regeneration and Local Services,Culture & Sport,Third Party Payments 4THIRD,430100,Rendered by Private Contractors,09/04/2019,3574547-INV03771,745.55,COMPETITION LINE UK LTD T/A LIFESTYLE FITNESS.
Regeneration and Local Services,Culture & Sport,Premises,106080,Centrally Controlled Rep and Maint,09/04/2019,3574596-13929,"1,000.00",FT LEISURE LTD.
Regeneration and Local Services,Culture & Sport,Premises,106080,Centrally Controlled Rep and Maint,09/04/2019,3574596-14314,550.00,FT LEISURE LTD.
Regeneration and Local Services,Technical Services CM0300,Premises,150015,Apportioned Exps of Operational Blds,09/04/2019,3574599-409442104,823.62,GAP GROUP LTD.
Regeneration and Local Services,Corporate Property and Land,Supplies and Services,304221,Equipment and Materials,09/04/2019,3574620-4620742,649.21,HEADLAM (FLOORCOVERING DISTRIBUTORS) LTD.
Regeneration and Local Services,Culture & Sport,Supplies and Services,338047,Services,09/04/2019,3574646-MH/7523,"1,200.00",JANET PLATER MANAGEMENT LTD.
Regeneration and Local Services,Environmental Services,Supplies and Services,328041,Clothing uniforms and laundry E328,09/04/2019,3574649-9122,735.40,JG UNIFORMS.
Regeneration and Local Services,Technical Services CM0300,Premises,150015,Apportioned Exps of Operational Blds,09/04/2019,3574653-2302301,800.31,JOHN NIXON LTD.
Regeneration and Local Services,Culture & Sport,Supplies and Services,338047,Services,09/04/2019,3574662-G546,"3,939.78",KATHRYN TICKELL (THEATRE CONTRACTOR).
Regeneration and Local Services,Corporate Property and Land,Supplies and Services,304221,Equipment and Materials,09/04/2019,3574692-NE184927,696.00,MCNAUGHTON BLAIR LTD T/A LLOYD WORRALL (NEWCASTLE UPON TYNE) LTD.
Regeneration and Local Services,Culture & Sport,Supplies and Services,312013,Newspapers books and periodicals E312,09/04/2019,3574721-007280,689.70,NEWSMARKET.
Regeneration and Local Services,Environmental Services,Transport,215022,Running Costs of Vehicles,09/04/2019,3574730-406812,"8,180.05",OIL NRG LTD.
Regeneration and Local Services,Environmental Services,Transport,215022,Running Costs of Vehicles,09/04/2019,3574730-409833,"3,211.39",OIL NRG LTD.
Regeneration and Local Services,Environmental Services,Transport,215005,Running Costs of Vehicles,09/04/2019,3574730-410290,"12,154.80",OIL NRG LTD.
Regeneration and Local Services,Business Durham CL0850,Premises,120009,Energy Costs,09/04/2019,3574731-66010784,703.00,OPUS ENERGY LTD.
Regeneration and Local Services,Transport and Contracted Services,Supplies and Services,336005,Advertising E336,09/04/2019,3574759-0000070868,"1,300.00",RATCLIFFE MEDIA LTD T/A ADVERTA.
Regeneration and Local Services,Business Durham CL0850,Supplies and Services,352001,Conference Expenses,09/04/2019,3574762-4654870,"3,500.00",REACH PUBLISHING SERVICES LTD.
Regeneration and Local Services,Corporate Property and Land,Supplies and Services,372009,Subscriptions E372,09/04/2019,3574766-098225,"4,135.00",RICS BOOKS.*
Regeneration and Local Services,Economic Development and Housing,Fees,901003,Capital - Contract Supervision,09/04/2019,3574769-J/18/02/14/APK/TM,"2,000.00",RNJ PARTNERSHIP LLP.
Regeneration and Local Services,Transport and Contracted Services,Third Party Payments 4THIRD,430106,Rendered by Private Contractors,09/04/2019,3574784-2869,"146,646.92",SCARLET BAND BUS & COACH LTD.
Regeneration and Local Services,Culture & Sport,Supplies and Services,304259,Equipment and Materials,09/04/2019,3574785-130752,600.00,SELSIUS LTD.
Regeneration and Local Services,Culture & Sport,Supplies and Services,384999,Miscellaneous Expenses,09/04/2019,3574795-OP/0065788,596.84,SOCIETY OF LONDON THEATRE & UK THEATRE.
Regeneration and Local Services,Culture & Sport,Supplies and Services,384199,Miscellaneous Expenses,09/04/2019,3574799-INVS005293,"3,417.37",SPEKTRIX LTD.
Regeneration and Local Services,Technical Services CM0300,Third Party Payments 4THIRD,430100,Rendered by Private Contractors,09/04/2019,3574807-116016,558.08,STONEGRAVE AGGREGATES LTD.
Regeneration and Local Services,Technical Services CM0300,Third Party Payments 4THIRD,430100,Rendered by Private Contractors,09/04/2019,3574807-116059,"1,163.80",STONEGRAVE AGGREGATES LTD.
Regeneration and Local Services,Technical Services CM0300,Third Party Payments 4THIRD,430100,Rendered by Private Contractors,09/04/2019,3574807-116097,"1,316.96",STONEGRAVE AGGREGATES LTD.
Regeneration and Local Services,Technical Services CM0300,Third Party Payments 4THIRD,430100,Rendered by Private Contractors,09/04/2019,3574807-116136,"1,225.72",STONEGRAVE AGGREGATES LTD.
Regeneration and Local Services,Culture & Sport,Supplies and Services,338047,Services,09/04/2019,3574823-00249.,600.00,THE LETTER ROOM.
Regeneration and Local Services,Culture & Sport,Supplies and Services,384199,Miscellaneous Expenses,09/04/2019,3574833-1GW/58766,"3,000.00",TROIKA TALENT AGENTS LLP.
Regeneration and Local Services,Culture & Sport,Supplies and Services,384199,Miscellaneous Expenses,09/04/2019,3574833-2GW/59028,"3,000.00",TROIKA TALENT AGENTS LLP.
Regeneration and Local Services,Environmental Services,Premises,106082,Centrally Controlled Rep and Maint,09/04/2019,3574836-DL942133,"3,407.00",TYCO FIRE & INTEGRATED SOLUTIONS (UK) LTD.
Regeneration and Local Services,Environmental Services,Premises,106082,Centrally Controlled Rep and Maint,09/04/2019,3574836-DL942453,"1,065.00",TYCO FIRE & INTEGRATED SOLUTIONS (UK) LTD.
Regeneration and Local Services,Culture & Sport,Supplies and Services,338047,Services,09/04/2019,3574845-1733497,786.46,WALT DISNEY CO LTD.
Regeneration and Local Services,Technical Services CM0300,Premises,150015,Apportioned Exps of Operational Blds,09/04/2019,3574849-872399,598.29,WERNICK HIRE LTD.
Regeneration and Local Services,Technical Services CM0300,Premises,150015,Apportioned Exps of Operational Blds,09/04/2019,3574849-872405,699.30,WERNICK HIRE LTD.
Regeneration and Local Services,Technical Services CM0300,Premises,150015,Apportioned Exps of Operational Blds,09/04/2019,3574849-872410,598.29,WERNICK HIRE LTD.
Regeneration and Local Services,Technical Services CM0300,Premises,150015,Apportioned Exps of Operational Blds,09/04/2019,3574849-872412,699.30,WERNICK HIRE LTD.
Regeneration and Local Services,Technical Services CM0300,Premises,150015,Apportioned Exps of Operational Blds,09/04/2019,3574849-872414,699.30,WERNICK HIRE LTD.
Resources BK0010,Digital and Customer Services,Supplies and Services,304259,Equipment and Materials,09/04/2019,3574720-92552876,"2,462.58",NEOPOST LTD.
Adult and Health Services,Head of Adults,Supplies and Services,304516,Equipment and Materials,10/04/2019,3574859-08231,598.50,1AB TAXIS LTD.
Adult and Health Services,Head of Adults,Supplies and Services,384616,Miscellaneous Expenses,10/04/2019,3574891-12/1819/MULB,"1,973.40",BERNICIA GROUP LTD.
Adult and Health Services,Commissioning inc Supporting People,Third Party Payments 4THIRD,442002,Supporting People E442,10/04/2019,3574894-1969024,"16,448.04",BID SERVICES.
Adult and Health Services,Commissioning inc Supporting People,Third Party Payments 4THIRD,479111,Purchase of Care,10/04/2019,3574934-29672,"12,500.00",CHS HEALTHCARE.
Adult and Health Services,Commissioning inc Supporting People,Third Party Payments 4THIRD,442002,Supporting People E442,10/04/2019,3574956-1969001,"19,868.48",CREATIVE SUPPORT LTD.
Adult and Health Services,Head of Adults,Transport,230005,Contract Hire,10/04/2019,3574957-109022,"1,773.72",CROFT BUSINESS SERVICES (UK) LTD T/A CROFT TAXIS.
Adult and Health Services,Public Health CC0450,Supplies and Services,342051,Computers and Communications,10/04/2019,3574963-6716,"19,000.00",CYBER MEDIA SOLUTIONS LTD.
Adult and Health Services,Commissioning inc Supporting People,Third Party Payments 4THIRD,441001,Supporting People E441,10/04/2019,3574980-1969052,"20,819.76",DURHAM ACTION ON SINGLE HOUSING LTD.
Adult and Health Services,Commissioning inc Supporting People,Third Party Payments 4THIRD,443001,Supporting People E443,10/04/2019,3574980-1969055,"4,427.76",DURHAM ACTION ON SINGLE HOUSING LTD.
Adult and Health Services,Commissioning inc Supporting People,Third Party Payments 4THIRD,441001,Supporting People E441,10/04/2019,3574988-1969022,"5,483.40",EAST DURHAM COMMUNITY INITIATIVES LTD.
Adult and Health Services,Commissioning inc Supporting People,Third Party Payments 4THIRD,442002,Supporting People E442,10/04/2019,3575022-1969051,"19,776.44",FOUNDATION.
Adult and Health Services,Commissioning inc Supporting People,Third Party Payments 4THIRD,442002,Supporting People E442,10/04/2019,3575022-1969073,"3,567.12",FOUNDATION.
